Service,Expense Subtype,Merchant Name,Expense Invoice Date,Total Expense
D1100J-ADULTS WITH MENTAL HEALTH NEEDS,Travel/Subsistence,SE BRIXTON TO,01-Apr-2019,33.00
D1104J-DAY SERVICES,Catering Food & Drink,TESCO STORE 2764,01-Apr-2019,72.97
D1104J-DAY SERVICES,Catering Food & Drink,ICELAND,01-Apr-2019,166.57
D1104J-DAY SERVICES,Catering Food & Drink,TESCO STORE 2764,01-Apr-2019,99.27
D1104J-DAY SERVICES,Catering Food & Drink,M N NORWOOD HALAL BUTCHER,01-Apr-2019,82.37
D1145J-LIBRARIES & ARCHIVES,Domestic Goods-Other,AMAZON.CO.UK,01-Apr-2019,26.99
D1145J-LIBRARIES & ARCHIVES,Education-Library Books,AMZNMktplace,01-Apr-2019,14.30
D1220J-HOUSING OPTIONS - GF,Furniture-Domestic Furniture,WWW.JOHNLEWIS.COM,01-Apr-2019,-229.00
D1220J-HOUSING OPTIONS - GF,Furniture-Domestic Furniture,WAYFAIR #2664136618,01-Apr-2019,94.99
D1220J-HOUSING OPTIONS - GF,Furniture-Domestic Furniture,WWW.ARGOS.CO.UK,01-Apr-2019,143.94
D1220J-HOUSING OPTIONS - GF,Furniture-Domestic Furniture,WAYFAIR #2664136618,01-Apr-2019,-94.99
D1229J-SPECIALIST YOUTH,Travel/Subsistence,OYSTER ONLINE,01-Apr-2019,30.00
D1229J-SPECIALIST YOUTH,Travel/Subsistence,OYSTER AUTO-TOP UP,01-Apr-2019,20.00
D1293J-EVENTS & FILMING,Consultancy-Business,CANVAS EVENTS LTD,01-Apr-2019,72.00
D1303J-FINANCIAL TRANSACTION SERVICES,Travel/Subsistence,OYSTER AUTO-TOP UP,01-Apr-2019,20.00
D1317J-BUSINESS SUPPORT,Travel/Subsistence,OYSTER AUTO-TOP UP,01-Apr-2019,20.00
D1317J-BUSINESS SUPPORT,Taxi Fares,MS MICHEAL POWELL FINA,01-Apr-2019,375.00
D1317J-BUSINESS SUPPORT,Taxi Fares,SW16 TO SE11,01-Apr-2019,30.00
D1317J-BUSINESS SUPPORT,Travel/Subsistence,OYSTER ONLINE,01-Apr-2019,25.00
D1317J-BUSINESS SUPPORT,Travel/Subsistence,OYSTER AUTO-TOP UP,01-Apr-2019,20.00
D1317J-BUSINESS SUPPORT,Travel/Subsistence,OYSTER AUTO-TOP UP,01-Apr-2019,60.00
D1321J-DEMOCRATIC SERVICES,Domestic Goods-Other,WWW.REGENCYHAMPERS.COM,01-Apr-2019,44.40
D1841J-HOUSING MANAGEMENT SERVICES,IT Software-Customised,INTELLISOFTWARE LTD,01-Apr-2019,52.80
D1100J-ADULTS WITH MENTAL HEALTH NEEDS,Legal Services-Other,HMCOURTS-SERVICE.G,02-Apr-2019,150.00
D1145J-LIBRARIES & ARCHIVES,Financial Services,LAMBETH INTERNET PAYM,02-Apr-2019,21.00
D1145J-LIBRARIES & ARCHIVES,Education-Library Books,AMAZON.CO.UK,02-Apr-2019,22.74
D1145J-LIBRARIES & ARCHIVES,Education-Library Books,AMZN Mktp UK,02-Apr-2019,16.89
D1145J-LIBRARIES & ARCHIVES,Education-Library Books,Amazon.co.uk,02-Apr-2019,26.39
D1145J-LIBRARIES & ARCHIVES,Education-Library Books,AMZNMKTPLACE AMAZON.CO.UK,02-Apr-2019,19.48
D1174J-PUBLIC HEALTH - ADULTS,Taxi Fares,UberBV,02-Apr-2019,5.95
D1293J-EVENTS & FILMING,IT Software,ADOBE  CREATIVE CLOUD,02-Apr-2019,83.24
D1294J-PARKS & LEISURE SERVICES,Domestic Goods-Other,MACHINE MART LTD,02-Apr-2019,54.56
D1314J-CLIENT,Stationery,THE GLASS WIPE BOA,02-Apr-2019,"2,419.20"
D1317J-BUSINESS SUPPORT,IT Software-Customised,SA IMAGE REC. INEGRATE,02-Apr-2019,139.00
D1317J-BUSINESS SUPPORT,Accommodation,WWW.EDGCUMBE-HOTEL.CO.,02-Apr-2019,67.50
D1317J-BUSINESS SUPPORT,Facilities-Market Research,GOOGLE,02-Apr-2019,159.64
D1317J-BUSINESS SUPPORT,Facilities-Advertising,EXPRESS NEWS,02-Apr-2019,30.00
D1325J-LEGAL SERVICES,Stationery,AMAZON.CO.UK,02-Apr-2019,37.53
D1345J-FINANCIAL PLANNING AND MANAGEMENT,Financial Services,LAND REGISTRY,02-Apr-2019,3.00
D1365J-PERFORMANCE,IT Services,NATIONBUILDER,02-Apr-2019,173.26
D1365J-PERFORMANCE,Travel/Subsistence,Trainline.com,02-Apr-2019,33.66
D1841J-HOUSING MANAGEMENT SERVICES,Accommodation,LEIGHAM COURT HOTEL,02-Apr-2019,200.00
D1100J-ADULTS WITH MENTAL HEALTH NEEDS,Taxi Fares,WWW.ADDISONLEE.COM,03-Apr-2019,94.82
D1104J-DAY SERVICES,Catering Food & Drink,ICELAND,03-Apr-2019,30.00
D1104J-DAY SERVICES,Catering Food & Drink,ICELAND,03-Apr-2019,49.61
D1104J-DAY SERVICES,Catering Food & Drink,ICELAND,03-Apr-2019,49.12
D1117J-SUBSTANCE MISUSE,Financial Services,LAMBETH INTERNET PAYM,03-Apr-2019,124.00
D1145J-LIBRARIES & ARCHIVES,Education-Library Books,Amazon.co.uk,03-Apr-2019,57.23
D1180J-SENIOR MANAGEMENT - ADULTS & PUBLIC HEALTH,Catering Food & Drink,MARKS&SPENCER PLC,03-Apr-2019,197.00
D1229J-SPECIALIST YOUTH,Travel/Subsistence,OYSTER AUTO-TOP UP,03-Apr-2019,20.00
D1304J-HOUSING BENEFIT,Legal Services-Other,HMCOURTS-SERVICE.G,03-Apr-2019,589.00
D1317J-BUSINESS SUPPORT,Travel/Subsistence,OYSTER AUTO-TOP UP,03-Apr-2019,20.00
D1317J-BUSINESS SUPPORT,Travel/Subsistence,TRAINLINE,03-Apr-2019,93.92
D1317J-BUSINESS SUPPORT,Travel/Subsistence,OYSTER AUTO-TOP UP,03-Apr-2019,60.00
D1317J-BUSINESS SUPPORT,Catering Food & Drink,TESCO STORE 2143,03-Apr-2019,35.75
D1317J-BUSINESS SUPPORT,Domestic Goods-Other,WWW.ARGOS.CO.UK,03-Apr-2019,219.99
D1317J-BUSINESS SUPPORT,Domestic Goods-Other,ARGOS RETAIL GROUP,03-Apr-2019,62.98
D1317J-BUSINESS SUPPORT,Travel/Subsistence,OYSTER AUTO-TOP UP,03-Apr-2019,20.00
D1317J-BUSINESS SUPPORT,Travel/Subsistence,OYSTER AUTO-TOP UP,03-Apr-2019,80.00
D1317J-BUSINESS SUPPORT,Taxi Fares,WWW.ADDISONLEE.COM,03-Apr-2019,35.60
D1317J-BUSINESS SUPPORT,Travel/Subsistence,OYSTER AUTO-TOP UP,03-Apr-2019,60.00
D1317J-BUSINESS SUPPORT,Travel/Subsistence,OYSTER AUTO-TOP UP,03-Apr-2019,20.00
D1317J-BUSINESS SUPPORT,Facilities-Market Research,Amazon Prime,03-Apr-2019,7.99
D1325J-LEGAL SERVICES,Travel/Subsistence,LUL TICKET MACHINE,03-Apr-2019,50.00
D1345J-FINANCIAL PLANNING AND MANAGEMENT,Facilities-Advertising,EXPRESS NEWS,03-Apr-2019,50.00
D1365J-PERFORMANCE,IT Services,GOOGLE,03-Apr-2019,13.20
D1365J-PERFORMANCE,Facilities-Advertising,FACEBK 3ZVZ2LE6M2,03-Apr-2019,43.10
D1365J-PERFORMANCE,IT Services,AWS EMEA,03-Apr-2019,138.66
D1365J-PERFORMANCE,IT Services,NATIONBUILDER,03-Apr-2019,93.39
D1100J-ADULTS WITH MENTAL HEALTH NEEDS,Travel/Subsistence,TL&GN RAILWAY WEB,04-Apr-2019,24.40
D1104J-DAY SERVICES,Catering Food & Drink,SAINSBURY'S S/MKT,04-Apr-2019,71.25
D1117J-SUBSTANCE MISUSE,Financial Services,MORLEY COLLEGE INT,04-Apr-2019,330.00
D1117J-SUBSTANCE MISUSE,Banquet & Catering,WWW.EVENTSUPPLIES.CO.U,04-Apr-2019,160.80
D1229J-SPECIALIST YOUTH,Catering Food & Drink,MARKS&SPENCER PLC,04-Apr-2019,43.50
D1229J-SPECIALIST YOUTH,Travel/Subsistence,OYSTER AUTO-TOP UP,04-Apr-2019,20.00
D1247J-SUSTAINABILITY & ROAD SAFETY,Travel/Subsistence,LUL TICKET OFFICE.,04-Apr-2019,30.00
D1304J-HOUSING BENEFIT,Education-Library Books,AMZN Mktp UK,04-Apr-2019,31.49
D1304J-HOUSING BENEFIT,Domestic Goods-Other,AMZNMktplace,04-Apr-2019,33.28
D1317J-BUSINESS SUPPORT,Travel/Subsistence,OYSTER AUTO-TOP UP,04-Apr-2019,40.00
D1317J-BUSINESS SUPPORT,Travel/Subsistence,OYSTER ONLINE,04-Apr-2019,-20.00
D1317J-BUSINESS SUPPORT,Travel/Subsistence,OYSTER AUTO-TOP UP,04-Apr-2019,20.00
D1317J-BUSINESS SUPPORT,Travel/Subsistence,OYSTER AUTO-TOP UP,04-Apr-2019,20.00
D1317J-BUSINESS SUPPORT,Taxi Fares,SW12 TO HARLEY STRT,04-Apr-2019,60.00
D1317J-BUSINESS SUPPORT,Travel/Subsistence,OYSTER ONLINE,04-Apr-2019,-20.00
D1317J-BUSINESS SUPPORT,Travel/Subsistence,OYSTER ONLINE,04-Apr-2019,30.00
D1317J-BUSINESS SUPPORT,Travel/Subsistence,OYSTER AUTO-TOP UP,04-Apr-2019,20.00
D1317J-BUSINESS SUPPORT,Travel/Subsistence,OYSTER AUTO-TOP UP,04-Apr-2019,60.00
D1317J-BUSINESS SUPPORT,Financial Services-Grants,WWW.CORAM.ORG.UK,04-Apr-2019,93.80
D1317J-BUSINESS SUPPORT,Catering Food & Drink,SAINSBURYS S/MKTS,04-Apr-2019,8.15
D1317J-BUSINESS SUPPORT,Travel/Subsistence,OYSTER AUTO-TOP UP,04-Apr-2019,20.00
D1317J-BUSINESS SUPPORT,Financial Services,HM PASSPORT,04-Apr-2019,147.00
D1317J-BUSINESS SUPPORT,Catering Food & Drink,TESCO STORE 2143,04-Apr-2019,18.08
D1317J-BUSINESS SUPPORT,Domestic Goods-Other,AMZNMktplace,04-Apr-2019,25.99
D1317J-BUSINESS SUPPORT,Domestic Goods-Other,POUNDLAND LTD 1203,04-Apr-2019,9.00
D1317J-BUSINESS SUPPORT,Travel/Subsistence,OYSTER AUTO-TOP UP,04-Apr-2019,20.00
D1317J-BUSINESS SUPPORT,Utilities,WWW.EDF-ENERGY.COM,04-Apr-2019,"2,008.23"
D1324J-INTERNAL AUDIT,Travel/Subsistence,OYSTER AUTO-TOP UP,04-Apr-2019,40.00
D1365J-PERFORMANCE,Facilities-Advertising,FACEBK 3H75RK26M2,04-Apr-2019,40.00
D1365J-PERFORMANCE,IT Services,PANTHEON SYSTEMS INC,04-Apr-2019,27.59
D1841J-HOUSING MANAGEMENT SERVICES,Accommodation,LEIGHAM COURT HOTEL,04-Apr-2019,100.00
D1104J-DAY SERVICES,Financial Services,ROYAL BANK UK /,05-Apr-2019,400.00
D1145J-LIBRARIES & ARCHIVES,Education-Library Books,AMZNMKTPLACE AMAZON.CO.UK,05-Apr-2019,5.86
D1145J-LIBRARIES & ARCHIVES,Education-Library Books,AMZN Mktp UK,05-Apr-2019,28.77
D1145J-LIBRARIES & ARCHIVES,Facilities-Market Research,Amazon Prime,05-Apr-2019,7.99
D1145J-LIBRARIES & ARCHIVES,Education-Library Books,AMZNMktplace,05-Apr-2019,9.97
D1174J-PUBLIC HEALTH - ADULTS,Taxi Fares,UberBV,05-Apr-2019,6.16
D1229J-SPECIALIST YOUTH,Travel/Subsistence,OYSTER AUTO-TOP UP,05-Apr-2019,40.00
D1247J-SUSTAINABILITY & ROAD SAFETY,Travel/Subsistence,TFL CYCLE HIRE,05-Apr-2019,2.00
D1293J-EVENTS & FILMING,Domestic Goods-Other,AMZNMKTPLACE AMAZON.CO.UK,05-Apr-2019,46.78
D1294J-PARKS & LEISURE SERVICES,Horticultural-Other,WWW.WILDSEED.CO.UK,05-Apr-2019,221.00
D1294J-PARKS & LEISURE SERVICES,Vehicle Hire,T A H ACCESS PLATFORMS,05-Apr-2019,200.00
D1294J-PARKS & LEISURE SERVICES,Vehicle Hire,T A H ACCESS PLATFORMS,05-Apr-2019,160.00
D1304J-HOUSING BENEFIT,Travel/Subsistence,OYSTER AUTO-TOP UP,05-Apr-2019,20.00
D1317J-BUSINESS SUPPORT,Travel/Subsistence,OYSTER ONLINE,05-Apr-2019,50.00
D1317J-BUSINESS SUPPORT,Travel/Subsistence,OYSTER ONLINE,05-Apr-2019,30.00
D1317J-BUSINESS SUPPORT,Travel/Subsistence,OYSTER ONLINE,05-Apr-2019,95.00
D1317J-BUSINESS SUPPORT,Travel/Subsistence,OYSTER AUTO-TOP UP,05-Apr-2019,40.00
D1317J-BUSINESS SUPPORT,Taxi Fares,MULTIBLE BOOKINGS,05-Apr-2019,360.00
D1317J-BUSINESS SUPPORT,Financial Services,LONDON BRGH OF LAMBETH,05-Apr-2019,94.00
D1317J-BUSINESS SUPPORT,Travel/Subsistence,OYSTER AUTO-TOP UP,05-Apr-2019,60.00
D1317J-BUSINESS SUPPORT,Travel/Subsistence,OYSTER AUTO-TOP UP,05-Apr-2019,60.00
D1317J-BUSINESS SUPPORT,Travel/Subsistence,OYSTER AUTO-TOP UP,05-Apr-2019,20.00
D1317J-BUSINESS SUPPORT,Travel/Subsistence,TFL AUTOSETTLEMENT,05-Apr-2019,40.00
D1317J-BUSINESS SUPPORT,Travel/Subsistence,OYSTER AUTO-TOP UP,05-Apr-2019,80.00
D1317J-BUSINESS SUPPORT,Travel/Subsistence,OYSTER AUTO-TOP UP,05-Apr-2019,20.00
D1321J-DEMOCRATIC SERVICES,Catering Food & Drink,TESCO STORE 2143,05-Apr-2019,18.84
D1325J-LEGAL SERVICES,Catering Food & Drink,TESCO STORE 2143,05-Apr-2019,28.14
D1365J-PERFORMANCE,Facilities-Advertising,FACEBK XL2QFLJ5M2,05-Apr-2019,40.00
D1841J-HOUSING MANAGEMENT SERVICES,Facilities-Market Research,Amazon Prime,05-Apr-2019,7.99
D1145J-LIBRARIES & ARCHIVES,Education-Library Books,AMZNMktplace,06-Apr-2019,17.33
D1145J-LIBRARIES & ARCHIVES,Domestic Goods-Other,AMZNMktplace,06-Apr-2019,19.89
D1229J-SPECIALIST YOUTH,Travel/Subsistence,OYSTER AUTO-TOP UP,06-Apr-2019,20.00
D1304J-HOUSING BENEFIT,Travel/Subsistence,OYSTER AUTO-TOP UP,06-Apr-2019,20.00
D1317J-BUSINESS SUPPORT,Facilities-Market Research,Amazon Prime,06-Apr-2019,-7.99
D1317J-BUSINESS SUPPORT,Travel/Subsistence,OYSTER AUTO-TOP UP,06-Apr-2019,60.00
D1317J-BUSINESS SUPPORT,Travel/Subsistence,OYSTER AUTO-TOP UP,06-Apr-2019,40.00
D1317J-BUSINESS SUPPORT,Travel/Subsistence,OYSTER AUTO-TOP UP,06-Apr-2019,20.00
D1317J-BUSINESS SUPPORT,Travel/Subsistence,OYSTER AUTO-TOP UP,06-Apr-2019,40.00
D1317J-BUSINESS SUPPORT,Travel/Subsistence,OYSTER AUTO-TOP UP,06-Apr-2019,20.00
D1317J-BUSINESS SUPPORT,Travel/Subsistence,OYSTER AUTO-TOP UP,06-Apr-2019,60.00
D1365J-PERFORMANCE,Facilities-Advertising,FACEBK QT6BXKN5M2,06-Apr-2019,27.18
D1229J-SPECIALIST YOUTH,Travel/Subsistence,OYSTER AUTO-TOP UP,07-Apr-2019,40.00
D1317J-BUSINESS SUPPORT,Travel/Subsistence,OYSTER AUTO-TOP UP,07-Apr-2019,20.00
D1317J-BUSINESS SUPPORT,Travel/Subsistence,OYSTER AUTO-TOP UP,07-Apr-2019,20.00
D1317J-BUSINESS SUPPORT,Travel/Subsistence,OYSTER AUTO-TOP UP,07-Apr-2019,20.00
D1317J-BUSINESS SUPPORT,Travel/Subsistence,OYSTER AUTO-TOP UP,07-Apr-2019,40.00
D1317J-BUSINESS SUPPORT,Travel/Subsistence,OYSTER AUTO-TOP UP,07-Apr-2019,40.00
D1100J-ADULTS WITH MENTAL HEALTH NEEDS,Legal Services-Other,HMCOURTS-SERVICE.G,08-Apr-2019,75.00
D1104J-DAY SERVICES,Catering Food & Drink,WWW.ICELAND.CO.UK,08-Apr-2019,98.79
D1104J-DAY SERVICES,Financial Services,CASH ADVANCE FEE,08-Apr-2019,11.80
D1117J-SUBSTANCE MISUSE,Catering Food & Drink,TESCO STORES 5999,08-Apr-2019,75.33
D1145J-LIBRARIES & ARCHIVES,Catering Food & Drink,Brixton Grocers,08-Apr-2019,6.50
D1145J-LIBRARIES & ARCHIVES,Education-Library Books,AMZNMKTPLACE AMAZON.CO.UK,08-Apr-2019,41.35
D1145J-LIBRARIES & ARCHIVES,Domestic Goods-Other,AMZNMktplace,08-Apr-2019,29.99
D1145J-LIBRARIES & ARCHIVES,Stationery,Amazon.co.uk,08-Apr-2019,22.74
D1145J-LIBRARIES & ARCHIVES,Education-Library Books,Amazon.co.uk,08-Apr-2019,26.76
D1145J-LIBRARIES & ARCHIVES,Catering Food & Drink,ICELAND,08-Apr-2019,21.08
D1174J-PUBLIC HEALTH - ADULTS,Travel/Subsistence,EASYJET,08-Apr-2019,238.27
D1220J-HOUSING OPTIONS - GF,Books/Publications/Resources,WHICH,08-Apr-2019,10.75
D1293J-EVENTS & FILMING,Travel/Subsistence,ZIPCAR,08-Apr-2019,82.84
D1293J-EVENTS & FILMING,IT Services,DROPBOX*HB8496R5Y959,08-Apr-2019,7.99
D1294J-PARKS & LEISURE SERVICES,Financial Services,DVLA VEHICLE TAX,08-Apr-2019,167.50
D1317J-BUSINESS SUPPORT,Financial Services-Grants,WWW.CORAM.ORG.UK,08-Apr-2019,43.35
D1317J-BUSINESS SUPPORT,Travel/Subsistence,OYSTER AUTO-TOP UP,08-Apr-2019,20.00
D1317J-BUSINESS SUPPORT,Travel/Subsistence,OYSTER ONLINE,08-Apr-2019,20.00
D1317J-BUSINESS SUPPORT,Travel/Subsistence,TRAINLINE,08-Apr-2019,159.26
D1317J-BUSINESS SUPPORT,Catering Food & Drink,TESCO STORE 2143,08-Apr-2019,50.00
D1317J-BUSINESS SUPPORT,Facilities-Advertising,EXPRESS NEWS,08-Apr-2019,30.00
D1317J-BUSINESS SUPPORT,Travel/Subsistence,OYSTER AUTO-TOP UP,08-Apr-2019,20.00
D1317J-BUSINESS SUPPORT,Travel/Subsistence,OYSTER ONLINE,08-Apr-2019,20.00
D1317J-BUSINESS SUPPORT,Taxi Fares,SE26 TO SW2 6 DAYS,08-Apr-2019,420.00
D1317J-BUSINESS SUPPORT,Financial Services,GEN REGISTER OFFICE,08-Apr-2019,-73.75
D1317J-BUSINESS SUPPORT,Travel/Subsistence,LUL TICKET MACHINE,08-Apr-2019,45.00
D1317J-BUSINESS SUPPORT,Travel/Subsistence,OYSTER ONLINE,08-Apr-2019,20.00
D1317J-BUSINESS SUPPORT,Financial Services,GEN REGISTER OFFICE,08-Apr-2019,80.25
D1345J-FINANCIAL PLANNING AND MANAGEMENT,Financial Services,LAND REGISTRY,08-Apr-2019,3.00
D1862J-SHELTERED HOUSING,Cleaning-Specialist,WWW.RANSOMSPARES.CO.UK,08-Apr-2019,38.85
D1100J-ADULTS WITH MENTAL HEALTH NEEDS,Legal Services-Other,HMCOURTS-SERVICE.G,09-Apr-2019,150.00
D1117J-SUBSTANCE MISUSE,Domestic Goods-Other,TESCO ONLINE,09-Apr-2019,20.98
D1145J-LIBRARIES & ARCHIVES,Education-Library Books,Amazon.co.uk,09-Apr-2019,5.78
D1145J-LIBRARIES & ARCHIVES,Books/Publications/Resources,Sainsburys Bank CASH,09-Apr-2019,170.00
D1145J-LIBRARIES & ARCHIVES,Education-Other,LONDONEMBLE,09-Apr-2019,72.16
D1145J-LIBRARIES & ARCHIVES,Domestic Goods-Other,ARGOS LTD,09-Apr-2019,24.00
D1145J-LIBRARIES & ARCHIVES,Education-Library Books,AMZN Mktp UK,09-Apr-2019,12.28
D1174J-PUBLIC HEALTH - ADULTS,Domestic Goods-Other,ONE4ALL,09-Apr-2019,320.00
D1292J-BEREAVEMENT SERVICES,Building-Timber,TP NORWOOD 9014,09-Apr-2019,121.75
D1292J-BEREAVEMENT SERVICES,Domestic Goods-Other,WWW.ARGOS.CO.UK,09-Apr-2019,98.94
D1293J-EVENTS & FILMING,Travel/Subsistence,ZIPCAR,09-Apr-2019,10.36
D1293J-EVENTS & FILMING,Cleaning-Laundry Service,S.I.S.T DRY CLEANERS L,09-Apr-2019,50.00
D1293J-EVENTS & FILMING,Catering Food & Drink,TESCO STORE 2143,09-Apr-2019,4.00
D1293J-EVENTS & FILMING,Catering Food & Drink,SAINSBURYS S/MKTS,09-Apr-2019,6.08
D1294J-PARKS & LEISURE SERVICES,Works-Construction,KK WINDOWS,09-Apr-2019,30.00
D1294J-PARKS & LEISURE SERVICES,Building-Timber,ACRE LANE TIMBER LTD,09-Apr-2019,185.10
D1294J-PARKS & LEISURE SERVICES,Building-Paint,S LONDON DECORTORS,09-Apr-2019,25.75
D1294J-PARKS & LEISURE SERVICES,Building-Tools,MACHINE MART WEB,09-Apr-2019,99.00
D1295J-PARKING OPERATIONS,Catering Food & Drink,MARKS&SPENCER PLC SACA,09-Apr-2019,50.00
D1317J-BUSINESS SUPPORT,Financial Services,LONDON BRGH OF LAMBETH,09-Apr-2019,197.00
D1317J-BUSINESS SUPPORT,Financial Services-Insurance,WWW.AVIVA.CO.UK,09-Apr-2019,-223.57
D1317J-BUSINESS SUPPORT,Travel/Subsistence,OYSTER ONLINE,09-Apr-2019,45.00
D1317J-BUSINESS SUPPORT,Travel/Subsistence,OYSTER ONLINE,09-Apr-2019,20.00
D1317J-BUSINESS SUPPORT,Taxi Fares,WWW.ADDISONLEE.COM,09-Apr-2019,54.30
D1317J-BUSINESS SUPPORT,Travel/Subsistence,LUL TICKET MACHINE,09-Apr-2019,25.00
D1841J-HOUSING MANAGEMENT SERVICES,Mail Services-Postage,POST OFFICE COUNTER,09-Apr-2019,6.60
D1100J-ADULTS WITH MENTAL HEALTH NEEDS,Legal Services-Other,HMCOURTS-SERVICE.G,10-Apr-2019,75.00
D1104J-DAY SERVICES,Catering Food & Drink,TESCO STORE 3539,10-Apr-2019,-1.65
D1104J-DAY SERVICES,Catering Food & Drink,TESCO STORES 5999,10-Apr-2019,134.98
D1104J-DAY SERVICES,Education-Other,AMZNMktplace,10-Apr-2019,17.99
D1104J-DAY SERVICES,Domestic Goods-Other,AMZNMktplace,10-Apr-2019,16.55
D1104J-DAY SERVICES,Financial Services-Grants,MUSIC IN HOSPITALS AND,10-Apr-2019,130.00
D1104J-DAY SERVICES,Building-Others,AMZN Mktp UK,10-Apr-2019,23.74
D1145J-LIBRARIES & ARCHIVES,Books/Publications/Resources,CASH ADVANCE FEE,10-Apr-2019,5.02
D1145J-LIBRARIES & ARCHIVES,Education-Library Books,AMZNMktplace,10-Apr-2019,4.12
D1145J-LIBRARIES & ARCHIVES,Education-Library Books,Amazon.co.uk,10-Apr-2019,10.96
D1220J-HOUSING OPTIONS - GF,Furniture-Domestic Furniture,WAYFAIR #2681397368,10-Apr-2019,575.96
D1229J-SPECIALIST YOUTH,Travel/Subsistence,OYSTER AUTO-TOP UP,10-Apr-2019,20.00
D1229J-SPECIALIST YOUTH,Catering Food & Drink,MARKS&SPENCER PLC,10-Apr-2019,43.50
D1293J-EVENTS & FILMING,Financial Services-Grants,WWW.BII.ORG,10-Apr-2019,180.00
D1294J-PARKS & LEISURE SERVICES,Building-Timber,TP VAUXHALL,10-Apr-2019,249.00
D1317J-BUSINESS SUPPORT,Travel/Subsistence,OYSTER AUTO-TOP UP,10-Apr-2019,20.00
D1317J-BUSINESS SUPPORT,Healthcare Services,PROMETHIAN MEDICAL LIM,10-Apr-2019,265.00
D1317J-BUSINESS SUPPORT,Organised Activities,LITTLE ANGELS CONTACT,10-Apr-2019,161.50
D1317J-BUSINESS SUPPORT,Travel/Subsistence,OYSTER AUTO-TOP UP,10-Apr-2019,20.00
D1317J-BUSINESS SUPPORT,Financial Services,GEN REGISTER OFFICE,10-Apr-2019,-18.50
D1317J-BUSINESS SUPPORT,Travel/Subsistence,OYSTER AUTO-TOP UP,10-Apr-2019,20.00
D1317J-BUSINESS SUPPORT,Facilities-Storage,WWW.SAFESTORE.CO.UK,10-Apr-2019,556.91
D1317J-BUSINESS SUPPORT,Travel/Subsistence,TRAINLINE,10-Apr-2019,128.19
D1317J-BUSINESS SUPPORT,Travel/Subsistence,OYSTER ONLINE,10-Apr-2019,60.00
D1317J-BUSINESS SUPPORT,Domestic Goods-Other,WWW.ARGOS.CO.UK,10-Apr-2019,"1,654.92"
D1317J-BUSINESS SUPPORT,Travel/Subsistence,EXPEDIA 7425975833279,10-Apr-2019,75.65
D1317J-BUSINESS SUPPORT,Travel/Subsistence,OYSTER AUTO-TOP UP,10-Apr-2019,20.00
D1317J-BUSINESS SUPPORT,Travel/Subsistence,EUROSTAR INTERNET,10-Apr-2019,290.00
D1317J-BUSINESS SUPPORT,Accommodation,PREMIER INN 44536865,10-Apr-2019,101.00
D1317J-BUSINESS SUPPORT,Healthcare-Counselling,THE AWARENESS CENTRE,10-Apr-2019,60.00
D1317J-BUSINESS SUPPORT,Domestic Goods-Other,WWW.ARGOS.CO.UK,10-Apr-2019,254.97
D1317J-BUSINESS SUPPORT,Financial Services,GEN REGISTER OFFICE,10-Apr-2019,25.00
D1317J-BUSINESS SUPPORT,Travel/Subsistence,OYSTER AUTO-TOP UP,10-Apr-2019,20.00
D1324J-INTERNAL AUDIT,Travel/Subsistence,TRAINLINE,10-Apr-2019,40.68
D1345J-FINANCIAL PLANNING AND MANAGEMENT,Financial Services,LAND REGISTRY,10-Apr-2019,3.00
D1351J-LEARNING & DEVELOPMENT,Consultancy-Business,WWW.PMGLTD.CO.UK,10-Apr-2019,474.00
D1841J-HOUSING MANAGEMENT SERVICES,Mail Services-Postage,POST OFFICE COUNTER,10-Apr-2019,9.60
D1841J-HOUSING MANAGEMENT SERVICES,Travel/Subsistence,LUL TICKET MACHINE,10-Apr-2019,60.00
D1104J-DAY SERVICES,Education-Other,AMZNMktplace,11-Apr-2019,4.99
D1104J-DAY SERVICES,Financial Services,HALX - BRIXTON,11-Apr-2019,400.00
D1104J-DAY SERVICES,Education-Other,AMZN Mktp UK,11-Apr-2019,37.28
D1104J-DAY SERVICES,Domestic Goods-Other,AMZNMktplace,11-Apr-2019,45.69
D1117J-SUBSTANCE MISUSE,Domestic Goods-Other,WWW.ARGOS.CO.UK,11-Apr-2019,245.95
D1145J-LIBRARIES & ARCHIVES,Education-Library Books,Amazon.co.uk,11-Apr-2019,9.90
D1145J-LIBRARIES & ARCHIVES,Education-Library Books,AMZNMktplace,11-Apr-2019,12.97
D1145J-LIBRARIES & ARCHIVES,Domestic Goods-Other,POUNDLAND LTD,11-Apr-2019,12.00
D1145J-LIBRARIES & ARCHIVES,Domestic Goods-Other,POUNDLAND LTD,11-Apr-2019,19.00
D1145J-LIBRARIES & ARCHIVES,Education-Library Books,Amazon.co.uk,11-Apr-2019,10.45
D1145J-LIBRARIES & ARCHIVES,Domestic Goods-Other,ARGOS,11-Apr-2019,49.97
D1145J-LIBRARIES & ARCHIVES,Financial Services,PO WEST NORWOOD 1648,11-Apr-2019,60.00
D1220J-HOUSING OPTIONS - GF,Building-General,B & Q 1037,11-Apr-2019,26.69
D1226J-PLANNING,Financial Services,WWW.JERSEYFSC.ORG,11-Apr-2019,4.00
D1229J-SPECIALIST YOUTH,Travel/Subsistence,OYSTER AUTO-TOP UP,11-Apr-2019,20.00
D1229J-SPECIALIST YOUTH,Furniture-Office Furniture,AMZNMKTPLACE AMAZON.CO.UK,11-Apr-2019,239.99
D1229J-SPECIALIST YOUTH,IT Office Equipment,AMZNMktplace,11-Apr-2019,108.73
D1229J-SPECIALIST YOUTH,IT Office Equipment,AMZNMKTPLACE AMAZON.CO.UK,11-Apr-2019,75.22
D1294J-PARKS & LEISURE SERVICES,Building-Plumbing,WOLSELEY UK,11-Apr-2019,87.48
D1317J-BUSINESS SUPPORT,Travel/Subsistence,OYSTER AUTO-TOP UP,11-Apr-2019,60.00
D1317J-BUSINESS SUPPORT,Travel/Subsistence,OYSTER AUTO-TOP UP,11-Apr-2019,80.00
D1317J-BUSINESS SUPPORT,Furniture-Domestic Furniture,WWW.IKEA.COM,11-Apr-2019,107.90
D1317J-BUSINESS SUPPORT,Travel/Subsistence,OYSTER AUTO-TOP UP,11-Apr-2019,20.00
D1317J-BUSINESS SUPPORT,Travel/Subsistence,OYSTER AUTO-TOP UP,11-Apr-2019,20.00
D1317J-BUSINESS SUPPORT,Domestic Goods-Other,WWW.ARGOS.CO.UK,11-Apr-2019,303.93
D1317J-BUSINESS SUPPORT,Travel/Subsistence,OYSTER AUTO-TOP UP,11-Apr-2019,80.00
D1317J-BUSINESS SUPPORT,Travel/Subsistence,OYSTER AUTO-TOP UP,11-Apr-2019,20.00
D1317J-BUSINESS SUPPORT,Travel/Subsistence,LUL TICKET MACHINE,11-Apr-2019,25.00
D1317J-BUSINESS SUPPORT,Accommodation,EASYJET,11-Apr-2019,200.62
D1317J-BUSINESS SUPPORT,Travel/Subsistence,EXPEDIA 7426206805801,11-Apr-2019,297.03
D1321J-DEMOCRATIC SERVICES,Catering Food & Drink,TESCO STORE 2143,11-Apr-2019,36.75
D1321J-DEMOCRATIC SERVICES,Catering Food & Drink,DOMINO,11-Apr-2019,49.98
D1345J-FINANCIAL PLANNING AND MANAGEMENT,Financial Services,LAND REGISTRY,11-Apr-2019,6.00
D1841J-HOUSING MANAGEMENT SERVICES,Financial Services,LBB MOTO,11-Apr-2019,11.00
D1841J-HOUSING MANAGEMENT SERVICES,Travel/Subsistence,NEW SOUTHERN RAILW,11-Apr-2019,50.00
D1841J-HOUSING MANAGEMENT SERVICES,Travel/Subsistence,LUL TICKET MACHINE,11-Apr-2019,115.00
D1104J-DAY SERVICES,Catering Food & Drink,TESCO STORE 2143,12-Apr-2019,8.25
D1104J-DAY SERVICES,Financial Services,CASH ADVANCE FEE,12-Apr-2019,11.80
D1117J-SUBSTANCE MISUSE,Domestic Goods-Other,AMZNMktplace,12-Apr-2019,10.99
D1145J-LIBRARIES & ARCHIVES,Financial Services,CASH ADVANCE FEE,12-Apr-2019,2.95
D1145J-LIBRARIES & ARCHIVES,Domestic Goods-Other,POUNDLAND LTD,12-Apr-2019,2.00
D1145J-LIBRARIES & ARCHIVES,Education-Library Books,Amazon.co.uk,12-Apr-2019,25.00
D1145J-LIBRARIES & ARCHIVES,Domestic Goods-Other,AMAZON.CO.UK,12-Apr-2019,31.86
D1145J-LIBRARIES & ARCHIVES,Education-Library Books,AMZNMktplace,12-Apr-2019,7.78
D1145J-LIBRARIES & ARCHIVES,Education-Library Books,AMZN Mktp UK,12-Apr-2019,4.34
D1229J-SPECIALIST YOUTH,Travel/Subsistence,OYSTER AUTO-TOP UP,12-Apr-2019,20.00
D1292J-BEREAVEMENT SERVICES,Travel/Subsistence,TFL ROAD CHG - STD WEB,12-Apr-2019,12.50
D1293J-EVENTS & FILMING,Consultancy-Business,BLS*MONDAY.COM,12-Apr-2019,148.80
D1294J-PARKS & LEISURE SERVICES,Building-General,SCREWFIX DIRECT,12-Apr-2019,150.32
D1294J-PARKS & LEISURE SERVICES,Building-Timber,ACRE LANE TIMBER LTD,12-Apr-2019,8.05
D1294J-PARKS & LEISURE SERVICES,Building-General,A&S  HOMECARE LTD,12-Apr-2019,19.98
D1317J-BUSINESS SUPPORT,Travel/Subsistence,OYSTER ONLINE,12-Apr-2019,45.00
D1317J-BUSINESS SUPPORT,Travel/Subsistence,OYSTER AUTO-TOP UP,12-Apr-2019,80.00
D1317J-BUSINESS SUPPORT,Travel/Subsistence,OYSTER AUTO-TOP UP,12-Apr-2019,60.00
D1317J-BUSINESS SUPPORT,Financial Services,WWW.FCO.GOV.UK,12-Apr-2019,35.50
D1317J-BUSINESS SUPPORT,Travel/Subsistence,OYSTER AUTO-TOP UP,12-Apr-2019,20.00
D1317J-BUSINESS SUPPORT,Travel/Subsistence,OYSTER AUTO-TOP UP,12-Apr-2019,20.00
D1317J-BUSINESS SUPPORT,Travel/Subsistence,OYSTER AUTO-TOP UP,12-Apr-2019,40.00
D1317J-BUSINESS SUPPORT,Travel/Subsistence,OYSTER AUTO-TOP UP,12-Apr-2019,20.00
D1317J-BUSINESS SUPPORT,Travel/Subsistence,OYSTER AUTO-TOP UP,12-Apr-2019,20.00
D1317J-BUSINESS SUPPORT,Furniture-Domestic Furniture,BRIXTON FURNITURE CENT,12-Apr-2019,310.00
D1317J-BUSINESS SUPPORT,Travel/Subsistence,OYSTER ONLINE,12-Apr-2019,-30.00
D1317J-BUSINESS SUPPORT,Travel/Subsistence,OYSTER AUTO-TOP UP,12-Apr-2019,40.00
D1317J-BUSINESS SUPPORT,Travel/Subsistence,OYSTER ONLINE,12-Apr-2019,-35.00
D1317J-BUSINESS SUPPORT,Travel/Subsistence,OYSTER AUTO-TOP UP,12-Apr-2019,20.00
D1345J-FINANCIAL PLANNING AND MANAGEMENT,Domestic Goods-Other,WWW.ARGOS.CO.UK,12-Apr-2019,9.94
D1145J-LIBRARIES & ARCHIVES,Catering Food & Drink,SAINSBURY'S,13-Apr-2019,55.78
D1229J-SPECIALIST YOUTH,Travel/Subsistence,OYSTER AUTO-TOP UP,13-Apr-2019,20.00
D1294J-PARKS & LEISURE SERVICES,Domestic Goods-Other,AMZNMktplace,13-Apr-2019,49.99
D1317J-BUSINESS SUPPORT,Travel/Subsistence,OYSTER AUTO-TOP UP,13-Apr-2019,20.00
D1317J-BUSINESS SUPPORT,Travel/Subsistence,OYSTER AUTO-TOP UP,13-Apr-2019,40.00
D1317J-BUSINESS SUPPORT,Travel/Subsistence,OYSTER AUTO-TOP UP,13-Apr-2019,20.00
D1317J-BUSINESS SUPPORT,Travel/Subsistence,OYSTER AUTO-TOP UP,13-Apr-2019,20.00
D1317J-BUSINESS SUPPORT,Travel/Subsistence,OYSTER AUTO-TOP UP,13-Apr-2019,20.00
D1317J-BUSINESS SUPPORT,Travel/Subsistence,OYSTER AUTO-TOP UP,13-Apr-2019,40.00
D1317J-BUSINESS SUPPORT,Travel/Subsistence,OYSTER AUTO-TOP UP,13-Apr-2019,40.00
D1317J-BUSINESS SUPPORT,Travel/Subsistence,OYSTER AUTO-TOP UP,13-Apr-2019,40.00
D1317J-BUSINESS SUPPORT,Travel/Subsistence,OYSTER AUTO-TOP UP,13-Apr-2019,20.00
D1317J-BUSINESS SUPPORT,Travel/Subsistence,OYSTER AUTO-TOP UP,13-Apr-2019,40.00
D1324J-INTERNAL AUDIT,Travel/Subsistence,OYSTER AUTO-TOP UP,13-Apr-2019,40.00
D1145J-LIBRARIES & ARCHIVES,Domestic Goods-Other,AMZNMktplace,14-Apr-2019,55.98
D1145J-LIBRARIES & ARCHIVES,Education-Library Books,AMZN Mktp UK,14-Apr-2019,27.80
D1229J-SPECIALIST YOUTH,Travel/Subsistence,OYSTER AUTO-TOP UP,14-Apr-2019,20.00
D1303J-FINANCIAL TRANSACTION SERVICES,Domestic Goods-Other,AMZNMktplace,14-Apr-2019,37.07
D1317J-BUSINESS SUPPORT,Travel/Subsistence,OYSTER AUTO-TOP UP,14-Apr-2019,40.00
D1317J-BUSINESS SUPPORT,Travel/Subsistence,OYSTER AUTO-TOP UP,14-Apr-2019,20.00
D1317J-BUSINESS SUPPORT,Travel/Subsistence,OYSTER AUTO-TOP UP,14-Apr-2019,20.00
D1317J-BUSINESS SUPPORT,Travel/Subsistence,OYSTER AUTO-TOP UP,14-Apr-2019,40.00
D1317J-BUSINESS SUPPORT,Travel/Subsistence,OYSTER AUTO-TOP UP,14-Apr-2019,80.00
D1343J-DIRECTOR OF FINANCE,Travel/Subsistence,Trainline.com,14-Apr-2019,96.67
D1100J-ADULTS WITH MENTAL HEALTH NEEDS,Travel/Subsistence,SE BRIXTON TO,15-Apr-2019,37.40
D1104J-DAY SERVICES,Catering Food & Drink,ICELAND,15-Apr-2019,50.00
D1104J-DAY SERVICES,Catering Food & Drink,WWW.ICELAND.CO.UK,15-Apr-2019,154.92
D1117J-SUBSTANCE MISUSE,Catering Food & Drink,TESCO STORES 5999,15-Apr-2019,71.39
D1145J-LIBRARIES & ARCHIVES,Education-Library Books,AMZN Mktp UK,15-Apr-2019,32.78
D1145J-LIBRARIES & ARCHIVES,Domestic Goods-Other,POUNDLAND LTD 1203,15-Apr-2019,12.00
D1145J-LIBRARIES & ARCHIVES,Domestic Goods-Other,POUNDLAND LTD 1203,15-Apr-2019,2.00
D1145J-LIBRARIES & ARCHIVES,Education-Other,CARTRIDGEPEOPLE.COM,15-Apr-2019,29.97
D1145J-LIBRARIES & ARCHIVES,Domestic Goods-Other,POUNDLAND LTD,15-Apr-2019,18.00
D1145J-LIBRARIES & ARCHIVES,Education-Library Books,Amazon.co.uk,15-Apr-2019,49.22
D1292J-BEREAVEMENT SERVICES,Catering Equipment,AMZN Mktp UK,15-Apr-2019,8.99
D1294J-PARKS & LEISURE SERVICES,Building-Timber,SELCO OLD KENT ROA,15-Apr-2019,82.62
D1294J-PARKS & LEISURE SERVICES,Horticultural-Other,TOPBUXUS Germany GmbH,15-Apr-2019,66.57
D1317J-BUSINESS SUPPORT,Travel/Subsistence,OYSTER ONLINE,15-Apr-2019,30.00
D1317J-BUSINESS SUPPORT,Education-Library Books,AMZN Mktp UK,15-Apr-2019,14.99
D1317J-BUSINESS SUPPORT,Travel/Subsistence,OYSTER AUTO-TOP UP,15-Apr-2019,20.00
D1317J-BUSINESS SUPPORT,Domestic Goods-Other,WWW.ARGOS.CO.UK,15-Apr-2019,"2,014.84"
D1317J-BUSINESS SUPPORT,Travel/Subsistence,OYSTER AUTO-TOP UP,15-Apr-2019,20.00
D1317J-BUSINESS SUPPORT,Travel/Subsistence,OYSTER ONLINE,15-Apr-2019,75.00
D1317J-BUSINESS SUPPORT,Travel/Subsistence,TRAINLINE,15-Apr-2019,-11.20
D1321J-DEMOCRATIC SERVICES,Catering Food & Drink,TESCO STORE 2143,15-Apr-2019,12.40
D1345J-FINANCIAL PLANNING AND MANAGEMENT,Financial Services,LAND REGISTRY,15-Apr-2019,3.00
D1351J-LEARNING & DEVELOPMENT,Stationery,VIKING UK,15-Apr-2019,250.72
D1841J-HOUSING MANAGEMENT SERVICES,Building-General,HOWARD BROS. (CAMBERWE,15-Apr-2019,231.90
D1100J-ADULTS WITH MENTAL HEALTH NEEDS,Legal Services-Other,HMCOURTS-SERVICE.G,16-Apr-2019,150.00
D1104J-DAY SERVICES,Catering Food & Drink,M N NORWOOD HALAL BUTCHER,16-Apr-2019,133.94
D1117J-SUBSTANCE MISUSE,Financial Services,MORLEY COLLEGE INT,16-Apr-2019,110.00
D1145J-LIBRARIES & ARCHIVES,Domestic Goods-Other,CUPSDIRECT.CO.UK,16-Apr-2019,59.88
D1145J-LIBRARIES & ARCHIVES,Education-Library Books,Amazon.co.uk,16-Apr-2019,1.99
D1174J-PUBLIC HEALTH - ADULTS,Healthcare Services,PUBLIC HEALTH ENGLAND,16-Apr-2019,575.00
D1292J-BEREAVEMENT SERVICES,Stationery,AMZNMktplace,16-Apr-2019,3.66
D1292J-BEREAVEMENT SERVICES,Domestic Goods-Other,AMZNMktplace,16-Apr-2019,1.94
D1292J-BEREAVEMENT SERVICES,Education-Library Books,AMZN Mktp UK,16-Apr-2019,12.99
D1293J-EVENTS & FILMING,Facilities-Market Research,MAILCHIMP,16-Apr-2019,69.41
D1303J-FINANCIAL TRANSACTION SERVICES,Domestic Goods-Other,PAYPAL,16-Apr-2019,350.00
D1304J-HOUSING BENEFIT,Travel/Subsistence,TRAINLINE,16-Apr-2019,82.68
D1317J-BUSINESS SUPPORT,Travel/Subsistence,OYSTER ONLINE,16-Apr-2019,20.00
D1317J-BUSINESS SUPPORT,Domestic Goods-Other,AMZNMktplace,16-Apr-2019,30.99
D1317J-BUSINESS SUPPORT,Utilities,SUTTON & EAST SURREY W,16-Apr-2019,225.78
D1317J-BUSINESS SUPPORT,Taxi Fares,WWW.ADDISONLEE.COM,16-Apr-2019,12.55
D1317J-BUSINESS SUPPORT,Travel/Subsistence,TRAINLINE,16-Apr-2019,69.46
D1317J-BUSINESS SUPPORT,Education-Library Books,AMZN Mktp UK,16-Apr-2019,14.43
D1841J-HOUSING MANAGEMENT SERVICES,Travel/Subsistence,NEW SOUTHERN RAILW,16-Apr-2019,100.00
D1100J-ADULTS WITH MENTAL HEALTH NEEDS,Works-Construction/Materials,LOCKSMITHS AT THE TOOL,17-Apr-2019,239.99
D1117J-SUBSTANCE MISUSE,Education-Library Books,AMZN Mktp UK,17-Apr-2019,7.99
D1229J-SPECIALIST YOUTH,Travel/Subsistence,OYSTER ONLINE,17-Apr-2019,30.00
D1293J-EVENTS & FILMING,Facilities-Market Research,Amazon Prime,17-Apr-2019,79.00
D1295J-PARKING OPERATIONS,Books/Publications/Resources,WH SMITH,17-Apr-2019,42.00
D1295J-PARKING OPERATIONS,Catering Food & Drink,MARKS&SPENCER PLC SACA,17-Apr-2019,18.00
D1317J-BUSINESS SUPPORT,Travel/Subsistence,OYSTER AUTO-TOP UP,17-Apr-2019,20.00
D1317J-BUSINESS SUPPORT,Facilities-Advertising,FACEBK N3E8ALWCE2,17-Apr-2019,85.41
D1317J-BUSINESS SUPPORT,Travel/Subsistence,OYSTER ONLINE,17-Apr-2019,30.00
D1317J-BUSINESS SUPPORT,Travel/Subsistence,OYSTER AUTO-TOP UP,17-Apr-2019,80.00
D1317J-BUSINESS SUPPORT,Travel/Subsistence,OYSTER ONLINE,17-Apr-2019,20.00
D1317J-BUSINESS SUPPORT,Travel/Subsistence,OYSTER AUTO-TOP UP,17-Apr-2019,20.00
D1317J-BUSINESS SUPPORT,Domestic Goods-Other,POUNDLAND LTD 1203,17-Apr-2019,54.00
D1317J-BUSINESS SUPPORT,Travel/Subsistence,OYSTER AUTO-TOP UP,17-Apr-2019,20.00
D1317J-BUSINESS SUPPORT,Travel/Subsistence,OYSTER ONLINE,17-Apr-2019,25.00
D1317J-BUSINESS SUPPORT,Travel/Subsistence,OYSTER AUTO-TOP UP,17-Apr-2019,20.00
D1317J-BUSINESS SUPPORT,Travel/Subsistence,OYSTER AUTO-TOP UP,17-Apr-2019,20.00
D1317J-BUSINESS SUPPORT,Travel/Subsistence,OYSTER AUTO-TOP UP,17-Apr-2019,40.00
D1317J-BUSINESS SUPPORT,Travel/Subsistence,OYSTER AUTO-TOP UP,17-Apr-2019,20.00
D1317J-BUSINESS SUPPORT,Travel/Subsistence,OYSTER AUTO-TOP UP,17-Apr-2019,20.00
D1325J-LEGAL SERVICES,Education-Library Books,PAYPAL,17-Apr-2019,2.22
D1841J-HOUSING MANAGEMENT SERVICES,Facilities-Printing,WWW.OCEANMEDIA.CO,17-Apr-2019,637.60
D1104J-DAY SERVICES,Catering Food & Drink,LIDL GB LONDON,18-Apr-2019,23.94
D1145J-LIBRARIES & ARCHIVES,Books/Publications/Resources,LONDIS,18-Apr-2019,150.00
D1145J-LIBRARIES & ARCHIVES,Travel/Subsistence,GREATER ANGLIA TRAINS,18-Apr-2019,40.00
D1145J-LIBRARIES & ARCHIVES,Building-General,PALACE HOME & HARDWARE,18-Apr-2019,12.99
D1229J-SPECIALIST YOUTH,Travel/Subsistence,OYSTER AUTO-TOP UP,18-Apr-2019,20.00
D1293J-EVENTS & FILMING,Building-Tools,WWW.YAHIRE.COM,18-Apr-2019,"1,000.00"
D1304J-HOUSING BENEFIT,Travel/Subsistence,TRAINLINE,18-Apr-2019,60.31
D1317J-BUSINESS SUPPORT,Travel/Subsistence,OYSTER AUTO-TOP UP,18-Apr-2019,20.00
D1317J-BUSINESS SUPPORT,Healthcare Services,HOLISTIC COMMUNITY CARE L,18-Apr-2019,65.50
D1317J-BUSINESS SUPPORT,Catering Food & Drink,NANDOS BALHAM,18-Apr-2019,242.85
D1317J-BUSINESS SUPPORT,Travel/Subsistence,OYSTER AUTO-TOP UP,18-Apr-2019,20.00
D1317J-BUSINESS SUPPORT,Catering Food & Drink,SAINSBURY'S S/MKT,18-Apr-2019,63.40
D1317J-BUSINESS SUPPORT,Travel/Subsistence,OYSTER ONLINE,18-Apr-2019,30.00
D1317J-BUSINESS SUPPORT,Travel/Subsistence,OYSTER AUTO-TOP UP,18-Apr-2019,40.00
D1317J-BUSINESS SUPPORT,Travel/Subsistence,OYSTER AUTO-TOP UP,18-Apr-2019,20.00
D1317J-BUSINESS SUPPORT,Consultancy-Business,ELSA NETWORK,18-Apr-2019,100.00
D1317J-BUSINESS SUPPORT,Travel/Subsistence,OYSTER AUTO-TOP UP,18-Apr-2019,20.00
D1317J-BUSINESS SUPPORT,Catering Food & Drink,TESCO STORE 2143,18-Apr-2019,100.00
D1317J-BUSINESS SUPPORT,Healthcare Services,EDMUNDSBURY TRA,18-Apr-2019,270.00
D1317J-BUSINESS SUPPORT,Domestic Goods-Other,AMZNMktplace,18-Apr-2019,34.99
D1317J-BUSINESS SUPPORT,Travel/Subsistence,OYSTER AUTO-TOP UP,18-Apr-2019,20.00
D1317J-BUSINESS SUPPORT,Domestic Goods-Other,WWW.ARGOS.CO.UK,18-Apr-2019,347.93
D1317J-BUSINESS SUPPORT,Travel/Subsistence,OYSTER AUTO-TOP UP,18-Apr-2019,80.00
D1321J-DEMOCRATIC SERVICES,IT Software-Customised,SurveyMonkey,18-Apr-2019,35.00
D1345J-FINANCIAL PLANNING AND MANAGEMENT,Financial Services,LAND REGISTRY,18-Apr-2019,3.00
D1229J-SPECIALIST YOUTH,Travel/Subsistence,OYSTER AUTO-TOP UP,19-Apr-2019,40.00
D1294J-PARKS & LEISURE SERVICES,Building-General,SCREWFIX DIRECT,19-Apr-2019,109.98
D1317J-BUSINESS SUPPORT,Travel/Subsistence,OYSTER AUTO-TOP UP,19-Apr-2019,40.00
D1317J-BUSINESS SUPPORT,Travel/Subsistence,OYSTER AUTO-TOP UP,19-Apr-2019,80.00
D1317J-BUSINESS SUPPORT,Travel/Subsistence,OYSTER AUTO-TOP UP,19-Apr-2019,20.00
D1317J-BUSINESS SUPPORT,Travel/Subsistence,OYSTER AUTO-TOP UP,19-Apr-2019,40.00
D1317J-BUSINESS SUPPORT,Travel/Subsistence,OYSTER AUTO-TOP UP,19-Apr-2019,20.00
D1317J-BUSINESS SUPPORT,Travel/Subsistence,OYSTER AUTO-TOP UP,19-Apr-2019,20.00
D1317J-BUSINESS SUPPORT,Travel/Subsistence,OYSTER AUTO-TOP UP,19-Apr-2019,20.00
D1317J-BUSINESS SUPPORT,Travel/Subsistence,OYSTER AUTO-TOP UP,19-Apr-2019,20.00
D1317J-BUSINESS SUPPORT,Travel/Subsistence,OYSTER AUTO-TOP UP,19-Apr-2019,20.00
D1317J-BUSINESS SUPPORT,Travel/Subsistence,OYSTER AUTO-TOP UP,19-Apr-2019,60.00
D1229J-SPECIALIST YOUTH,Travel/Subsistence,OYSTER AUTO-TOP UP,20-Apr-2019,20.00
D1229J-SPECIALIST YOUTH,Travel/Subsistence,OYSTER AUTO-TOP UP,20-Apr-2019,60.00
D1317J-BUSINESS SUPPORT,Travel/Subsistence,OYSTER AUTO-TOP UP,20-Apr-2019,60.00
D1317J-BUSINESS SUPPORT,Travel/Subsistence,OYSTER AUTO-TOP UP,20-Apr-2019,20.00
D1317J-BUSINESS SUPPORT,Travel/Subsistence,OYSTER AUTO-TOP UP,20-Apr-2019,20.00
D1317J-BUSINESS SUPPORT,Travel/Subsistence,OYSTER AUTO-TOP UP,20-Apr-2019,20.00
D1317J-BUSINESS SUPPORT,Travel/Subsistence,OYSTER AUTO-TOP UP,20-Apr-2019,20.00
D1317J-BUSINESS SUPPORT,Travel/Subsistence,OYSTER AUTO-TOP UP,20-Apr-2019,20.00
D1317J-BUSINESS SUPPORT,Travel/Subsistence,OYSTER AUTO-TOP UP,20-Apr-2019,20.00
D1317J-BUSINESS SUPPORT,Travel/Subsistence,OYSTER AUTO-TOP UP,20-Apr-2019,40.00
D1365J-PERFORMANCE,IT Software,ADOBE  CREATIVE CLOUD,20-Apr-2019,141.60
D1317J-BUSINESS SUPPORT,Travel/Subsistence,OYSTER AUTO-TOP UP,21-Apr-2019,20.00
D1317J-BUSINESS SUPPORT,Travel/Subsistence,OYSTER AUTO-TOP UP,21-Apr-2019,20.00
D1317J-BUSINESS SUPPORT,Travel/Subsistence,OYSTER AUTO-TOP UP,21-Apr-2019,20.00
D1317J-BUSINESS SUPPORT,Travel/Subsistence,OYSTER AUTO-TOP UP,21-Apr-2019,40.00
D1841J-HOUSING MANAGEMENT SERVICES,Facilities-Market Research,Amazon Prime,21-Apr-2019,7.99
D1292J-BEREAVEMENT SERVICES,Catering Equipment,AMZN Mktp UK,22-Apr-2019,5.99
D1104J-DAY SERVICES,Catering Food & Drink,ICELAND,23-Apr-2019,10.50
D1145J-LIBRARIES & ARCHIVES,Education-Library Books,AMAZON.CO.UK,23-Apr-2019,29.26
D1145J-LIBRARIES & ARCHIVES,Building-Timber,B & Q 1009,23-Apr-2019,3.00
D1145J-LIBRARIES & ARCHIVES,Education-Other,P S NEWS,23-Apr-2019,375.30
D1174J-PUBLIC HEALTH - ADULTS,Public Transport,VIRGIN TRAINS,23-Apr-2019,88.00
D1229J-SPECIALIST YOUTH,Catering Food & Drink,TESCO STORE 2143,23-Apr-2019,100.00
D1294J-PARKS & LEISURE SERVICES,Financial Services,LBL NOT PRESENT,23-Apr-2019,25.00
D1294J-PARKS & LEISURE SERVICES,Building-Timber,SCREWFIX BRIXTON,23-Apr-2019,57.96
D1294J-PARKS & LEISURE SERVICES,Domestic Goods-Other,LONDON GASES,23-Apr-2019,107.50
D1294J-PARKS & LEISURE SERVICES,Utilities,CASTLE WATER,23-Apr-2019,40.12
D1317J-BUSINESS SUPPORT,Education-Other,PARTRIDGE & PRINT,23-Apr-2019,198.00
D1317J-BUSINESS SUPPORT,Travel/Subsistence,TRAINLINE,23-Apr-2019,73.78
D1325J-LEGAL SERVICES,Stationery,AMZNMktplace,23-Apr-2019,8.99
D1325J-LEGAL SERVICES,Stationery,Amazon.co.uk,23-Apr-2019,31.20
D1345J-FINANCIAL PLANNING AND MANAGEMENT,Domestic Goods-Other,WWW.ARGOS.CO.UK,23-Apr-2019,172.93
D1117J-SUBSTANCE MISUSE,Financial Services,MORLEY COLLEGE LTD,24-Apr-2019,255.00
D1145J-LIBRARIES & ARCHIVES,Education-Library Books,Amazon.co.uk,24-Apr-2019,28.81
D1145J-LIBRARIES & ARCHIVES,Education-Library Books,AMZN MKTP UK,24-Apr-2019,8.65
D1292J-BEREAVEMENT SERVICES,Cemetery & Crematorium,AMZN Mktp UK,24-Apr-2019,33.72
D1292J-BEREAVEMENT SERVICES,IT Office Equipment,AMZNMktplace,24-Apr-2019,59.99
D1292J-BEREAVEMENT SERVICES,Stationery,AMZNMktplace,24-Apr-2019,11.58
D1292J-BEREAVEMENT SERVICES,IT Office Equipment,AMZNMktplace,24-Apr-2019,29.29
D1294J-PARKS & LEISURE SERVICES,Domestic Goods-Other,TLC SOUTHERN,24-Apr-2019,152.40
D1294J-PARKS & LEISURE SERVICES,Consultancy-Business,ARMOUR LOCK AND SAFE,24-Apr-2019,65.00
D1317J-BUSINESS SUPPORT,Haulage,www.anyvan.com,24-Apr-2019,111.00
D1317J-BUSINESS SUPPORT,Facilities-Market Research,Amazon Prime,24-Apr-2019,0.99
D1317J-BUSINESS SUPPORT,Arts & Leisure Services,KCJONESCONF,24-Apr-2019,140.00
D1317J-BUSINESS SUPPORT,Consultancy-Business,KCJONESCONF,24-Apr-2019,140.00
D1317J-BUSINESS SUPPORT,Domestic Goods-Other,WWW.ARGOS.CO.UK,24-Apr-2019,235.93
D1317J-BUSINESS SUPPORT,Travel/Subsistence,OYSTER AUTO-TOP UP,24-Apr-2019,20.00
D1317J-BUSINESS SUPPORT,Domestic Goods-Other,AMZNMktplace,24-Apr-2019,53.98
D1317J-BUSINESS SUPPORT,Travel/Subsistence,OYSTER ONLINE,24-Apr-2019,30.00
D1317J-BUSINESS SUPPORT,Facilities-Advertising,EXPRESS NEWS,24-Apr-2019,40.00
D1317J-BUSINESS SUPPORT,Travel/Subsistence,OYSTER ONLINE,24-Apr-2019,-25.00
D1321J-DEMOCRATIC SERVICES,Catering Food & Drink,TESCO STORE 2143,24-Apr-2019,10.50
D1321J-DEMOCRATIC SERVICES,Catering Food & Drink,SAINSBURY'S S/MKTS,24-Apr-2019,24.00
D1321J-DEMOCRATIC SERVICES,Financial Services-Grants,PAYPAL,24-Apr-2019,27.99
D1321J-DEMOCRATIC SERVICES,Domestic Goods-Other,WWW.FLYINGCOLOURS.ORG,24-Apr-2019,75.54
D1324J-INTERNAL AUDIT,Travel/Subsistence,VIRGIN TRAINS,24-Apr-2019,34.00
D1340J-CONTRACT SERVICES,Education-Other,PROFEX PUBLISHING LTD,24-Apr-2019,76.00
D1841J-HOUSING MANAGEMENT SERVICES,Building-General,THE TRADE HUB,24-Apr-2019,15.96
D1117J-SUBSTANCE MISUSE,Sports Equipment,YOGA MATTERS LTD,25-Apr-2019,158.50
D1145J-LIBRARIES & ARCHIVES,Education-Library Books,AMZNMktplace,25-Apr-2019,19.70
D1145J-LIBRARIES & ARCHIVES,Books/Publications/Resources,ECONOMIST SUBSCRIPTION,25-Apr-2019,145.00
D1145J-LIBRARIES & ARCHIVES,Education-Library Books,AMZN Mktp UK,25-Apr-2019,5.50
D1220J-HOUSING OPTIONS - GF,Furniture-Domestic Furniture,WWW.IKEA.COM,25-Apr-2019,199.00
D1229J-SPECIALIST YOUTH,Travel/Subsistence,OYSTER AUTO-TOP UP,25-Apr-2019,60.00
D1292J-BEREAVEMENT SERVICES,Cemetery & Crematorium,AMZNMktplace,25-Apr-2019,30.83
D1292J-BEREAVEMENT SERVICES,Stationery,AMZN MKTP UK,25-Apr-2019,16.17
D1293J-EVENTS & FILMING,Building-Tools,WWW.YAHIRE.COM,25-Apr-2019,"2,400.00"
D1294J-PARKS & LEISURE SERVICES,Domestic Goods-Other,CURRYS SUPERSTORE,25-Apr-2019,175.47
D1294J-PARKS & LEISURE SERVICES,Building-Timber,B & Q 1009,25-Apr-2019,52.44
D1294J-PARKS & LEISURE SERVICES,Building-General,SCREWFIX DIRECT,25-Apr-2019,110.57
D1295J-PARKING OPERATIONS,Travel/Subsistence,OYSTER ONLINE,25-Apr-2019,150.00
D1317J-BUSINESS SUPPORT,Travel/Subsistence,OYSTER AUTO-TOP UP,25-Apr-2019,100.00
D1317J-BUSINESS SUPPORT,Travel/Subsistence,OYSTER ONLINE,25-Apr-2019,60.00
D1317J-BUSINESS SUPPORT,Travel/Subsistence,OYSTER ONLINE,25-Apr-2019,55.00
D1317J-BUSINESS SUPPORT,Accommodation,CITI ROOMS LUTON MK LTD,25-Apr-2019,666.00
D1317J-BUSINESS SUPPORT,Travel/Subsistence,OYSTER AUTO-TOP UP,25-Apr-2019,20.00
D1317J-BUSINESS SUPPORT,Travel/Subsistence,OYSTER AUTO-TOP UP,25-Apr-2019,40.00
D1317J-BUSINESS SUPPORT,Catering Food & Drink,TESCO STORES 5145,25-Apr-2019,200.00
D1317J-BUSINESS SUPPORT,Accommodation,EXPRESS BY HOLIDAY INN,25-Apr-2019,137.00
D1317J-BUSINESS SUPPORT,Facilities-Advertising,WH SMITH,25-Apr-2019,12.99
D1317J-BUSINESS SUPPORT,Travel/Subsistence,OYSTER AUTO-TOP UP,25-Apr-2019,20.00
D1317J-BUSINESS SUPPORT,Travel/Subsistence,OYSTER AUTO-TOP UP,25-Apr-2019,40.00
D1317J-BUSINESS SUPPORT,Travel/Subsistence,OYSTER AUTO-TOP UP,25-Apr-2019,20.00
D1317J-BUSINESS SUPPORT,Accommodation,CITI ROOMS LUTON MK LTD,25-Apr-2019,666.00
D1317J-BUSINESS SUPPORT,Travel/Subsistence,OYSTER AUTO-TOP UP,25-Apr-2019,20.00
D1317J-BUSINESS SUPPORT,Stationery,WH SMITH,25-Apr-2019,23.98
D1317J-BUSINESS SUPPORT,Financial Services,GEN REGISTER OFFICE,25-Apr-2019,45.25
D1325J-LEGAL SERVICES,Travel/Subsistence,LUL TICKET MACHINE,25-Apr-2019,50.00
D1365J-PERFORMANCE,Facilities-Design & Photography,CANVA* FOR WORK MONTH,25-Apr-2019,10.37
D1841J-HOUSING MANAGEMENT SERVICES,Travel/Subsistence,LUL TICKET MACHINE,25-Apr-2019,85.00
D1104J-DAY SERVICES,Catering Food & Drink,WWW.ICELAND.CO.UK,26-Apr-2019,162.46
D1104J-DAY SERVICES,Domestic Goods-Other,CURRYS SUPERSTORE,26-Apr-2019,239.00
D1145J-LIBRARIES & ARCHIVES,Education-Library Books,Amazon.co.uk,26-Apr-2019,8.91
D1229J-SPECIALIST YOUTH,Travel/Subsistence,OYSTER AUTO-TOP UP,26-Apr-2019,20.00
D1294J-PARKS & LEISURE SERVICES,Domestic Goods-Other,TERRYS ALL LOCKS,26-Apr-2019,50.00
D1317J-BUSINESS SUPPORT,Taxi Fares,SW9 TO CR7,26-Apr-2019,30.00
D1317J-BUSINESS SUPPORT,Travel/Subsistence,OYSTER AUTO-TOP UP,26-Apr-2019,40.00
D1317J-BUSINESS SUPPORT,Domestic Goods-Other,AMZNMKTPLACE AMAZON.CO.UK,26-Apr-2019,34.00
D1317J-BUSINESS SUPPORT,Financial Services-Grants,WWW.CORAM.ORG.UK,26-Apr-2019,359.10
D1317J-BUSINESS SUPPORT,Travel/Subsistence,OYSTER AUTO-TOP UP,26-Apr-2019,20.00
D1317J-BUSINESS SUPPORT,Travel/Subsistence,OYSTER AUTO-TOP UP,26-Apr-2019,40.00
D1317J-BUSINESS SUPPORT,Travel/Subsistence,OYSTER AUTO-TOP UP,26-Apr-2019,20.00
D1317J-BUSINESS SUPPORT,Travel/Subsistence,OYSTER AUTO-TOP UP,26-Apr-2019,40.00
D1317J-BUSINESS SUPPORT,Domestic Goods-Other,WWW.ARGOS.CO.UK,26-Apr-2019,579.98
D1317J-BUSINESS SUPPORT,Financial Services,LONDON BRGH OF LAMBETH,26-Apr-2019,63.00
D1317J-BUSINESS SUPPORT,Travel/Subsistence,OYSTER ONLINE,26-Apr-2019,30.00
D1317J-BUSINESS SUPPORT,Catering Food & Drink,TESCO STORE 2143,26-Apr-2019,50.00
D1317J-BUSINESS SUPPORT,Taxi Fares,CIVIC TO SE11,26-Apr-2019,25.00
D1317J-BUSINESS SUPPORT,Travel/Subsistence,OYSTER AUTO-TOP UP,26-Apr-2019,40.00
D1345J-FINANCIAL PLANNING AND MANAGEMENT,Financial Services,LAND REGISTRY,26-Apr-2019,9.00
D1294J-PARKS & LEISURE SERVICES,Horticultural-Other,WWW.WILDSEED.CO.UK,27-Apr-2019,98.80
D1317J-BUSINESS SUPPORT,Travel/Subsistence,OYSTER AUTO-TOP UP,27-Apr-2019,20.00
D1317J-BUSINESS SUPPORT,Travel/Subsistence,OYSTER AUTO-TOP UP,27-Apr-2019,40.00
D1317J-BUSINESS SUPPORT,Travel/Subsistence,OYSTER AUTO-TOP UP,27-Apr-2019,20.00
D1317J-BUSINESS SUPPORT,Travel/Subsistence,OYSTER AUTO-TOP UP,27-Apr-2019,40.00
D1317J-BUSINESS SUPPORT,Travel/Subsistence,OYSTER AUTO-TOP UP,27-Apr-2019,20.00
D1317J-BUSINESS SUPPORT,Travel/Subsistence,OYSTER AUTO-TOP UP,27-Apr-2019,20.00
D1317J-BUSINESS SUPPORT,Travel/Subsistence,OYSTER AUTO-TOP UP,27-Apr-2019,20.00
D1104J-DAY SERVICES,Catering Food & Drink,LIDL GB LONDON,28-Apr-2019,108.11
D1117J-SUBSTANCE MISUSE,Education-Library Books,AMZN Mktp UK,28-Apr-2019,18.46
D1294J-PARKS & LEISURE SERVICES,Building-Timber,SCREWFIX BRIXTON,28-Apr-2019,247.76
D1317J-BUSINESS SUPPORT,Travel/Subsistence,OYSTER AUTO-TOP UP,28-Apr-2019,20.00
D1317J-BUSINESS SUPPORT,Travel/Subsistence,OYSTER AUTO-TOP UP,28-Apr-2019,40.00
D1317J-BUSINESS SUPPORT,Travel/Subsistence,OYSTER AUTO-TOP UP,28-Apr-2019,20.00
D1317J-BUSINESS SUPPORT,Travel/Subsistence,OYSTER AUTO-TOP UP,28-Apr-2019,20.00
D1317J-BUSINESS SUPPORT,Travel/Subsistence,OYSTER AUTO-TOP UP,28-Apr-2019,40.00
D1317J-BUSINESS SUPPORT,Travel/Subsistence,OYSTER AUTO-TOP UP,28-Apr-2019,60.00
D1317J-BUSINESS SUPPORT,Domestic Goods-Other,AMZNMKTPLACE AMAZON.CO.UK,28-Apr-2019,89.82
D1100J-ADULTS WITH MENTAL HEALTH NEEDS,Travel/Subsistence,SE BRIXTON TO,29-Apr-2019,80.70
D1104J-DAY SERVICES,Catering Food & Drink,ICELAND,29-Apr-2019,43.00
D1104J-DAY SERVICES,Catering Food & Drink,SEABREAZE FISH MONGERS,29-Apr-2019,60.00
D1145J-LIBRARIES & ARCHIVES,Education-Other,Amazon Prime,29-Apr-2019,-7.99
D1145J-LIBRARIES & ARCHIVES,Education-Other,Amazon Prime,29-Apr-2019,-7.99
D1145J-LIBRARIES & ARCHIVES,Education-Library Books,Amazon.co.uk,29-Apr-2019,11.48
D1145J-LIBRARIES & ARCHIVES,Facilities-Market Research,Amazon Prime,29-Apr-2019,-7.99
D1145J-LIBRARIES & ARCHIVES,Education-Other,Amazon Prime,29-Apr-2019,-7.99
D1145J-LIBRARIES & ARCHIVES,Education-Other,AMAZON PRIME AMZN.CO.UK/P,29-Apr-2019,-7.99
D1294J-PARKS & LEISURE SERVICES,Building-Timber,SCREWFIX BRIXTON,29-Apr-2019,149.95
D1294J-PARKS & LEISURE SERVICES,Building-General,SCREWFIX DIRECT,29-Apr-2019,231.82
D1317J-BUSINESS SUPPORT,Travel/Subsistence,OYSTER ONLINE,29-Apr-2019,30.00
D1317J-BUSINESS SUPPORT,Financial Services,LONDON BRGH OF LAMBETH,29-Apr-2019,52.00
D1317J-BUSINESS SUPPORT,Accommodation,PREMIER INN 44536865,29-Apr-2019,94.00
D1317J-BUSINESS SUPPORT,Travel/Subsistence,OYSTER ONLINE,29-Apr-2019,30.00
D1317J-BUSINESS SUPPORT,Travel/Subsistence,LUL TICKET MACHINE,29-Apr-2019,50.00
D1317J-BUSINESS SUPPORT,Financial Services,HM PASSPORT OFFICE,29-Apr-2019,143.50
D1317J-BUSINESS SUPPORT,Travel/Subsistence,OYSTER AUTO-TOP UP,29-Apr-2019,20.00
D1317J-BUSINESS SUPPORT,Travel/Subsistence,TRAINLINE,29-Apr-2019,186.51
D1321J-DEMOCRATIC SERVICES,Catering Food & Drink,MARKS&SPENCER PLC SACA,29-Apr-2019,38.95
D1841J-HOUSING MANAGEMENT SERVICES,Consultancy-Business,FORTRESS MASTER LOCKSMITH,29-Apr-2019,26.85
D1100J-ADULTS WITH MENTAL HEALTH NEEDS,Legal Services-Other,HMCOURTS-SERVICE.G,30-Apr-2019,300.00
D1104J-DAY SERVICES,Catering Food & Drink,SAINSBURY'S,30-Apr-2019,7.70
D1145J-LIBRARIES & ARCHIVES,Education-Library Books,AMZN MKTP UK,30-Apr-2019,4.95
D1145J-LIBRARIES & ARCHIVES,Books/Publications/Resources,Sainsburys Bank CASH,30-Apr-2019,170.00
D1220J-HOUSING OPTIONS - GF,Furniture-Domestic Furniture,WWW.IKEA.COM,30-Apr-2019,715.00
D1220J-HOUSING OPTIONS - GF,Furniture-Domestic Furniture,WWW.JOHNLEWIS.COM,30-Apr-2019,82.95
D1226J-PLANNING,Travel/Subsistence,LUL TICKET MACHINE,30-Apr-2019,90.00
D1293J-EVENTS & FILMING,Healthcare-Drugs,KINGSHIELD PHARMACY,30-Apr-2019,3.35
D1293J-EVENTS & FILMING,Facilities-Advertising,WH SMITH,30-Apr-2019,11.99
D1294J-PARKS & LEISURE SERVICES,Building-Timber,SELCO TRADING CTR,30-Apr-2019,113.99
D1294J-PARKS & LEISURE SERVICES,Building-Timber,SELCO TRADING CTR,30-Apr-2019,192.10
D1295J-PARKING OPERATIONS,Mail Services-Postage,THE POST OFFICE,30-Apr-2019,667.36
D1317J-BUSINESS SUPPORT,Organised Activities,LITTLE ANGELS CONTACT,30-Apr-2019,201.00
D1317J-BUSINESS SUPPORT,Facilities-Advertising,FACEBK UBQH3LNCE2,30-Apr-2019,300.00
D1317J-BUSINESS SUPPORT,Travel/Subsistence,OYSTER ONLINE,30-Apr-2019,60.00
D1317J-BUSINESS SUPPORT,Catering Food & Drink,HOUR GLASS,30-Apr-2019,99.00
D1317J-BUSINESS SUPPORT,Facilities-Advertising,EXPRESS NEWS,30-Apr-2019,20.00
D1317J-BUSINESS SUPPORT,Travel/Subsistence,OYSTER ONLINE,30-Apr-2019,30.00
D1317J-BUSINESS SUPPORT,Travel/Subsistence,OYSTER AUTO-TOP UP,30-Apr-2019,20.00
D1317J-BUSINESS SUPPORT,Catering Food & Drink,LOW COST SUPERMARKET,30-Apr-2019,15.00
D1343J-DIRECTOR OF FINANCE,IT Services,PARTICIPANT UK LTD,30-Apr-2019,473.10
D1841J-HOUSING MANAGEMENT SERVICES,Travel/Subsistence,LUL TICKET MACHINE,30-Apr-2019,60.00
D1145J-LIBRARIES & ARCHIVES,Education-Library Books,AMAZON.CO.UK,01-May-2019,9.26
D1145J-LIBRARIES & ARCHIVES,Education-Library Books,Amazon.co.uk,01-May-2019,10.88
D1145J-LIBRARIES & ARCHIVES,Books/Publications/Resources,CASH ADVANCE FEE,01-May-2019,5.02
D1293J-EVENTS & FILMING,Facilities-Advertising,WH SMITH,01-May-2019,4.98
D1304J-HOUSING BENEFIT,Legal Services-Other,HMCOURTS-SERVICE.G,01-May-2019,"2,444.00"
D1317J-BUSINESS SUPPORT,Facilities-Advertising,EXPRESS NEWS,01-May-2019,30.25
D1317J-BUSINESS SUPPORT,Travel/Subsistence,OYSTER AUTO-TOP UP,01-May-2019,40.00
D1317J-BUSINESS SUPPORT,Domestic Goods-Other,WWW.ARGOS.CO.UK,01-May-2019,422.92
D1317J-BUSINESS SUPPORT,Domestic Goods-Other,WWW.ARGOS.CO.UK,01-May-2019,585.94
D1317J-BUSINESS SUPPORT,Travel/Subsistence,OYSTER AUTO-TOP UP,01-May-2019,20.00
D1317J-BUSINESS SUPPORT,Domestic Goods-Other,WWW.ARGOS.CO.UK,01-May-2019,369.99
D1317J-BUSINESS SUPPORT,Travel/Subsistence,LUL TICKET MACHINE,01-May-2019,15.00
D1317J-BUSINESS SUPPORT,Travel/Subsistence,OYSTER ONLINE,01-May-2019,20.00
D1317J-BUSINESS SUPPORT,Travel/Subsistence,OYSTER AUTO-TOP UP,01-May-2019,40.00
D1317J-BUSINESS SUPPORT,Mail Services-Postage,THE POST OFFICE,01-May-2019,131.00
D1317J-BUSINESS SUPPORT,Facilities-Advertising,EXPRESS NEWS,01-May-2019,50.00
D1317J-BUSINESS SUPPORT,Facilities-Market Research,Amazon Prime,01-May-2019,7.99
D1317J-BUSINESS SUPPORT,Domestic Goods-Other,ARGOS RETAIL GROUP,01-May-2019,48.00
D1317J-BUSINESS SUPPORT,Facilities-Storage,WWW.SAFESTORE.CO.UK,01-May-2019,556.91
D1317J-BUSINESS SUPPORT,Travel/Subsistence,OYSTER AUTO-TOP UP,01-May-2019,20.00
D1317J-BUSINESS SUPPORT,Travel/Subsistence,OYSTER AUTO-TOP UP,01-May-2019,20.00
D1317J-BUSINESS SUPPORT,Travel/Subsistence,OYSTER AUTO-TOP UP,01-May-2019,60.00
D1317J-BUSINESS SUPPORT,Travel/Subsistence,OYSTER AUTO-TOP UP,01-May-2019,40.00
D1317J-BUSINESS SUPPORT,Catering Food & Drink,BAGEL WORLD,01-May-2019,68.50
D1321J-DEMOCRATIC SERVICES,Travel/Subsistence,WWW.SOUTHWESTTRAINS.CO,01-May-2019,70.50
D1365J-PERFORMANCE,IT Services,GOOGLE,01-May-2019,16.34
D1365J-PERFORMANCE,IT Services,NATIONBUILDER,01-May-2019,188.93
D1104J-DAY SERVICES,Catering Food & Drink,TESCO STORE 2764,02-May-2019,34.68
D1104J-DAY SERVICES,Catering Food & Drink,TESCO STORE 2764,02-May-2019,135.32
D1104J-DAY SERVICES,Catering Food & Drink,TESCO STORE 2764,02-May-2019,149.59
D1145J-LIBRARIES & ARCHIVES,Education-Library Books,AMZN MKTP UK,02-May-2019,21.98
D1145J-LIBRARIES & ARCHIVES,Catering Food & Drink,LIDL GB LONDON,02-May-2019,0.52
D1145J-LIBRARIES & ARCHIVES,Education-Library Books,AMZNMktplace,02-May-2019,8.04
D1145J-LIBRARIES & ARCHIVES,Education-Library Books,Amazon.co.uk,02-May-2019,8.32
D1145J-LIBRARIES & ARCHIVES,Education-Other,WWW.IRONMONGERYDIRECT.,02-May-2019,193.20
D1145J-LIBRARIES & ARCHIVES,Domestic Goods-Other,ARGOS LTD,02-May-2019,10.49
D1293J-EVENTS & FILMING,Domestic Goods-Other,ID AND C UK LTD,02-May-2019,348.00
D1293J-EVENTS & FILMING,Domestic Goods-Other,AMZNMktplace,02-May-2019,19.76
D1293J-EVENTS & FILMING,Domestic Goods-Other,AMZNMktplace,02-May-2019,175.36
D1293J-EVENTS & FILMING,IT Software,ADOBE  CREATIVE CLOUD,02-May-2019,83.24
D1294J-PARKS & LEISURE SERVICES,Utilities,THE ELECTRIC HIGHWAY C,02-May-2019,2.84
D1294J-PARKS & LEISURE SERVICES,Consultancy-Business,ARMOUR LOCK AND SAFE,02-May-2019,18.00
D1294J-PARKS & LEISURE SERVICES,Consultancy-Business,ARMOUR LOCK AND SAFE,02-May-2019,61.00
D1294J-PARKS & LEISURE SERVICES,Travel/Subsistence,THE NEC,02-May-2019,16.00
D1317J-BUSINESS SUPPORT,Financial Services,GEN REGISTER OFFICE,02-May-2019,-108.75
D1317J-BUSINESS SUPPORT,Travel/Subsistence,OYSTER AUTO-TOP UP,02-May-2019,80.00
D1317J-BUSINESS SUPPORT,Travel/Subsistence,OYSTER ONLINE,02-May-2019,60.00
D1317J-BUSINESS SUPPORT,Travel/Subsistence,OYSTER AUTO-TOP UP,02-May-2019,20.00
D1317J-BUSINESS SUPPORT,Travel/Subsistence,OYSTER AUTO-TOP UP,02-May-2019,20.00
D1317J-BUSINESS SUPPORT,Financial Services,GEN REGISTER OFFICE,02-May-2019,115.25
D1317J-BUSINESS SUPPORT,Furniture-Domestic Furniture,WWW.SCS.CO.UK,02-May-2019,358.00
D1317J-BUSINESS SUPPORT,Accommodation,CITY GROUP APARTMENTS,02-May-2019,608.00
D1317J-BUSINESS SUPPORT,Travel/Subsistence,OYSTER AUTO-TOP UP,02-May-2019,60.00
D1317J-BUSINESS SUPPORT,Travel/Subsistence,OYSTER AUTO-TOP UP,02-May-2019,20.00
D1317J-BUSINESS SUPPORT,Travel/Subsistence,OYSTER AUTO-TOP UP,02-May-2019,20.00
D1317J-BUSINESS SUPPORT,Facilities-Market Research,GOOGLE,02-May-2019,64.31
D1317J-BUSINESS SUPPORT,Travel/Subsistence,OYSTER ONLINE,02-May-2019,30.00
D1317J-BUSINESS SUPPORT,Travel/Subsistence,OYSTER ONLINE,02-May-2019,5.00
D1145J-LIBRARIES & ARCHIVES,Catering Food & Drink,PRIME STORE,03-May-2019,139.80
D1145J-LIBRARIES & ARCHIVES,Catering Food & Drink,PRIME STORE,03-May-2019,146.80
D1145J-LIBRARIES & ARCHIVES,Education-Library Books,AMZNMktplace,03-May-2019,25.27
D1145J-LIBRARIES & ARCHIVES,Catering Food & Drink,PRIME STORE,03-May-2019,142.40
D1145J-LIBRARIES & ARCHIVES,Travel/Subsistence,OYSTER AUTO-TOP UP,03-May-2019,20.00
D1293J-EVENTS & FILMING,Education-Library Books,AMZN Mktp UK,03-May-2019,38.00
D1293J-EVENTS & FILMING,Travel/Subsistence,OYSTER AUTO-TOP UP,03-May-2019,40.00
D1293J-EVENTS & FILMING,Domestic Goods-Other,AMZNMktplace,03-May-2019,107.33
D1294J-PARKS & LEISURE SERVICES,Building-Timber,WWW.SELCOBW.COM,03-May-2019,223.16
D1294J-PARKS & LEISURE SERVICES,Consultancy-Business,ARMOUR LOCK AND SAFE,03-May-2019,45.00
D1304J-HOUSING BENEFIT,Education-Library Books,AMZN MKTP UK,03-May-2019,33.99
D1304J-HOUSING BENEFIT,Domestic Goods-Other,AMZNMKTPLACE AMAZON.CO.UK,03-May-2019,28.14
D1317J-BUSINESS SUPPORT,Travel/Subsistence,OYSTER ONLINE,03-May-2019,60.00
D1317J-BUSINESS SUPPORT,Travel/Subsistence,OYSTER AUTO-TOP UP,03-May-2019,20.00
D1317J-BUSINESS SUPPORT,Haulage,www.anyvan.com,03-May-2019,119.00
D1317J-BUSINESS SUPPORT,Travel/Subsistence,OYSTER AUTO-TOP UP,03-May-2019,60.00
D1317J-BUSINESS SUPPORT,Travel/Subsistence,TFL OYST PHOTOCARD,03-May-2019,20.00
D1317J-BUSINESS SUPPORT,Travel/Subsistence,OYSTER AUTO-TOP UP,03-May-2019,80.00
D1317J-BUSINESS SUPPORT,Domestic Goods-Other,WWW.ARGOS.CO.UK,03-May-2019,"1,898.84"
D1317J-BUSINESS SUPPORT,Domestic Goods-Other,ARGOS RETAIL GROUP,03-May-2019,50.00
D1317J-BUSINESS SUPPORT,Travel/Subsistence,OYSTER AUTO-TOP UP,03-May-2019,20.00
D1317J-BUSINESS SUPPORT,Taxi Fares,ALPHA CARS CRAWLEY,03-May-2019,59.00
D1317J-BUSINESS SUPPORT,Travel/Subsistence,OYSTER AUTO-TOP UP,03-May-2019,60.00
D1317J-BUSINESS SUPPORT,Travel/Subsistence,OYSTER AUTO-TOP UP,03-May-2019,20.00
D1317J-BUSINESS SUPPORT,Catering Food & Drink,BAGEL WORLD,03-May-2019,84.50
D1317J-BUSINESS SUPPORT,Clothing-Children/Adults,SCHOOL WEAR UNITED LIMITE,03-May-2019,175.50
D1317J-BUSINESS SUPPORT,Travel/Subsistence,OYSTER AUTO-TOP UP,03-May-2019,60.00
D1317J-BUSINESS SUPPORT,Catering Food & Drink,MARKS&SPENCER PLC,03-May-2019,33.50
D1317J-BUSINESS SUPPORT,Travel/Subsistence,OYSTER AUTO-TOP UP,03-May-2019,20.00
D1365J-PERFORMANCE,IT Services,NATIONBUILDER,03-May-2019,94.34
D1365J-PERFORMANCE,IT Services,AWS EMEA,03-May-2019,136.21
D1100J-ADULTS WITH MENTAL HEALTH NEEDS,Travel/Subsistence,OYSTER AUTO-TOP UP,04-May-2019,20.00
D1145J-LIBRARIES & ARCHIVES,Education-Library Books,AMZNMktplace,04-May-2019,9.13
D1145J-LIBRARIES & ARCHIVES,Books/Publications/Resources,HERNE HILL LONDIS,04-May-2019,308.80
D1229J-SPECIALIST YOUTH,Travel/Subsistence,OYSTER AUTO-TOP UP,04-May-2019,20.00
D1229J-SPECIALIST YOUTH,Travel/Subsistence,OYSTER AUTO-TOP UP,04-May-2019,20.00
D1293J-EVENTS & FILMING,Education-Library Books,AMZN Mktp UK,04-May-2019,15.56
D1293J-EVENTS & FILMING,Domestic Goods-Other,AMAZON.CO.UK,04-May-2019,21.98
D1294J-PARKS & LEISURE SERVICES,Professional & Advisory Services,WWW.ICFM.COM,04-May-2019,60.00
D1304J-HOUSING BENEFIT,Education-Library Books,AMZN Mktp UK,04-May-2019,20.47
D1317J-BUSINESS SUPPORT,Travel/Subsistence,OYSTER AUTO-TOP UP,04-May-2019,60.00
D1317J-BUSINESS SUPPORT,Travel/Subsistence,OYSTER AUTO-TOP UP,04-May-2019,20.00
D1317J-BUSINESS SUPPORT,Travel/Subsistence,OYSTER AUTO-TOP UP,04-May-2019,20.00
D1317J-BUSINESS SUPPORT,Travel/Subsistence,OYSTER AUTO-TOP UP,04-May-2019,80.00
D1317J-BUSINESS SUPPORT,Travel/Subsistence,OYSTER AUTO-TOP UP,04-May-2019,20.00
D1317J-BUSINESS SUPPORT,Travel/Subsistence,OYSTER AUTO-TOP UP,04-May-2019,20.00
D1317J-BUSINESS SUPPORT,Travel/Subsistence,OYSTER AUTO-TOP UP,04-May-2019,40.00
D1317J-BUSINESS SUPPORT,Travel/Subsistence,OYSTER AUTO-TOP UP,04-May-2019,60.00
D1365J-PERFORMANCE,IT Services,PANTHEON SYSTEMS INC,04-May-2019,27.75
D1145J-LIBRARIES & ARCHIVES,Travel/Subsistence,OYSTER AUTO-TOP UP,05-May-2019,40.00
D1145J-LIBRARIES & ARCHIVES,Travel/Subsistence,OYSTER AUTO-TOP UP,05-May-2019,40.00
D1229J-SPECIALIST YOUTH,Travel/Subsistence,OYSTER AUTO-TOP UP,05-May-2019,20.00
D1229J-SPECIALIST YOUTH,Furniture-Office Furniture,AMZNMKTPLACE AMAZON.CO.UK,05-May-2019,39.00
D1293J-EVENTS & FILMING,Education-Library Books,AMZN Mktp UK,05-May-2019,3.89
D1294J-PARKS & LEISURE SERVICES,Vehicle Parts,WWW.NEWTONTRAILERS.COM,05-May-2019,66.10
D1317J-BUSINESS SUPPORT,Travel/Subsistence,OYSTER AUTO-TOP UP,05-May-2019,20.00
D1317J-BUSINESS SUPPORT,Travel/Subsistence,OYSTER AUTO-TOP UP,05-May-2019,20.00
D1317J-BUSINESS SUPPORT,Travel/Subsistence,OYSTER AUTO-TOP UP,05-May-2019,20.00
D1317J-BUSINESS SUPPORT,Travel/Subsistence,OYSTER AUTO-TOP UP,05-May-2019,20.00
D1317J-BUSINESS SUPPORT,Travel/Subsistence,OYSTER AUTO-TOP UP,05-May-2019,20.00
D1317J-BUSINESS SUPPORT,Travel/Subsistence,OYSTER AUTO-TOP UP,05-May-2019,40.00
D1317J-BUSINESS SUPPORT,Travel/Subsistence,OYSTER AUTO-TOP UP,05-May-2019,20.00
D1317J-BUSINESS SUPPORT,Travel/Subsistence,OYSTER AUTO-TOP UP,05-May-2019,20.00
D1841J-HOUSING MANAGEMENT SERVICES,Facilities-Market Research,AMAZON PRIME,05-May-2019,7.99
D1145J-LIBRARIES & ARCHIVES,Education-Library Books,AMAZON.CO.UK,06-May-2019,23.62
D1293J-EVENTS & FILMING,Education-Library Books,AMZN Mktp UK,06-May-2019,76.00
D1317J-BUSINESS SUPPORT,Travel/Subsistence,OYSTER AUTO-TOP UP,06-May-2019,20.00
D1317J-BUSINESS SUPPORT,Domestic Goods-Other,WWW.ARGOS.CO.UK,06-May-2019,149.99
D1365J-PERFORMANCE,Facilities-Advertising,FACEBK 2KWETLE5M2,06-May-2019,34.52
D1100J-ADULTS WITH MENTAL HEALTH NEEDS,Legal Services-Other,HMCOURTS-SERVICE.G,07-May-2019,75.00
D1104J-DAY SERVICES,Catering Food & Drink,ICELAND,07-May-2019,30.90
D1104J-DAY SERVICES,Catering Food & Drink,LIDL GB LONDON,07-May-2019,6.99
D1117J-SUBSTANCE MISUSE,Catering Food & Drink,TESCO STORES 5999,07-May-2019,93.52
D1145J-LIBRARIES & ARCHIVES,Education-Library Books,AMZNMktplace,07-May-2019,2.70
D1145J-LIBRARIES & ARCHIVES,Education-Other,DXNS CREDIT CONTROL,07-May-2019,42.01
D1293J-EVENTS & FILMING,Education-Library Books,AMZN Mktp UK,07-May-2019,38.00
D1293J-EVENTS & FILMING,Consultancy-Business,Water Direct,07-May-2019,972.00
D1294J-PARKS & LEISURE SERVICES,Building-Timber,ACRE LANE BUILDERS,07-May-2019,72.12
D1294J-PARKS & LEISURE SERVICES,Domestic Goods-Other,AMZNMKTPLACE AMAZON.CO.UK,07-May-2019,62.40
D1294J-PARKS & LEISURE SERVICES,Building-Timber,B & Q 1037,07-May-2019,38.00
D1294J-PARKS & LEISURE SERVICES,Domestic Goods-Other,AMZNMKTPLACE AMAZON.CO.UK,07-May-2019,25.42
D1317J-BUSINESS SUPPORT,Domestic Goods-Other,WWW.ARGOS.CO.UK,07-May-2019,"1,167.92"
D1317J-BUSINESS SUPPORT,Travel/Subsistence,OYSTER ONLINE,07-May-2019,20.00
D1317J-BUSINESS SUPPORT,Catering Food & Drink,TESCO STORE 2143,07-May-2019,11.39
D1317J-BUSINESS SUPPORT,IT Software,DMN/CANOVAHALL,07-May-2019,54.22
D1317J-BUSINESS SUPPORT,Taxi Fares,ABC TAXIS (KENT) LTD,07-May-2019,20.00
D1317J-BUSINESS SUPPORT,Catering Food & Drink,Brixton Grocers,07-May-2019,5.00
D1317J-BUSINESS SUPPORT,Facilities-Advertising,FACEBK 5ADSPL6CE2,07-May-2019,300.00
D1317J-BUSINESS SUPPORT,Facilities-Market Research,Amazon Prime,07-May-2019,-7.99
D1317J-BUSINESS SUPPORT,Travel/Subsistence,OYSTER ONLINE,07-May-2019,60.00
D1321J-DEMOCRATIC SERVICES,Catering Food & Drink,WWW.DOMINOS.CO.UK,07-May-2019,62.97
D1345J-FINANCIAL PLANNING AND MANAGEMENT,Financial Services,LAND REGISTRY,07-May-2019,6.00
D1345J-FINANCIAL PLANNING AND MANAGEMENT,Travel/Subsistence,LONDON OVERGROUND SST,07-May-2019,50.00
D1345J-FINANCIAL PLANNING AND MANAGEMENT,Domestic Goods-Other,WWW.ARGOS.CO.UK,07-May-2019,122.95
D1841J-HOUSING MANAGEMENT SERVICES,Travel/Subsistence,LUL TICKET MACHINE,07-May-2019,30.00
D1841J-HOUSING MANAGEMENT SERVICES,Catering Food & Drink,BRIXTONHILL EXPRESS,07-May-2019,50.00
D1117J-SUBSTANCE MISUSE,Healthcare Equipment,BEAVER HEALTH CARE LTD,08-May-2019,598.92
D1117J-SUBSTANCE MISUSE,Consultancy-Business,CATERING24 LIMITED,08-May-2019,56.93
D1117J-SUBSTANCE MISUSE,Domestic Goods-Other,AMZNMktplace,08-May-2019,59.96
D1145J-LIBRARIES & ARCHIVES,Education-Library Books,AMZNMktplace,08-May-2019,30.99
D1145J-LIBRARIES & ARCHIVES,Education-Library Books,AMAZON.CO.UK,08-May-2019,5.68
D1148J-SCHOOL & EDUCATIONAL IMPROVEMENT SERVICE,Education-Library Books,THE BOOK PEOPLE,08-May-2019,246.59
D1220J-HOUSING OPTIONS - GF,Books/Publications/Resources,WHICH,08-May-2019,10.75
D1220J-HOUSING OPTIONS - GF,Furniture-Domestic Furniture,BRITISH HEART FOUNDATI,08-May-2019,185.00
D1293J-EVENTS & FILMING,IT Services,Dropbox XB55C77P1WS8,08-May-2019,7.99
D1293J-EVENTS & FILMING,Arts & Leisure Services,PP*THE LIVE INK CO,08-May-2019,"1,821.60"
D1293J-EVENTS & FILMING,Consultancy-Business,N/A,08-May-2019,-375.00
D1293J-EVENTS & FILMING,Building-Tools,WWW.YAHIRE.COM,08-May-2019,580.00
D1293J-EVENTS & FILMING,Education-Library Books,AMZN MKTP UK,08-May-2019,12.94
D1293J-EVENTS & FILMING,IT Software-Customised,ELEGANTTHEMES.COM,08-May-2019,84.67
D1294J-PARKS & LEISURE SERVICES,Domestic Goods-Other,AMZNMKTPLACE AMAZON.CO.UK,08-May-2019,8.29
D1294J-PARKS & LEISURE SERVICES,Consultancy-Business,FORTRESS MASTER LOCKSMITH,08-May-2019,3.50
D1294J-PARKS & LEISURE SERVICES,Building-General,TOOLSTATION LTD,08-May-2019,116.27
D1317J-BUSINESS SUPPORT,Facilities-Advertising,EXPRESS NEWS,08-May-2019,91.70
D1317J-BUSINESS SUPPORT,Facilities-Printing,Amazon.co.uk,08-May-2019,60.09
D1317J-BUSINESS SUPPORT,Taxi Fares,CR0 TO RM5,08-May-2019,280.00
D1317J-BUSINESS SUPPORT,Travel/Subsistence,AUTO TOP-UP ARREARS,08-May-2019,20.00
D1317J-BUSINESS SUPPORT,Facilities-Market Research,WAYFAIR #2323473864,08-May-2019,279.31
D1317J-BUSINESS SUPPORT,Domestic Goods-Other,WWW.ARGOS.CO.UK,08-May-2019,"1,202.90"
D1100J-ADULTS WITH MENTAL HEALTH NEEDS,Legal Services-Other,HMCOURTS-SERVICE.G,09-May-2019,150.00
D1145J-LIBRARIES & ARCHIVES,Education-Library Books,Amazon.co.uk,09-May-2019,28.21
D1145J-LIBRARIES & ARCHIVES,Education-Other,FORTRESS MASTER LOCKSMITH,09-May-2019,7.00
D1145J-LIBRARIES & ARCHIVES,Education-Other,FORTRESS MASTER LOCKSMITH,09-May-2019,3.50
D1148J-SCHOOL & EDUCATIONAL IMPROVEMENT SERVICE,Education-Library Books,THE BOOK PEOPLE,09-May-2019,20.13
D1220J-HOUSING OPTIONS - GF,Furniture-Domestic Furniture,WAYFAIR #2685921328,09-May-2019,164.96
D1229J-SPECIALIST YOUTH,Travel/Subsistence,OYSTER AUTO-TOP UP,09-May-2019,20.00
D1293J-EVENTS & FILMING,Domestic Goods-Other,AMZNMktplace,09-May-2019,42.70
D1293J-EVENTS & FILMING,Education-Library Books,AMZN MKTP UK,09-May-2019,26.53
D1294J-PARKS & LEISURE SERVICES,Building-Timber,SCREWFIX BRIXTON,09-May-2019,19.96
D1317J-BUSINESS SUPPORT,Travel/Subsistence,OYSTER AUTO-TOP UP,09-May-2019,40.00
D1317J-BUSINESS SUPPORT,Domestic Goods-Other,ARGOS DIRECT,09-May-2019,53.94
D1317J-BUSINESS SUPPORT,Travel/Subsistence,Trainline.com,09-May-2019,22.73
D1317J-BUSINESS SUPPORT,Travel/Subsistence,OYSTER AUTO-TOP UP,09-May-2019,20.00
D1317J-BUSINESS SUPPORT,Travel/Subsistence,OYSTER AUTO-TOP UP,09-May-2019,40.00
D1317J-BUSINESS SUPPORT,Haulage,PAYPAL,09-May-2019,100.00
D1317J-BUSINESS SUPPORT,Travel/Subsistence,OYSTER AUTO-TOP UP,09-May-2019,20.00
D1317J-BUSINESS SUPPORT,Travel/Subsistence,OYSTER AUTO-TOP UP,09-May-2019,20.00
D1317J-BUSINESS SUPPORT,Healthcare-Drugs,"BOOTS,0808",09-May-2019,9.37
D1317J-BUSINESS SUPPORT,Travel/Subsistence,OYSTER AUTO-TOP UP,09-May-2019,60.00
D1317J-BUSINESS SUPPORT,Catering Food & Drink,MARKS&SPENCER PLC,09-May-2019,158.50
D1317J-BUSINESS SUPPORT,Travel/Subsistence,OYSTER AUTO-TOP UP,09-May-2019,40.00
D1317J-BUSINESS SUPPORT,Catering Food & Drink,REFILL EATERIE LTD,09-May-2019,61.50
D1317J-BUSINESS SUPPORT,Domestic Goods-Other,ARGOS RETAIL GROUP,09-May-2019,-48.00
D1317J-BUSINESS SUPPORT,Travel/Subsistence,OYSTER ONLINE,09-May-2019,-30.00
D1317J-BUSINESS SUPPORT,Travel/Subsistence,OYSTER AUTO-TOP UP,09-May-2019,40.00
D1317J-BUSINESS SUPPORT,Domestic Goods-Other,WWW.ARGOS.CO.UK,09-May-2019,-41.99
D1317J-BUSINESS SUPPORT,Travel/Subsistence,OYSTER AUTO-TOP UP,09-May-2019,60.00
D1317J-BUSINESS SUPPORT,Domestic Goods-Other,WWW.ARGOS.CO.UK,09-May-2019,115.43
D1317J-BUSINESS SUPPORT,Travel/Subsistence,OYSTER AUTO-TOP UP,09-May-2019,20.00
D1317J-BUSINESS SUPPORT,Travel/Subsistence,OYSTER ONLINE,09-May-2019,15.00
D1321J-DEMOCRATIC SERVICES,Catering Food & Drink,Just Eat,09-May-2019,91.96
D1321J-DEMOCRATIC SERVICES,Travel/Subsistence,HOTELS.COM158630761754,09-May-2019,380.16
D1324J-INTERNAL AUDIT,Domestic Goods-Other,CANFORD AUDIO PLC,09-May-2019,120.96
D1325J-LEGAL SERVICES,Travel/Subsistence,LUL TICKET MACHINE,09-May-2019,150.00
D1345J-FINANCIAL PLANNING AND MANAGEMENT,Travel/Subsistence,WWW.GWR.COM,09-May-2019,88.00
D1345J-FINANCIAL PLANNING AND MANAGEMENT,Financial Services,LAND REGISTRY,09-May-2019,3.00
D1351J-LEARNING & DEVELOPMENT,Financial Services,UKBA10033907179,09-May-2019,"3,199.00"
D1841J-HOUSING MANAGEMENT SERVICES,Mail Services-Postage,THE POST OFFICE,09-May-2019,99.40
D1104J-DAY SERVICES,Catering Food & Drink,ICELAND,10-May-2019,22.59
D1104J-DAY SERVICES,Catering Food & Drink,WWW.ICELAND.CO.UK,10-May-2019,237.58
D1145J-LIBRARIES & ARCHIVES,Education-Library Books,Amazon.co.uk,10-May-2019,11.59
D1145J-LIBRARIES & ARCHIVES,Education-Library Books,AMZN MKTP UK,10-May-2019,19.04
D1145J-LIBRARIES & ARCHIVES,Education-Library Books,AMZNMktplace,10-May-2019,13.99
D1229J-SPECIALIST YOUTH,Travel/Subsistence,OYSTER AUTO-TOP UP,10-May-2019,20.00
D1294J-PARKS & LEISURE SERVICES,Building-Timber,TP VAUXHALL,10-May-2019,232.32
D1304J-HOUSING BENEFIT,Travel/Subsistence,TRAINLINE,10-May-2019,45.46
D1317J-BUSINESS SUPPORT,Travel/Subsistence,OYSTER ONLINE,10-May-2019,30.00
D1317J-BUSINESS SUPPORT,Travel/Subsistence,OYSTER AUTO-TOP UP,10-May-2019,40.00
D1317J-BUSINESS SUPPORT,Travel/Subsistence,OYSTER AUTO-TOP UP,10-May-2019,20.00
D1317J-BUSINESS SUPPORT,Travel/Subsistence,OYSTER AUTO-TOP UP,10-May-2019,40.00
D1317J-BUSINESS SUPPORT,Taxi Fares,SW16 TO SE1 RETURN,10-May-2019,60.00
D1317J-BUSINESS SUPPORT,Travel/Subsistence,OYSTER AUTO-TOP UP,10-May-2019,80.00
D1317J-BUSINESS SUPPORT,Travel/Subsistence,OYSTER ONLINE,10-May-2019,70.00
D1317J-BUSINESS SUPPORT,Facilities-Advertising,EXPRESS NEWS,10-May-2019,40.00
D1317J-BUSINESS SUPPORT,Travel/Subsistence,OYSTER AUTO-TOP UP,10-May-2019,20.00
D1317J-BUSINESS SUPPORT,Haulage,PAYPAL,10-May-2019,100.00
D1317J-BUSINESS SUPPORT,Travel/Subsistence,OYSTER AUTO-TOP UP,10-May-2019,80.00
D1317J-BUSINESS SUPPORT,Travel/Subsistence,OYSTER AUTO-TOP UP,10-May-2019,60.00
D1317J-BUSINESS SUPPORT,Catering Food & Drink,TESCO STORES 5145,10-May-2019,190.00
D1317J-BUSINESS SUPPORT,Travel/Subsistence,OYSTER ONLINE,10-May-2019,60.00
D1317J-BUSINESS SUPPORT,Travel/Subsistence,OYSTER ONLINE,10-May-2019,40.00
D1345J-FINANCIAL PLANNING AND MANAGEMENT,Domestic Goods-Other,WWW.ARGOS.CO.UK,10-May-2019,"2,621.85"
D1229J-SPECIALIST YOUTH,Travel/Subsistence,OYSTER AUTO-TOP UP,11-May-2019,40.00
D1317J-BUSINESS SUPPORT,Travel/Subsistence,OYSTER AUTO-TOP UP,11-May-2019,20.00
D1317J-BUSINESS SUPPORT,Travel/Subsistence,OYSTER AUTO-TOP UP,11-May-2019,20.00
D1317J-BUSINESS SUPPORT,Travel/Subsistence,OYSTER AUTO-TOP UP,11-May-2019,20.00
D1317J-BUSINESS SUPPORT,Travel/Subsistence,OYSTER AUTO-TOP UP,11-May-2019,20.00
D1317J-BUSINESS SUPPORT,Travel/Subsistence,OYSTER AUTO-TOP UP,11-May-2019,60.00
D1317J-BUSINESS SUPPORT,Travel/Subsistence,OYSTER AUTO-TOP UP,11-May-2019,20.00
D1317J-BUSINESS SUPPORT,Travel/Subsistence,OYSTER AUTO-TOP UP,11-May-2019,20.00
D1317J-BUSINESS SUPPORT,Travel/Subsistence,OYSTER AUTO-TOP UP,11-May-2019,40.00
D1345J-FINANCIAL PLANNING AND MANAGEMENT,Travel/Subsistence,OYSTER AUTO-TOP UP,11-May-2019,20.00
D1229J-SPECIALIST YOUTH,Travel/Subsistence,OYSTER AUTO-TOP UP,12-May-2019,20.00
D1293J-EVENTS & FILMING,Consultancy-Business,BLS*MONDAY.COM,12-May-2019,148.80
D1317J-BUSINESS SUPPORT,Travel/Subsistence,OYSTER AUTO-TOP UP,12-May-2019,20.00
D1317J-BUSINESS SUPPORT,Travel/Subsistence,OYSTER AUTO-TOP UP,12-May-2019,40.00
D1317J-BUSINESS SUPPORT,Travel/Subsistence,OYSTER AUTO-TOP UP,12-May-2019,40.00
D1317J-BUSINESS SUPPORT,Travel/Subsistence,OYSTER AUTO-TOP UP,12-May-2019,60.00
D1317J-BUSINESS SUPPORT,Travel/Subsistence,OYSTER AUTO-TOP UP,12-May-2019,20.00
D1317J-BUSINESS SUPPORT,Travel/Subsistence,OYSTER AUTO-TOP UP,12-May-2019,40.00
D1317J-BUSINESS SUPPORT,Travel/Subsistence,OYSTER AUTO-TOP UP,12-May-2019,100.00
D1104J-DAY SERVICES,Catering Food & Drink,TESCO STORE 2143,13-May-2019,51.00
D1104J-DAY SERVICES,Catering Food & Drink,TESCO STORES 5999,13-May-2019,162.61
D1145J-LIBRARIES & ARCHIVES,Education-Library Books,Amazon.co.uk,13-May-2019,10.74
D1145J-LIBRARIES & ARCHIVES,Taxi Fares,WWW.ADDISONLEE.COM,13-May-2019,26.10
D1145J-LIBRARIES & ARCHIVES,Education-Other,HIGHSPEEDTRAINING.CO.U,13-May-2019,24.00
D1294J-PARKS & LEISURE SERVICES,Building-Timber,TP BALHAM HILL,13-May-2019,154.54
D1317J-BUSINESS SUPPORT,Travel/Subsistence,OYSTER ONLINE,13-May-2019,30.00
D1317J-BUSINESS SUPPORT,Travel/Subsistence,OYSTER AUTO-TOP UP,13-May-2019,20.00
D1317J-BUSINESS SUPPORT,Mail Services-Postage,THE POST OFFICE,13-May-2019,6.60
D1317J-BUSINESS SUPPORT,Taxi Fares,LONDONNETCARS,13-May-2019,400.00
D1317J-BUSINESS SUPPORT,Travel/Subsistence,Trainline.com,13-May-2019,25.78
D1317J-BUSINESS SUPPORT,Travel/Subsistence,OYSTER ONLINE,13-May-2019,20.00
D1317J-BUSINESS SUPPORT,Travel/Subsistence,OYSTER ONLINE,13-May-2019,30.00
D1317J-BUSINESS SUPPORT,Domestic Goods-Other,ARGOS RETAIL GROUP,13-May-2019,45.00
D1317J-BUSINESS SUPPORT,Taxi Fares,LONDONNETCARS,13-May-2019,350.00
D1317J-BUSINESS SUPPORT,Organised Activities,LITTLE ANGELS CONTACT,13-May-2019,241.50
D1321J-DEMOCRATIC SERVICES,Travel/Subsistence,TRAINLINE,13-May-2019,67.53
D1321J-DEMOCRATIC SERVICES,Domestic Goods-Other,AMZNMKTPLACE AMAZON.CO.UK,13-May-2019,99.90
D1324J-INTERNAL AUDIT,Travel/Subsistence,TRAINLINE,13-May-2019,30.26
D1325J-LEGAL SERVICES,Education-Library Books,BLOOMSBURY PUBLISH,13-May-2019,87.95
D1345J-FINANCIAL PLANNING AND MANAGEMENT,Financial Services,LAND REGISTRY,13-May-2019,9.00
D1345J-FINANCIAL PLANNING AND MANAGEMENT,Taxi Fares,PP*JASMINDERSI,13-May-2019,28.40
D1841J-HOUSING MANAGEMENT SERVICES,Travel/Subsistence,LUL TICKET MACHINE,13-May-2019,100.00
D1100J-ADULTS WITH MENTAL HEALTH NEEDS,Travel/Subsistence,OYSTER ONLINE,14-May-2019,-13.20
D1100J-ADULTS WITH MENTAL HEALTH NEEDS,Travel/Subsistence,OYSTER TELESALES 1ST ISSU,14-May-2019,1.20
D1100J-ADULTS WITH MENTAL HEALTH NEEDS,Travel/Subsistence,AUTO TOP-UP ARREARS,14-May-2019,20.00
D1117J-SUBSTANCE MISUSE,Financial Services,DVLA DRIVER ONLINE,14-May-2019,34.00
D1145J-LIBRARIES & ARCHIVES,Domestic Goods-Other,TIMPSON LTD,14-May-2019,12.00
D1145J-LIBRARIES & ARCHIVES,Education-Library Books,AMZNMktplace,14-May-2019,9.95
D1145J-LIBRARIES & ARCHIVES,Education-Other,AMZNMKTPLACE AMAZON.CO.UK,14-May-2019,22.48
D1145J-LIBRARIES & ARCHIVES,Education-Other,AMZNMKTPLACE AMAZON.CO.UK,14-May-2019,23.24
D1145J-LIBRARIES & ARCHIVES,Education-Other,AO RETAIL LIMITED,14-May-2019,479.00
D1145J-LIBRARIES & ARCHIVES,Domestic Goods-Other,ARGOS LTD,14-May-2019,9.99
D1293J-EVENTS & FILMING,Furniture-Domestic Furniture,WWW.GOPAK.CO.UK,14-May-2019,"1,361.04"
D1317J-BUSINESS SUPPORT,Stationery,PARTRIDGES,14-May-2019,3.50
D1317J-BUSINESS SUPPORT,Catering Food & Drink,LOW COST SUPERMARKET,14-May-2019,40.00
D1317J-BUSINESS SUPPORT,Works-Construction,PAYPAL,14-May-2019,300.00
D1317J-BUSINESS SUPPORT,Domestic Goods-Other,KITCHEN SHOPPE,14-May-2019,4.47
D1317J-BUSINESS SUPPORT,Works-Construction,PAYPAL,14-May-2019,110.00
D1317J-BUSINESS SUPPORT,Travel/Subsistence,OYSTER ONLINE,14-May-2019,30.00
D1317J-BUSINESS SUPPORT,Consultancy-Other,PAYPAL,14-May-2019,15.00
D1317J-BUSINESS SUPPORT,Domestic Goods-Other,WWW.ARGOS.CO.UK,14-May-2019,489.98
D1317J-BUSINESS SUPPORT,Travel/Subsistence,OYSTER ONLINE,14-May-2019,25.00
D1317J-BUSINESS SUPPORT,Domestic Goods-Other,ARGOS RETAIL GROUP,14-May-2019,-40.00
D1321J-DEMOCRATIC SERVICES,Domestic Goods-Other,AMZNMKTPLACE AMAZON.CO.UK,14-May-2019,29.98
D1321J-DEMOCRATIC SERVICES,Education-Library Books,AMZN MKTP UK,14-May-2019,73.97
D1325J-LEGAL SERVICES,Legal Services-Other,WWW.HCEGROUP.CO.UK,14-May-2019,"3,917.22"
D1841J-HOUSING MANAGEMENT SERVICES,Travel/Subsistence,LUL TICKET MACHINE,14-May-2019,50.00
D1841J-HOUSING MANAGEMENT SERVICES,Travel/Subsistence,TRAINLINE,14-May-2019,241.24
D1145J-LIBRARIES & ARCHIVES,Financial Services-Grants,CILIP,15-May-2019,90.00
D1145J-LIBRARIES & ARCHIVES,Education-Library Books,AMZN Mktp UK,15-May-2019,6.47
D1220J-HOUSING OPTIONS - GF,Furniture-Domestic Furniture,AMZN MKTP UK,15-May-2019,82.95
D1226J-PLANNING,Consultancy-Business,EB *RIBA LONDON AWARDS,15-May-2019,195.36
D1229J-SPECIALIST YOUTH,Travel/Subsistence,AUTO TOP-UP ARREARS,15-May-2019,40.00
D1229J-SPECIALIST YOUTH,Catering Food & Drink,TESCO STORE 2143,15-May-2019,200.00
D1229J-SPECIALIST YOUTH,Travel/Subsistence,TFL AUTOSETTLEMENT,15-May-2019,100.00
D1293J-EVENTS & FILMING,Domestic Goods-Other,PURE AND APPLIED CONS.,15-May-2019,"1,200.00"
D1293J-EVENTS & FILMING,Arts & Leisure Services,PP*THE LIVE INK CO,15-May-2019,288.00
D1294J-PARKS & LEISURE SERVICES,Building-Timber,SCREWFIX BRIXTON,15-May-2019,24.99
D1294J-PARKS & LEISURE SERVICES,Building-Timber,SCREWFIX BRIXTON,15-May-2019,104.97
D1295J-PARKING OPERATIONS,Mail Services-Postage,THE POST OFFICE,15-May-2019,246.00
D1295J-PARKING OPERATIONS,Facilities-Advertising,WH SMITH,15-May-2019,60.00
D1317J-BUSINESS SUPPORT,Travel/Subsistence,OYSTER AUTO-TOP UP,15-May-2019,20.00
D1317J-BUSINESS SUPPORT,Travel/Subsistence,AUTO TOP-UP ARREARS,15-May-2019,20.00
D1317J-BUSINESS SUPPORT,Travel/Subsistence,OYSTER AUTO-TOP UP,15-May-2019,60.00
D1317J-BUSINESS SUPPORT,Travel/Subsistence,OYSTER AUTO-TOP UP,15-May-2019,40.00
D1317J-BUSINESS SUPPORT,Travel/Subsistence,OYSTER AUTO-TOP UP,15-May-2019,20.00
D1317J-BUSINESS SUPPORT,Travel/Subsistence,OYSTER AUTO-TOP UP,15-May-2019,80.00
D1317J-BUSINESS SUPPORT,Travel/Subsistence,OYSTER AUTO-TOP UP,15-May-2019,20.00
D1317J-BUSINESS SUPPORT,Travel/Subsistence,OYSTER AUTO-TOP UP,15-May-2019,60.00
D1317J-BUSINESS SUPPORT,Travel/Subsistence,OYSTER AUTO-TOP UP,15-May-2019,40.00
D1317J-BUSINESS SUPPORT,Domestic Goods-Other,WWW.ARGOS.CO.UK,15-May-2019,71.95
D1325J-LEGAL SERVICES,Mail Services-Postage,THE POST OFFICE,15-May-2019,176.00
D1351J-LEARNING & DEVELOPMENT,Facilities-Market Research,Amazon Prime,15-May-2019,7.99
D1841J-HOUSING MANAGEMENT SERVICES,Facilities-Printing,WWW.OCEANMEDIA.CO,15-May-2019,500.00
D1847J-RESIDENT ENGAGEMENT,Travel/Subsistence,AUTO TOP-UP ARREARS,15-May-2019,20.00
D1100J-ADULTS WITH MENTAL HEALTH NEEDS,Travel/Subsistence,OYSTER AUTO-TOP UP,16-May-2019,20.00
D1145J-LIBRARIES & ARCHIVES,Education-Library Books,Amazon.co.uk,16-May-2019,17.00
D1145J-LIBRARIES & ARCHIVES,Education-Library Books,AMZNMktplace,16-May-2019,3.74
D1229J-SPECIALIST YOUTH,Travel/Subsistence,OYSTER AUTO-TOP UP,16-May-2019,60.00
D1293J-EVENTS & FILMING,Facilities-Market Research,MAILCHIMP,16-May-2019,70.70
D1317J-BUSINESS SUPPORT,Travel/Subsistence,TFL AUTOSETTLEMENT,16-May-2019,60.00
D1317J-BUSINESS SUPPORT,Travel/Subsistence,OYSTER AUTO-TOP UP,16-May-2019,20.00
D1317J-BUSINESS SUPPORT,Travel/Subsistence,OYSTER ONLINE,16-May-2019,30.00
D1317J-BUSINESS SUPPORT,Facilities-Market Research,Amazon Prime,16-May-2019,0.99
D1317J-BUSINESS SUPPORT,Organised Activities,LET ME PLAY LTD,16-May-2019,60.00
D1317J-BUSINESS SUPPORT,Travel/Subsistence,OYSTER AUTO-TOP UP,16-May-2019,100.00
D1317J-BUSINESS SUPPORT,Travel/Subsistence,OYSTER ONLINE,16-May-2019,-15.00
D1317J-BUSINESS SUPPORT,Domestic Goods-Other,SUMUP  *MOVING MATE LTD T,16-May-2019,438.00
D1317J-BUSINESS SUPPORT,Travel/Subsistence,OYSTER AUTO-TOP UP,16-May-2019,40.00
D1317J-BUSINESS SUPPORT,Travel/Subsistence,Trainline.com,16-May-2019,30.05
D1317J-BUSINESS SUPPORT,Domestic Goods-Other,WWW.ARGOS.CO.UK,16-May-2019,269.99
D1317J-BUSINESS SUPPORT,Travel/Subsistence,OYSTER AUTO-TOP UP,16-May-2019,60.00
D1317J-BUSINESS SUPPORT,Travel/Subsistence,OYSTER ONLINE,16-May-2019,60.00
D1317J-BUSINESS SUPPORT,Domestic Goods-Other,WWW.ARGOS.CO.UK,16-May-2019,105.95
D1317J-BUSINESS SUPPORT,Travel/Subsistence,OYSTER AUTO-TOP UP,16-May-2019,20.00
D1317J-BUSINESS SUPPORT,Travel/Subsistence,OYSTER AUTO-TOP UP,16-May-2019,20.00
D1317J-BUSINESS SUPPORT,Travel/Subsistence,OYSTER ONLINE,16-May-2019,20.00
D1317J-BUSINESS SUPPORT,Travel/Subsistence,OYSTER AUTO-TOP UP,16-May-2019,20.00
D1317J-BUSINESS SUPPORT,Catering Food & Drink,TESCO STORE 2143,16-May-2019,107.27
D1317J-BUSINESS SUPPORT,Education-Library Books,AMZN Mktp UK,16-May-2019,18.99
D1317J-BUSINESS SUPPORT,Travel/Subsistence,OYSTER ONLINE,16-May-2019,20.00
D1321J-DEMOCRATIC SERVICES,Catering Food & Drink,TESCO STORE 2143,16-May-2019,9.00
D1324J-INTERNAL AUDIT,Travel/Subsistence,OYSTER AUTO-TOP UP,16-May-2019,40.00
D1343J-DIRECTOR OF FINANCE,Conference Expenses,WWW.EMAP.COM/EVENTS,16-May-2019,"1,198.80"
D1351J-LEARNING & DEVELOPMENT,Education-Library Books,WP-INTERVIEWGOLD,16-May-2019,900.00
D1145J-LIBRARIES & ARCHIVES,Education-Other,POSTURITE LTD,17-May-2019,141.47
D1145J-LIBRARIES & ARCHIVES,Education-Other,SAINSBURY'S,17-May-2019,10.00
D1145J-LIBRARIES & ARCHIVES,Domestic Goods-Other,AO RETAIL LIMITED,17-May-2019,66.00
D1145J-LIBRARIES & ARCHIVES,Education-Library Books,AMZNMktplace,17-May-2019,26.99
D1229J-SPECIALIST YOUTH,Travel/Subsistence,OYSTER AUTO-TOP UP,17-May-2019,20.00
D1229J-SPECIALIST YOUTH,Travel/Subsistence,OYSTER AUTO-TOP UP,17-May-2019,20.00
D1294J-PARKS & LEISURE SERVICES,Financial Services,FC WESTONBIRT ABORETUM,17-May-2019,30.00
D1294J-PARKS & LEISURE SERVICES,Horticultural-Other,CROXTED RD GDN CTR,17-May-2019,59.25
D1294J-PARKS & LEISURE SERVICES,Building-Timber,SELCO TRADING CTR,17-May-2019,223.26
D1317J-BUSINESS SUPPORT,Taxi Fares,SW2 TO SE19,17-May-2019,35.00
D1317J-BUSINESS SUPPORT,Travel/Subsistence,OYSTER AUTO-TOP UP,17-May-2019,80.00
D1317J-BUSINESS SUPPORT,Travel/Subsistence,OYSTER AUTO-TOP UP,17-May-2019,20.00
D1317J-BUSINESS SUPPORT,Travel/Subsistence,OYSTER ONLINE,17-May-2019,-30.00
D1317J-BUSINESS SUPPORT,Travel/Subsistence,OYSTER AUTO-TOP UP,17-May-2019,80.00
D1317J-BUSINESS SUPPORT,Travel/Subsistence,OYSTER AUTO-TOP UP,17-May-2019,20.00
D1317J-BUSINESS SUPPORT,Travel/Subsistence,OYSTER ONLINE,17-May-2019,0.00
D1317J-BUSINESS SUPPORT,Accommodation,EASYJET,17-May-2019,250.57
D1317J-BUSINESS SUPPORT,Travel/Subsistence,OYSTER AUTO-TOP UP,17-May-2019,20.00
D1317J-BUSINESS SUPPORT,Accommodation,B.com 5019773-CKZIX Luxur,17-May-2019,139.00
D1317J-BUSINESS SUPPORT,Taxi Fares,2DAYS SCHL RUN ESCORT,17-May-2019,160.00
D1317J-BUSINESS SUPPORT,Facilities-Advertising,FACEBK LQYRXL2DE2,17-May-2019,48.02
D1321J-DEMOCRATIC SERVICES,Accommodation,AIRBNB * HMAJAY98S2,17-May-2019,479.86
D1321J-DEMOCRATIC SERVICES,Catering Food & Drink,TESCO STORE 2143,17-May-2019,9.00
D1345J-FINANCIAL PLANNING AND MANAGEMENT,Financial Services,LAND REGISTRY,17-May-2019,3.00
D1345J-FINANCIAL PLANNING AND MANAGEMENT,Travel/Subsistence,TRAINLINE,17-May-2019,289.39
D1365J-PERFORMANCE,IT Software,CANVA PRO MONTHLY,17-May-2019,10.49
D1145J-LIBRARIES & ARCHIVES,Domestic Goods-Other,ARGOS LTD,18-May-2019,11.98
D1294J-PARKS & LEISURE SERVICES,Professional & Advisory Services,PAYPAL,18-May-2019,156.00
D1317J-BUSINESS SUPPORT,Travel/Subsistence,OYSTER AUTO-TOP UP,18-May-2019,100.00
D1317J-BUSINESS SUPPORT,Travel/Subsistence,OYSTER AUTO-TOP UP,18-May-2019,20.00
D1317J-BUSINESS SUPPORT,Travel/Subsistence,OYSTER AUTO-TOP UP,18-May-2019,20.00
D1317J-BUSINESS SUPPORT,Travel/Subsistence,OYSTER AUTO-TOP UP,18-May-2019,20.00
D1317J-BUSINESS SUPPORT,Travel/Subsistence,OYSTER AUTO-TOP UP,18-May-2019,40.00
D1317J-BUSINESS SUPPORT,Travel/Subsistence,OYSTER AUTO-TOP UP,18-May-2019,20.00
D1317J-BUSINESS SUPPORT,Travel/Subsistence,OYSTER AUTO-TOP UP,18-May-2019,40.00
D1317J-BUSINESS SUPPORT,Travel/Subsistence,OYSTER AUTO-TOP UP,18-May-2019,40.00
D1317J-BUSINESS SUPPORT,Travel/Subsistence,OYSTER AUTO-TOP UP,18-May-2019,40.00
D1317J-BUSINESS SUPPORT,Travel/Subsistence,OYSTER AUTO-TOP UP,18-May-2019,80.00
D1321J-DEMOCRATIC SERVICES,IT Software-Customised,SurveyMonkey,18-May-2019,35.00
D1145J-LIBRARIES & ARCHIVES,Travel/Subsistence,OYSTER AUTO-TOP UP,19-May-2019,20.00
D1317J-BUSINESS SUPPORT,Travel/Subsistence,OYSTER AUTO-TOP UP,19-May-2019,60.00
D1317J-BUSINESS SUPPORT,Travel/Subsistence,OYSTER AUTO-TOP UP,19-May-2019,20.00
D1317J-BUSINESS SUPPORT,Travel/Subsistence,OYSTER AUTO-TOP UP,19-May-2019,40.00
D1317J-BUSINESS SUPPORT,Travel/Subsistence,OYSTER AUTO-TOP UP,19-May-2019,20.00
D1317J-BUSINESS SUPPORT,Travel/Subsistence,OYSTER AUTO-TOP UP,19-May-2019,20.00
D1317J-BUSINESS SUPPORT,Travel/Subsistence,OYSTER AUTO-TOP UP,19-May-2019,40.00
D1321J-DEMOCRATIC SERVICES,Building-Tools,WWW.YAHIRE.COM,19-May-2019,245.87
D1100J-ADULTS WITH MENTAL HEALTH NEEDS,Works-Construction/Materials,LOCKSMITHS AT THE TOOL,20-May-2019,438.00
D1104J-DAY SERVICES,Catering Food & Drink,WWW.ICELAND.CO.UK,20-May-2019,60.53
D1104J-DAY SERVICES,Catering Food & Drink,SAINSBURYS S/MKTS,20-May-2019,6.00
D1117J-SUBSTANCE MISUSE,Catering Food & Drink,TESCO STORES 5999,20-May-2019,65.50
D1145J-LIBRARIES & ARCHIVES,Books/Publications/Resources,METRO BANK CLAPHAM HIGH,20-May-2019,170.00
D1145J-LIBRARIES & ARCHIVES,Consultancy-Business,FORTRESS MASTER LOCKSMITH,20-May-2019,149.40
D1145J-LIBRARIES & ARCHIVES,Domestic Goods-Other,AO RETAIL LIMITED,20-May-2019,-25.00
D1229J-SPECIALIST YOUTH,Travel/Subsistence,BRIXTONHILL EXPRESS,20-May-2019,70.00
D1294J-PARKS & LEISURE SERVICES,Building-General,LEYLAND SDM CLAPHAM HIGH,20-May-2019,29.98
D1294J-PARKS & LEISURE SERVICES,Building-General,SCREWFIX DIRECT,20-May-2019,178.78
D1294J-PARKS & LEISURE SERVICES,Financial Services,DVLA VEHICLE TAX,20-May-2019,93.50
D1317J-BUSINESS SUPPORT,Accommodation,B.com 2408251-YRZEO Marbl,20-May-2019,90.00
D1317J-BUSINESS SUPPORT,Travel/Subsistence,OYSTER ONLINE,20-May-2019,30.00
D1317J-BUSINESS SUPPORT,Healthcare Services,EDMUNDSBURY TRA,20-May-2019,127.50
D1317J-BUSINESS SUPPORT,Travel/Subsistence,OYSTER ONLINE,20-May-2019,-30.00
D1317J-BUSINESS SUPPORT,Catering Food & Drink,LOW COST SUPERMARKET,20-May-2019,30.00
D1317J-BUSINESS SUPPORT,Domestic Goods-Other,WWW.ARGOS.CO.UK,20-May-2019,379.99
D1317J-BUSINESS SUPPORT,Education-Library Books,AMZN MKTP UK,20-May-2019,12.49
D1317J-BUSINESS SUPPORT,Catering Food & Drink,TESCO STORE 2572,20-May-2019,200.00
D1317J-BUSINESS SUPPORT,Domestic Goods-Other,AMZNMktplace,20-May-2019,76.33
D1317J-BUSINESS SUPPORT,Travel/Subsistence,OYSTER ONLINE,20-May-2019,10.00
D1317J-BUSINESS SUPPORT,Financial Services,HM PASSPORT OFFICE,20-May-2019,49.00
D1317J-BUSINESS SUPPORT,Facilities-Market Research,Amazon Prime,20-May-2019,0.99
D1317J-BUSINESS SUPPORT,Travel/Subsistence,OYSTER ONLINE,20-May-2019,30.00
D1317J-BUSINESS SUPPORT,Education-Library Books,AMZN MKTP UK,20-May-2019,24.99
D1317J-BUSINESS SUPPORT,Taxi Fares,ST THOMAS TO COURT BAC,20-May-2019,60.00
D1321J-DEMOCRATIC SERVICES,Catering Food & Drink,WWW.DOMINOS.CO.UK,20-May-2019,93.22
D1325J-LEGAL SERVICES,Stationery,CURRYS SUPERSTORE,20-May-2019,45.99
D1345J-FINANCIAL PLANNING AND MANAGEMENT,Travel/Subsistence,WWW.SOUTHWESTTRAINS.CO,20-May-2019,18.20
D1345J-FINANCIAL PLANNING AND MANAGEMENT,Financial Services,LAND REGISTRY,20-May-2019,3.00
D1365J-PERFORMANCE,Facilities-Advertising,FACEBK 8GJ6JL66M2,20-May-2019,60.00
D1365J-PERFORMANCE,IT Software,ADOBE  CREATIVE CLOUD,20-May-2019,141.60
D1100J-ADULTS WITH MENTAL HEALTH NEEDS,Legal Services-Other,HMCOURTS-SERVICE.G,21-May-2019,300.00
D1145J-LIBRARIES & ARCHIVES,Books/Publications/Resources,CASH ADVANCE FEE,21-May-2019,5.02
D1145J-LIBRARIES & ARCHIVES,Catering Food & Drink,ICELAND,21-May-2019,3.50
D1145J-LIBRARIES & ARCHIVES,Domestic Goods-Other,ARGOS RETAIL GROUP,21-May-2019,79.99
D1174J-PUBLIC HEALTH - ADULTS,IT Software,PHE CROWDFUNDER UK ,21-May-2019,161.00
D1174J-PUBLIC HEALTH - ADULTS,IT Software-Customised,WWW.EUKHOST.COM,21-May-2019,29.94
D1229J-SPECIALIST YOUTH,Travel/Subsistence,BRIXTONHILL EXPRESS,21-May-2019,100.00
D1293J-EVENTS & FILMING,Financial Services,DISCLOSURE AND BARRING,21-May-2019,25.00
D1294J-PARKS & LEISURE SERVICES,Building-Timber,ACRE LANE BUILDERS,21-May-2019,22.92
D1317J-BUSINESS SUPPORT,Domestic Goods-Other,WWW.ARGOS.CO.UK,21-May-2019,536.44
D1317J-BUSINESS SUPPORT,Travel/Subsistence,OYSTER AUTO-TOP UP,21-May-2019,20.00
D1317J-BUSINESS SUPPORT,Travel/Subsistence,OYSTER AUTO-TOP UP,21-May-2019,20.00
D1317J-BUSINESS SUPPORT,Financial Services,HM PASSPORT OFFICE,21-May-2019,85.00
D1317J-BUSINESS SUPPORT,Travel/Subsistence,OYSTER ONLINE,21-May-2019,10.00
D1317J-BUSINESS SUPPORT,Domestic Goods-Other,WWW.ARGOS.CO.UK,21-May-2019,-379.99
D1317J-BUSINESS SUPPORT,Travel/Subsistence,TRAINLINE,21-May-2019,31.78
D1317J-BUSINESS SUPPORT,Financial Services,LONDON BRGH OF LAMBETH,21-May-2019,52.00
D1317J-BUSINESS SUPPORT,Domestic Goods-Other,MORLEYS,21-May-2019,699.80
D1317J-BUSINESS SUPPORT,Furniture-Domestic Furniture,BRIXTON FURNITURE CENT,21-May-2019,170.00
D1321J-DEMOCRATIC SERVICES,Education-Library Books,AMZN Mktp UK,21-May-2019,239.76
D1345J-FINANCIAL PLANNING AND MANAGEMENT,Domestic Goods-Other,WWW.ARGOS.CO.UK,21-May-2019,-12.95
D1345J-FINANCIAL PLANNING AND MANAGEMENT,Travel/Subsistence,SELFSERVE TICKET,21-May-2019,50.00
D1365J-PERFORMANCE,Taxi Fares,WWW.ADDISONLEE.COM,21-May-2019,69.00
D1841J-HOUSING MANAGEMENT SERVICES,Building-Timber,B & Q 1037,21-May-2019,55.03
D1841J-HOUSING MANAGEMENT SERVICES,Facilities-Market Research,AMAZON PRIME,21-May-2019,7.99
D1145J-LIBRARIES & ARCHIVES,Education-Library Books,Amazon.co.uk,22-May-2019,11.99
D1229J-SPECIALIST YOUTH,Travel/Subsistence,OYSTER ONLINE,22-May-2019,40.00
D1229J-SPECIALIST YOUTH,Travel/Subsistence,OYSTER AUTO-TOP UP,22-May-2019,20.00
D1229J-SPECIALIST YOUTH,Travel/Subsistence,OYSTER ONLINE,22-May-2019,30.00
D1247J-SUSTAINABILITY & ROAD SAFETY,Domestic Goods-Other,HEELS ETC LTD,22-May-2019,16.00
D1293J-EVENTS & FILMING,Environmental Services-Vets,SPEEDGATE ENTERPRISES,22-May-2019,866.00
D1294J-PARKS & LEISURE SERVICES,Building-General,MACKAYS HARDWARE,22-May-2019,83.00
D1294J-PARKS & LEISURE SERVICES,Financial Services,LAND REGISTRY,22-May-2019,6.00
D1294J-PARKS & LEISURE SERVICES,Financial Services,LAND REGISTRY,22-May-2019,6.00
D1294J-PARKS & LEISURE SERVICES,Consultancy-Business,ARMOUR LOCK AND SAFE,22-May-2019,97.00
D1295J-PARKING OPERATIONS,Travel/Subsistence,OYSTER ONLINE,22-May-2019,200.00
D1304J-HOUSING BENEFIT,Travel/Subsistence,OYSTER AUTO-TOP UP,22-May-2019,20.00
D1317J-BUSINESS SUPPORT,Travel/Subsistence,OYSTER AUTO-TOP UP,22-May-2019,40.00
D1317J-BUSINESS SUPPORT,Travel/Subsistence,OYSTER AUTO-TOP UP,22-May-2019,20.00
D1317J-BUSINESS SUPPORT,Travel/Subsistence,OYSTER AUTO-TOP UP,22-May-2019,20.00
D1317J-BUSINESS SUPPORT,Consultancy-Business,WWW.LOCAL.GOV.UK,22-May-2019,654.00
D1317J-BUSINESS SUPPORT,Facilities-Storage,WWW.SAFESTORE.CO.UK,22-May-2019,556.91
D1317J-BUSINESS SUPPORT,Catering Food & Drink,TESCO STORE 2143,22-May-2019,51.39
D1317J-BUSINESS SUPPORT,Travel/Subsistence,OYSTER AUTO-TOP UP,22-May-2019,20.00
D1317J-BUSINESS SUPPORT,Travel/Subsistence,OYSTER ONLINE,22-May-2019,60.00
D1317J-BUSINESS SUPPORT,Travel/Subsistence,OYSTER AUTO-TOP UP,22-May-2019,40.00
D1317J-BUSINESS SUPPORT,Travel/Subsistence,OYSTER AUTO-TOP UP,22-May-2019,20.00
D1317J-BUSINESS SUPPORT,Travel/Subsistence,OYSTER AUTO-TOP UP,22-May-2019,40.00
D1317J-BUSINESS SUPPORT,Travel/Subsistence,OYSTER AUTO-TOP UP,22-May-2019,40.00
D1317J-BUSINESS SUPPORT,Travel/Subsistence,OYSTER AUTO-TOP UP,22-May-2019,20.00
D1317J-BUSINESS SUPPORT,Travel/Subsistence,OYSTER ONLINE,22-May-2019,10.00
D1317J-BUSINESS SUPPORT,Travel/Subsistence,OYSTER AUTO-TOP UP,22-May-2019,40.00
D1841J-HOUSING MANAGEMENT SERVICES,Building-General,THE TRADE HUB,22-May-2019,210.75
D1365J-PERFORMANCE,Taxi Fares,WWW.ADDISONLEE.COM,23-May-2019,49.70
D1145J-LIBRARIES & ARCHIVES,IT Software,SILENT NOIZE EVENTS LT,24-May-2019,240.00
D1229J-SPECIALIST YOUTH,Catering Equipment,TESCO STORE 2143,24-May-2019,8.00
D1229J-SPECIALIST YOUTH,Travel/Subsistence,OYSTER AUTO-TOP UP,24-May-2019,60.00
D1317J-BUSINESS SUPPORT,Travel/Subsistence,OYSTER AUTO-TOP UP,24-May-2019,20.00
D1317J-BUSINESS SUPPORT,Travel/Subsistence,Trainline.com,24-May-2019,160.58
D1317J-BUSINESS SUPPORT,Domestic Goods-Other,WWW.ARGOS.CO.UK,24-May-2019,184.99
D1317J-BUSINESS SUPPORT,Travel/Subsistence,OYSTER ONLINE,24-May-2019,40.00
D1317J-BUSINESS SUPPORT,Taxi Fares,SE11 TO SE24,24-May-2019,30.00
D1317J-BUSINESS SUPPORT,Travel/Subsistence,OYSTER ONLINE,24-May-2019,30.00
D1317J-BUSINESS SUPPORT,Travel/Subsistence,OYSTER AUTO-TOP UP,24-May-2019,20.00
D1317J-BUSINESS SUPPORT,Travel/Subsistence,EXPEDIA 7437401699807,24-May-2019,144.00
D1317J-BUSINESS SUPPORT,Taxi Fares,SW3CR7BR1RET,24-May-2019,90.00
D1317J-BUSINESS SUPPORT,Taxi Fares,KINGS SE27 RET,24-May-2019,60.00
D1317J-BUSINESS SUPPORT,Taxi Fares,SW3 TO RM6,24-May-2019,80.00
D1317J-BUSINESS SUPPORT,Travel/Subsistence,OYSTER AUTO-TOP UP,24-May-2019,20.00
D1317J-BUSINESS SUPPORT,Travel/Subsistence,OYSTER AUTO-TOP UP,24-May-2019,60.00
D1317J-BUSINESS SUPPORT,Travel/Subsistence,OYSTER AUTO-TOP UP,24-May-2019,20.00
D1317J-BUSINESS SUPPORT,Travel/Subsistence,OYSTER AUTO-TOP UP,24-May-2019,40.00
D1317J-BUSINESS SUPPORT,Travel/Subsistence,OYSTER AUTO-TOP UP,24-May-2019,20.00
D1317J-BUSINESS SUPPORT,Travel/Subsistence,OYSTER AUTO-TOP UP,24-May-2019,20.00
D1351J-LEARNING & DEVELOPMENT,Financial Services,UKBA8900418218,24-May-2019,"3,199.00"
D1229J-SPECIALIST YOUTH,Travel/Subsistence,OYSTER AUTO-TOP UP,25-May-2019,40.00
D1317J-BUSINESS SUPPORT,Travel/Subsistence,OYSTER AUTO-TOP UP,25-May-2019,20.00
D1317J-BUSINESS SUPPORT,Travel/Subsistence,OYSTER AUTO-TOP UP,25-May-2019,20.00
D1317J-BUSINESS SUPPORT,Travel/Subsistence,OYSTER AUTO-TOP UP,25-May-2019,80.00
D1317J-BUSINESS SUPPORT,Travel/Subsistence,OYSTER AUTO-TOP UP,25-May-2019,40.00
D1317J-BUSINESS SUPPORT,Travel/Subsistence,OYSTER AUTO-TOP UP,25-May-2019,20.00
D1317J-BUSINESS SUPPORT,Travel/Subsistence,OYSTER AUTO-TOP UP,25-May-2019,20.00
D1317J-BUSINESS SUPPORT,Travel/Subsistence,OYSTER AUTO-TOP UP,25-May-2019,20.00
D1317J-BUSINESS SUPPORT,Travel/Subsistence,OYSTER AUTO-TOP UP,25-May-2019,20.00
D1317J-BUSINESS SUPPORT,Travel/Subsistence,OYSTER AUTO-TOP UP,25-May-2019,60.00
D1317J-BUSINESS SUPPORT,Travel/Subsistence,OYSTER AUTO-TOP UP,25-May-2019,20.00
D1317J-BUSINESS SUPPORT,Travel/Subsistence,OYSTER AUTO-TOP UP,25-May-2019,100.00
D1303J-FINANCIAL TRANSACTION SERVICES,Travel/Subsistence,OYSTER AUTO-TOP UP,26-May-2019,20.00
D1317J-BUSINESS SUPPORT,Travel/Subsistence,OYSTER AUTO-TOP UP,26-May-2019,20.00
D1317J-BUSINESS SUPPORT,Travel/Subsistence,OYSTER AUTO-TOP UP,26-May-2019,20.00
D1317J-BUSINESS SUPPORT,Travel/Subsistence,OYSTER AUTO-TOP UP,26-May-2019,80.00
D1317J-BUSINESS SUPPORT,Travel/Subsistence,OYSTER AUTO-TOP UP,26-May-2019,40.00
D1317J-BUSINESS SUPPORT,Travel/Subsistence,OYSTER AUTO-TOP UP,26-May-2019,40.00
D1317J-BUSINESS SUPPORT,Travel/Subsistence,OYSTER AUTO-TOP UP,26-May-2019,20.00
D1317J-BUSINESS SUPPORT,Travel/Subsistence,OYSTER AUTO-TOP UP,26-May-2019,20.00
D1317J-BUSINESS SUPPORT,Travel/Subsistence,OYSTER AUTO-TOP UP,26-May-2019,40.00
D1145J-LIBRARIES & ARCHIVES,Education-Library Books,Amazon.co.uk,27-May-2019,9.99
D1145J-LIBRARIES & ARCHIVES,Facilities-Printing,Amazon.co.uk,27-May-2019,26.08
D1317J-BUSINESS SUPPORT,Travel/Subsistence,OYSTER AUTO-TOP UP,27-May-2019,20.00
D1317J-BUSINESS SUPPORT,Travel/Subsistence,OYSTER AUTO-TOP UP,27-May-2019,40.00
D1317J-BUSINESS SUPPORT,Facilities-Market Research,Amazon Prime,27-May-2019,7.99
D1317J-BUSINESS SUPPORT,Domestic Goods-Other,WWW.ARGOS.CO.UK,27-May-2019,-3.95
D1325J-LEGAL SERVICES,Taxi Fares,WWW.ADDISONLEE.COM,27-May-2019,77.00
D1104J-DAY SERVICES,Catering Food & Drink,ICELAND,28-May-2019,38.37
D1117J-SUBSTANCE MISUSE,Domestic Goods-Other,AMZNMKTPLACE AMAZON.CO.UK,28-May-2019,10.92
D1117J-SUBSTANCE MISUSE,Catering Food & Drink,TESCO STORES 5999,28-May-2019,74.24
D1220J-HOUSING OPTIONS - GF,Furniture-Office Furniture,WWW.ARGOS.CO.UK,28-May-2019,34.94
D1229J-SPECIALIST YOUTH,Catering Food & Drink,MARKS&SPENCER PLC,28-May-2019,130.00
D1304J-HOUSING BENEFIT,Travel/Subsistence,Trainline.com,28-May-2019,59.90
D1317J-BUSINESS SUPPORT,Travel/Subsistence,OYSTER AUTO-TOP UP,28-May-2019,20.00
D1345J-FINANCIAL PLANNING AND MANAGEMENT,Domestic Goods-Other,WWW.ARGOS.CO.UK,28-May-2019,163.94
D1365J-PERFORMANCE,Travel/Subsistence,Trainline.com,28-May-2019,81.46
D1104J-DAY SERVICES,Catering Food & Drink,SAINSBURYS S/MKTS,29-May-2019,34.70
D1117J-SUBSTANCE MISUSE,Domestic Goods-Other,AMZNMKTPLACE AMAZON.CO.UK,29-May-2019,65.01
D1145J-LIBRARIES & ARCHIVES,Catering Food & Drink,MARKS&SPENCER PLC SACA,29-May-2019,2.89
D1229J-SPECIALIST YOUTH,Books/Publications/Resources,AMAZON.CO.UK,29-May-2019,29.95
D1229J-SPECIALIST YOUTH,Travel/Subsistence,OYSTER ONLINE,29-May-2019,-20.00
D1295J-PARKING OPERATIONS,Travel/Subsistence,OYSTER ONLINE,29-May-2019,-50.00
D1317J-BUSINESS SUPPORT,Financial Services,DVLA DRIVER ONLINE,29-May-2019,34.00
D1317J-BUSINESS SUPPORT,Travel/Subsistence,OYSTER ONLINE,29-May-2019,-10.00
D1317J-BUSINESS SUPPORT,Domestic Goods-Other,WWW.ARGOS.CO.UK,29-May-2019,-32.55
D1317J-BUSINESS SUPPORT,Financial Services,HM PASSPORT OFFICE,29-May-2019,95.00
D1317J-BUSINESS SUPPORT,Catering Food & Drink,WAITROSE 513,29-May-2019,252.77
D1317J-BUSINESS SUPPORT,Facilities-Printing,VISTAPRINT,29-May-2019,580.78
D1317J-BUSINESS SUPPORT,Travel/Subsistence,OYSTER AUTO-TOP UP,29-May-2019,20.00
D1317J-BUSINESS SUPPORT,Travel/Subsistence,OYSTER ONLINE,29-May-2019,10.00
D1317J-BUSINESS SUPPORT,Travel/Subsistence,OYSTER ONLINE,29-May-2019,30.00
D1317J-BUSINESS SUPPORT,Travel/Subsistence,OYSTER ONLINE,29-May-2019,25.00
D1317J-BUSINESS SUPPORT,Taxi Fares,CIVICTW1CTCR5,29-May-2019,100.00
D1317J-BUSINESS SUPPORT,Financial Services,IHS164821831PA02 2019-,29-May-2019,100.00
D1365J-PERFORMANCE,IT Services,BUZZSUMO.COM PRO,29-May-2019,96.98
D1841J-HOUSING MANAGEMENT SERVICES,Catering Food & Drink,CO-OP GROUP 070801,29-May-2019,25.00
D1841J-HOUSING MANAGEMENT SERVICES,Travel/Subsistence,LUL TICKET MACHINE,29-May-2019,85.00
D1117J-SUBSTANCE MISUSE,Catering Food & Drink,TESCO-STORES 6567,30-May-2019,47.16
D1145J-LIBRARIES & ARCHIVES,Education-Library Books,AMZ*JULIES-BOOKSHOP,30-May-2019,-2.49
D1145J-LIBRARIES & ARCHIVES,Books/Publications/Resources,LONDIS,30-May-2019,72.50
D1145J-LIBRARIES & ARCHIVES,Education-Library Books,Amazon.co.uk,30-May-2019,25.28
D1145J-LIBRARIES & ARCHIVES,Education-Library Books,AMZNMktplace,30-May-2019,22.34
D1229J-SPECIALIST YOUTH,Travel/Subsistence,OYSTER AUTO-TOP UP,30-May-2019,20.00
D1294J-PARKS & LEISURE SERVICES,Financial Services,DVLA VEHICLE TAX,30-May-2019,880.00
D1317J-BUSINESS SUPPORT,Travel/Subsistence,OYSTER AUTO-TOP UP,30-May-2019,40.00
D1317J-BUSINESS SUPPORT,Travel/Subsistence,OYSTER AUTO-TOP UP,30-May-2019,20.00
D1317J-BUSINESS SUPPORT,Mail Services-Postage,POST OFFICE SELF SERVI,30-May-2019,2.96
D1317J-BUSINESS SUPPORT,Taxi Fares,CIVIC TO SE19,30-May-2019,30.00
D1317J-BUSINESS SUPPORT,Travel/Subsistence,OYSTER AUTO-TOP UP,30-May-2019,20.00
D1317J-BUSINESS SUPPORT,Travel/Subsistence,OYSTER AUTO-TOP UP,30-May-2019,20.00
D1317J-BUSINESS SUPPORT,Catering Food & Drink,SAN MARINO,30-May-2019,45.00
D1317J-BUSINESS SUPPORT,Travel/Subsistence,OYSTER ONLINE,30-May-2019,30.00
D1317J-BUSINESS SUPPORT,Catering Food & Drink,LOW COST SUPERMARKET,30-May-2019,30.00
D1317J-BUSINESS SUPPORT,Taxi Fares,CIVIC SE11 SW16,30-May-2019,60.00
D1317J-BUSINESS SUPPORT,Catering Food & Drink,LOW COST SUPERMARKET,30-May-2019,40.00
D1317J-BUSINESS SUPPORT,Catering Food & Drink,JAMAICA SPICE BAKERY L,30-May-2019,38.50
D1317J-BUSINESS SUPPORT,Travel/Subsistence,OYSTER AUTO-TOP UP,30-May-2019,20.00
D1317J-BUSINESS SUPPORT,Travel/Subsistence,OYSTER AUTO-TOP UP,30-May-2019,20.00
D1317J-BUSINESS SUPPORT,Travel/Subsistence,OYSTER ONLINE,30-May-2019,20.00
D1317J-BUSINESS SUPPORT,Travel/Subsistence,OYSTER ONLINE,30-May-2019,-40.00
D1317J-BUSINESS SUPPORT,Travel/Subsistence,OYSTER AUTO-TOP UP,30-May-2019,20.00
D1317J-BUSINESS SUPPORT,Taxi Fares,CIVIC TO SE19 WAITING,30-May-2019,40.00
D1324J-INTERNAL AUDIT,Domestic Goods-Other,AMZNMktplace,30-May-2019,7.08
D1324J-INTERNAL AUDIT,Travel/Subsistence,OYSTER AUTO-TOP UP,30-May-2019,40.00
D1104J-DAY SERVICES,Professional & Advisory Services,CLINICARE SUPPLIES LTD,31-May-2019,248.59
D1104J-DAY SERVICES,Catering Food & Drink,WWW.ICELAND.CO.UK,31-May-2019,143.97
D1145J-LIBRARIES & ARCHIVES,Catering Food & Drink,ICELAND,31-May-2019,2.89
D1293J-EVENTS & FILMING,Financial Services,WANDSWORTH COUNCIL,31-May-2019,70.00
D1294J-PARKS & LEISURE SERVICES,Accommodation,THE BETH CHATTO GARDENS L,31-May-2019,225.50
D1294J-PARKS & LEISURE SERVICES,Building-General,THE TRADE HUB,31-May-2019,8.98
D1294J-PARKS & LEISURE SERVICES,Building-General,SCREWFIX DIRECT,31-May-2019,105.41
D1294J-PARKS & LEISURE SERVICES,Horticultural-Other,CROXTED RD GDN CTR,31-May-2019,67.15
D1317J-BUSINESS SUPPORT,Travel/Subsistence,OYSTER AUTO-TOP UP,31-May-2019,20.00
D1317J-BUSINESS SUPPORT,Travel/Subsistence,WWW.SOUTHEASTERNRA,31-May-2019,20.00
D1317J-BUSINESS SUPPORT,Travel/Subsistence,OYSTER AUTO-TOP UP,31-May-2019,40.00
D1317J-BUSINESS SUPPORT,Financial Services,HM PASSPORT OFFICE,31-May-2019,85.00
D1317J-BUSINESS SUPPORT,Travel/Subsistence,OYSTER AUTO-TOP UP,31-May-2019,20.00
D1317J-BUSINESS SUPPORT,Travel/Subsistence,OYSTER ONLINE,31-May-2019,316.60
D1317J-BUSINESS SUPPORT,Domestic Goods-Other,WWW.ARGOS.CO.UK,31-May-2019,63.94
D1317J-BUSINESS SUPPORT,Travel/Subsistence,OYSTER AUTO-TOP UP,31-May-2019,20.00
D1317J-BUSINESS SUPPORT,Mail Services-Postage,POST OFFICE SELF SERVI,31-May-2019,5.04
D1317J-BUSINESS SUPPORT,Travel/Subsistence,LUL TICKET MACHINE,31-May-2019,15.00
D1317J-BUSINESS SUPPORT,Travel/Subsistence,OYSTER AUTO-TOP UP,31-May-2019,80.00
D1317J-BUSINESS SUPPORT,Travel/Subsistence,OYSTER ONLINE,31-May-2019,30.00
D1317J-BUSINESS SUPPORT,Travel/Subsistence,OYSTER ONLINE,31-May-2019,-40.00
D1324J-INTERNAL AUDIT,Travel/Subsistence,OYSTER AUTO-TOP UP,31-May-2019,40.00
D1325J-LEGAL SERVICES,Travel/Subsistence,LUL TICKET MACHINE,31-May-2019,50.00
D1841J-HOUSING MANAGEMENT SERVICES,Domestic Goods-Other,ARGOS LTD,31-May-2019,79.98
D1841J-HOUSING MANAGEMENT SERVICES,Mail Services-Postage,THE POST OFFICE,31-May-2019,6.60
D1841J-HOUSING MANAGEMENT SERVICES,Financial Services,LONDON BRGH OF LAMBETH,31-May-2019,31.00
D1293J-EVENTS & FILMING,Travel/Subsistence,OYSTER AUTO-TOP UP,01-Jun-2019,40.00
D1317J-BUSINESS SUPPORT,Travel/Subsistence,OYSTER AUTO-TOP UP,01-Jun-2019,80.00
D1317J-BUSINESS SUPPORT,Travel/Subsistence,OYSTER AUTO-TOP UP,01-Jun-2019,20.00
D1317J-BUSINESS SUPPORT,Travel/Subsistence,OYSTER AUTO-TOP UP,01-Jun-2019,40.00
D1317J-BUSINESS SUPPORT,Facilities-Market Research,GOOGLE,01-Jun-2019,113.27
D1317J-BUSINESS SUPPORT,Travel/Subsistence,OYSTER AUTO-TOP UP,01-Jun-2019,120.00
D1317J-BUSINESS SUPPORT,Travel/Subsistence,OYSTER AUTO-TOP UP,01-Jun-2019,20.00
D1317J-BUSINESS SUPPORT,Travel/Subsistence,OYSTER AUTO-TOP UP,01-Jun-2019,40.00
D1317J-BUSINESS SUPPORT,Travel/Subsistence,OYSTER AUTO-TOP UP,01-Jun-2019,20.00
D1317J-BUSINESS SUPPORT,Travel/Subsistence,OYSTER AUTO-TOP UP,01-Jun-2019,40.00
D1317J-BUSINESS SUPPORT,Travel/Subsistence,OYSTER AUTO-TOP UP,01-Jun-2019,20.00
D1317J-BUSINESS SUPPORT,Travel/Subsistence,OYSTER AUTO-TOP UP,01-Jun-2019,20.00
D1365J-PERFORMANCE,IT Services,NATIONBUILDER,01-Jun-2019,179.53
D1365J-PERFORMANCE,IT Services,GOOGLE,01-Jun-2019,18.70
D1104J-DAY SERVICES,Catering Food & Drink,ISLAMABAD HALAL BUTCHERS,02-Jun-2019,75.27
D1104J-DAY SERVICES,Healthcare Equipment,SUPERDRUG STORES PLC,02-Jun-2019,65.06
D1293J-EVENTS & FILMING,IT Software,ADOBE  CREATIVE CLOUD,02-Jun-2019,83.24
D1317J-BUSINESS SUPPORT,Travel/Subsistence,OYSTER AUTO-TOP UP,02-Jun-2019,40.00
D1317J-BUSINESS SUPPORT,Travel/Subsistence,OYSTER AUTO-TOP UP,02-Jun-2019,20.00
D1317J-BUSINESS SUPPORT,Travel/Subsistence,OYSTER AUTO-TOP UP,02-Jun-2019,60.00
D1317J-BUSINESS SUPPORT,Travel/Subsistence,OYSTER AUTO-TOP UP,02-Jun-2019,20.00
D1317J-BUSINESS SUPPORT,Travel/Subsistence,OYSTER AUTO-TOP UP,02-Jun-2019,20.00
D1317J-BUSINESS SUPPORT,Travel/Subsistence,OYSTER AUTO-TOP UP,02-Jun-2019,20.00
D1104J-DAY SERVICES,Catering Food & Drink,ISLAMABAD HALAL BUTCHERS,03-Jun-2019,24.44
D1104J-DAY SERVICES,Catering Food & Drink,SEABREAZE FISH MONGERS,03-Jun-2019,30.00
D1104J-DAY SERVICES,Catering Food & Drink,M N NORWOOD HALAL BUTCHER,03-Jun-2019,116.05
D1104J-DAY SERVICES,Catering Food & Drink,WWW.ICELAND.CO.UK,03-Jun-2019,302.77
D1104J-DAY SERVICES,Catering Food & Drink,ICELAND,03-Jun-2019,67.64
D1104J-DAY SERVICES,Catering Food & Drink,TESCO STORE 2764,03-Jun-2019,87.56
D1292J-BEREAVEMENT SERVICES,Building-General,TP NORWOOD 9014,03-Jun-2019,57.61
D1294J-PARKS & LEISURE SERVICES,Consultancy-Business,FORTRESS MASTER LOCKSMITH,03-Jun-2019,37.50
D1317J-BUSINESS SUPPORT,Catering Food & Drink,LOW COST SUPERMARKET,03-Jun-2019,10.00
D1317J-BUSINESS SUPPORT,Legal Services-Other,HMCOURTS-SERVICE.G,03-Jun-2019,30.00
D1317J-BUSINESS SUPPORT,Facilities-Advertising,EXPRESS NEWS,03-Jun-2019,94.20
D1317J-BUSINESS SUPPORT,Travel/Subsistence,OYSTER ONLINE,03-Jun-2019,30.00
D1317J-BUSINESS SUPPORT,Domestic Goods-Other,WWW.ARGOS.CO.UK,03-Jun-2019,306.93
D1317J-BUSINESS SUPPORT,Organised Activities,LITTLE ANGELS CONTACT,03-Jun-2019,200.00
D1325J-LEGAL SERVICES,Facilities-Printing,DOCULAND LIMITED,03-Jun-2019,515.52
D1345J-FINANCIAL PLANNING AND MANAGEMENT,Financial Services,LAND REGISTRY,03-Jun-2019,15.00
D1345J-FINANCIAL PLANNING AND MANAGEMENT,Domestic Goods-Other,WWW.ARGOS.CO.UK,03-Jun-2019,115.94
D1365J-PERFORMANCE,IT Services,AWS EMEA,03-Jun-2019,142.22
D1365J-PERFORMANCE,IT Services,NATIONBUILDER,03-Jun-2019,97.16
D1841J-HOUSING MANAGEMENT SERVICES,Travel/Subsistence,LUL TICKET MACHINE,03-Jun-2019,50.00
D1104J-DAY SERVICES,Catering Food & Drink,TESCO STORE 2764,04-Jun-2019,70.20
D1104J-DAY SERVICES,Building-Others,TESCO STORE 2764,04-Jun-2019,61.64
D1145J-LIBRARIES & ARCHIVES,Education-Library Books,AMZN Mktp UK,04-Jun-2019,6.49
D1145J-LIBRARIES & ARCHIVES,Education-Library Books,AMZNMktplace,04-Jun-2019,5.79
D1292J-BEREAVEMENT SERVICES,Cemetery & Crematorium,AMZNMktplace,04-Jun-2019,61.65
D1292J-BEREAVEMENT SERVICES,Cemetery & Crematorium,AMAZON.CO.UK,04-Jun-2019,10.99
D1293J-EVENTS & FILMING,Building-Tools,WWW.YAHIRE.COM,04-Jun-2019,-300.87
D1293J-EVENTS & FILMING,Haulage,TNT UK LTD,04-Jun-2019,230.39
D1294J-PARKS & LEISURE SERVICES,Building-Timber,SELCO TRADING CTR,04-Jun-2019,107.37
D1294J-PARKS & LEISURE SERVICES,Building-General,LEYLAND SDM CLAPHAM HIGH,04-Jun-2019,8.98
D1294J-PARKS & LEISURE SERVICES,Building-Timber,SELCO TRADING CTR,04-Jun-2019,53.63
D1294J-PARKS & LEISURE SERVICES,Building-Timber,SCREWFIX BRIXTON,04-Jun-2019,88.98
D1295J-PARKING OPERATIONS,Mail Services-Postage,THE POST OFFICE,04-Jun-2019,420.00
D1317J-BUSINESS SUPPORT,Travel/Subsistence,OYSTER AUTO-TOP UP,04-Jun-2019,20.00
D1317J-BUSINESS SUPPORT,Financial Services,HM PASSPORT OFFICE,04-Jun-2019,85.00
D1317J-BUSINESS SUPPORT,Taxi Fares,SW2 TO SE19,04-Jun-2019,30.00
D1317J-BUSINESS SUPPORT,Travel/Subsistence,OYSTER ONLINE,04-Jun-2019,60.00
D1317J-BUSINESS SUPPORT,Domestic Goods-Other,WWW.ARGOS.CO.UK,04-Jun-2019,409.99
D1317J-BUSINESS SUPPORT,Travel/Subsistence,OYSTER ONLINE,04-Jun-2019,30.00
D1317J-BUSINESS SUPPORT,Taxi Fares,SW2 TO SW9,04-Jun-2019,20.00
D1317J-BUSINESS SUPPORT,Taxi Fares,SW9 TO SE17 5 DAYS,04-Jun-2019,350.00
D1317J-BUSINESS SUPPORT,Financial Services,LEGALSERVICES.GOV.,04-Jun-2019,35.07
D1317J-BUSINESS SUPPORT,Travel/Subsistence,OYSTER ONLINE,04-Jun-2019,30.00
D1321J-DEMOCRATIC SERVICES,Catering Food & Drink,TESCO STORE 2143,04-Jun-2019,9.78
D1325J-LEGAL SERVICES,Legal Services-General Support,INST OF LIC,04-Jun-2019,80.00
D1345J-FINANCIAL PLANNING AND MANAGEMENT,Domestic Goods-Other,WWW.ARGOS.CO.UK,04-Jun-2019,"1,857.83"
D1345J-FINANCIAL PLANNING AND MANAGEMENT,Financial Services,LAND REGISTRY,04-Jun-2019,3.00
D1351J-LEARNING & DEVELOPMENT,Facilities-Market Research,Amazon Prime,04-Jun-2019,-7.99
D1365J-PERFORMANCE,IT Services,PANTHEON SYSTEMS INC,04-Jun-2019,28.51
D1841J-HOUSING MANAGEMENT SERVICES,IT Software-Customised,INTELLISOFTWARE LTD,04-Jun-2019,120.00
D1100J-ADULTS WITH MENTAL HEALTH NEEDS,Travel/Subsistence,GREATER ANGLIA TRAINS,05-Jun-2019,25.50
D1117J-SUBSTANCE MISUSE,Consultancy-Business,CATERING24 LIMITED,05-Jun-2019,127.76
D1117J-SUBSTANCE MISUSE,Financial Services,LAMBETH INTERNET PAYM,05-Jun-2019,100.00
D1145J-LIBRARIES & ARCHIVES,Education-Library Books,AMZNMktplace,05-Jun-2019,6.45
D1145J-LIBRARIES & ARCHIVES,Domestic Goods-Other,AMZNMktplace,05-Jun-2019,3.03
D1220J-HOUSING OPTIONS - GF,Furniture-Domestic Furniture,DFS Trading Limited,05-Jun-2019,"1,128.00"
D1229J-SPECIALIST YOUTH,Building-Others,EXCHANGE SUPPLIES,05-Jun-2019,72.00
D1292J-BEREAVEMENT SERVICES,Cemetery & Crematorium,AMZNMktplace,05-Jun-2019,20.85
D1292J-BEREAVEMENT SERVICES,Catering Food & Drink,AMZNMktplace,05-Jun-2019,9.49
D1294J-PARKS & LEISURE SERVICES,Facilities-Advertising,STREET RUNNERS LIMITED,05-Jun-2019,204.00
D1294J-PARKS & LEISURE SERVICES,Financial Services,DVLA ENFORCEMENT,05-Jun-2019,83.34
D1294J-PARKS & LEISURE SERVICES,Travel/Subsistence,TFL ROAD CHG - STD WEB,05-Jun-2019,11.50
D1294J-PARKS & LEISURE SERVICES,Building-General,TOOLSTATION LTD,05-Jun-2019,65.73
D1294J-PARKS & LEISURE SERVICES,Building-Timber,SCREWFIX BRIXTON,05-Jun-2019,53.01
D1304J-HOUSING BENEFIT,Legal Services-Other,HMCOURTS-SERVICE.G,05-Jun-2019,"2,156.50"
D1317J-BUSINESS SUPPORT,Domestic Goods-Other,WWW.ARGOS.CO.UK,05-Jun-2019,586.94
D1317J-BUSINESS SUPPORT,Consultancy-Business,EB *PARTNERSHIPS IN PR,05-Jun-2019,128.51
D1317J-BUSINESS SUPPORT,Travel/Subsistence,OYSTER AUTO-TOP UP,05-Jun-2019,80.00
D1317J-BUSINESS SUPPORT,Clothing-Children/Adults,CROYDON SCHOOL OF GYMN,05-Jun-2019,85.00
D1317J-BUSINESS SUPPORT,Travel/Subsistence,OYSTER ONLINE,05-Jun-2019,60.00
D1317J-BUSINESS SUPPORT,Accommodation,PREMIER INN44521885,05-Jun-2019,295.00
D1317J-BUSINESS SUPPORT,Travel/Subsistence,OYSTER ONLINE,05-Jun-2019,30.00
D1317J-BUSINESS SUPPORT,Travel/Subsistence,OYSTER AUTO-TOP UP,05-Jun-2019,60.00
D1317J-BUSINESS SUPPORT,Travel/Subsistence,OYSTER AUTO-TOP UP,05-Jun-2019,20.00
D1317J-BUSINESS SUPPORT,Travel/Subsistence,OYSTER AUTO-TOP UP,05-Jun-2019,20.00
D1317J-BUSINESS SUPPORT,Travel/Subsistence,OYSTER ONLINE,05-Jun-2019,-30.00
D1317J-BUSINESS SUPPORT,Travel/Subsistence,OYSTER AUTO-TOP UP,05-Jun-2019,20.00
D1317J-BUSINESS SUPPORT,Travel/Subsistence,OYSTER AUTO-TOP UP,05-Jun-2019,40.00
D1317J-BUSINESS SUPPORT,Travel/Subsistence,TRAINLINE,05-Jun-2019,145.94
D1317J-BUSINESS SUPPORT,Facilities-Advertising,FACEBK S8AFZLWCE2,05-Jun-2019,400.00
D1317J-BUSINESS SUPPORT,Travel/Subsistence,OYSTER AUTO-TOP UP,05-Jun-2019,40.00
D1317J-BUSINESS SUPPORT,Travel/Subsistence,OYSTER AUTO-TOP UP,05-Jun-2019,40.00
D1317J-BUSINESS SUPPORT,Travel/Subsistence,OYSTER ONLINE,05-Jun-2019,70.00
D1317J-BUSINESS SUPPORT,Travel/Subsistence,OYSTER AUTO-TOP UP,05-Jun-2019,80.00
D1317J-BUSINESS SUPPORT,Travel/Subsistence,OYSTER ONLINE,05-Jun-2019,-25.00
D1321J-DEMOCRATIC SERVICES,Catering Food & Drink,TESCO STORE 2143,05-Jun-2019,9.12
D1325J-LEGAL SERVICES,Legal Services-General Support,GROUP SERVICES,05-Jun-2019,"4,069.37"
D1841J-HOUSING MANAGEMENT SERVICES,Facilities-Market Research,Amazon Prime,05-Jun-2019,7.99
D1841J-HOUSING MANAGEMENT SERVICES,Travel/Subsistence,LUL TICKET MACHINE,05-Jun-2019,200.00
D1117J-SUBSTANCE MISUSE,Education-Library Books,HEALTH BOOKS UK LTD,06-Jun-2019,22.50
D1117J-SUBSTANCE MISUSE,Domestic Goods-Other,WWW.ARGOS.CO.UK,06-Jun-2019,215.95
D1145J-LIBRARIES & ARCHIVES,Education-Library Books,AMZNMktplace,06-Jun-2019,6.43
D1145J-LIBRARIES & ARCHIVES,Financial Services,LAMBETH INTERNET PAYM,06-Jun-2019,21.00
D1145J-LIBRARIES & ARCHIVES,Books/Publications/Resources,HERNE HILL LONDIS,06-Jun-2019,115.20
D1145J-LIBRARIES & ARCHIVES,Financial Services,LAMBETH INTERNET PAYM,06-Jun-2019,21.00
D1229J-SPECIALIST YOUTH,Catering Food & Drink,TESCO STORE 2143,06-Jun-2019,7.15
D1229J-SPECIALIST YOUTH,Travel/Subsistence,OYSTER AUTO-TOP UP,06-Jun-2019,40.00
D1293J-EVENTS & FILMING,Travel/Subsistence,OYSTER AUTO-TOP UP,06-Jun-2019,40.00
D1294J-PARKS & LEISURE SERVICES,Building-General,SCREWFIX DIRECT,06-Jun-2019,66.97
D1294J-PARKS & LEISURE SERVICES,Domestic Goods-Other,AMZNMKTPLACE AMAZON.CO.UK,06-Jun-2019,5.99
D1294J-PARKS & LEISURE SERVICES,Consultancy-Business,ROMFORD SECURITYS LTD,06-Jun-2019,94.40
D1317J-BUSINESS SUPPORT,Catering Food & Drink,MARKS&SPENCER PLC SACA,06-Jun-2019,115.30
D1317J-BUSINESS SUPPORT,Travel/Subsistence,OYSTER AUTO-TOP UP,06-Jun-2019,60.00
D1317J-BUSINESS SUPPORT,Facilities-Advertising,EXPRESS NEWS,06-Jun-2019,60.00
D1317J-BUSINESS SUPPORT,Travel/Subsistence,OYSTER AUTO-TOP UP,06-Jun-2019,80.00
D1317J-BUSINESS SUPPORT,Travel/Subsistence,OYSTER AUTO-TOP UP,06-Jun-2019,20.00
D1317J-BUSINESS SUPPORT,Telecommunications,PAYPAL,06-Jun-2019,357.97
D1317J-BUSINESS SUPPORT,Travel/Subsistence,OYSTER AUTO-TOP UP,06-Jun-2019,20.00
D1317J-BUSINESS SUPPORT,Travel/Subsistence,OYSTER AUTO-TOP UP,06-Jun-2019,60.00
D1317J-BUSINESS SUPPORT,Travel/Subsistence,OYSTER AUTO-TOP UP,06-Jun-2019,20.00
D1317J-BUSINESS SUPPORT,Travel/Subsistence,OYSTER AUTO-TOP UP,06-Jun-2019,40.00
D1317J-BUSINESS SUPPORT,Travel/Subsistence,OYSTER AUTO-TOP UP,06-Jun-2019,80.00
D1317J-BUSINESS SUPPORT,Financial Services,GEN REGISTER OFFICE,06-Jun-2019,73.00
D1317J-BUSINESS SUPPORT,Travel/Subsistence,OYSTER AUTO-TOP UP,06-Jun-2019,20.00
D1317J-BUSINESS SUPPORT,Organised Activities,LET ME PLAY LTD,06-Jun-2019,30.00
D1317J-BUSINESS SUPPORT,Travel/Subsistence,OYSTER AUTO-TOP UP,06-Jun-2019,20.00
D1345J-FINANCIAL PLANNING AND MANAGEMENT,Financial Services,LAND REGISTRY,06-Jun-2019,9.00
D1365J-PERFORMANCE,Facilities-Advertising,FACEBK L3BXLL26M2,06-Jun-2019,40.00
D1847J-RESIDENT ENGAGEMENT,Catering Food & Drink,TESCO STORE 2143,06-Jun-2019,36.29
D1100J-ADULTS WITH MENTAL HEALTH NEEDS,Legal Services-Other,HMCOURTS-SERVICE.G,07-Jun-2019,225.00
D1100J-ADULTS WITH MENTAL HEALTH NEEDS,Works-Construction/Materials,LOCKSMITHS AT THE TOOL,07-Jun-2019,408.00
D1117J-SUBSTANCE MISUSE,Healthcare Equipment,BEAVER HEALTH CARE LTD,07-Jun-2019,329.28
D1145J-LIBRARIES & ARCHIVES,Catering Food & Drink,SAINSBURY'S,07-Jun-2019,36.80
D1145J-LIBRARIES & ARCHIVES,Education-Library Books,Amazon.co.uk,07-Jun-2019,7.42
D1145J-LIBRARIES & ARCHIVES,Education-Library Books,AMZNMktplace,07-Jun-2019,49.60
D1145J-LIBRARIES & ARCHIVES,Catering Food & Drink,SAINSBURY'S,07-Jun-2019,188.10
D1229J-SPECIALIST YOUTH,Taxi Fares,WWW.ADDISONLEE.COM,07-Jun-2019,39.20
D1294J-PARKS & LEISURE SERVICES,Building-General,TOOLSTATION LTD,07-Jun-2019,80.21
D1294J-PARKS & LEISURE SERVICES,Sports Equipment,BIGFOOT BASKETBALL LIMITE,07-Jun-2019,232.66
D1294J-PARKS & LEISURE SERVICES,Building-Electrical,WWW.LAMPCO.CO.UK,07-Jun-2019,88.85
D1294J-PARKS & LEISURE SERVICES,Building-Timber,SELCO BUILDERS WAR,07-Jun-2019,121.52
D1294J-PARKS & LEISURE SERVICES,Travel/Subsistence,TFL ROAD CHG - STD WEB,07-Jun-2019,23.00
D1294J-PARKS & LEISURE SERVICES,Building-Timber,HOMEBASE LTD 313,07-Jun-2019,94.85
D1317J-BUSINESS SUPPORT,Travel/Subsistence,OYSTER AUTO-TOP UP,07-Jun-2019,20.00
D1317J-BUSINESS SUPPORT,Domestic Goods-Other,WWW.ARGOS.CO.UK,07-Jun-2019,"1,259.86"
D1317J-BUSINESS SUPPORT,Travel/Subsistence,OYSTER AUTO-TOP UP,07-Jun-2019,40.00
D1317J-BUSINESS SUPPORT,Furniture-Domestic Furniture,WWW.IKEA.COM,07-Jun-2019,634.00
D1317J-BUSINESS SUPPORT,Travel/Subsistence,OYSTER AUTO-TOP UP,07-Jun-2019,60.00
D1317J-BUSINESS SUPPORT,Travel/Subsistence,OYSTER AUTO-TOP UP,07-Jun-2019,60.00
D1317J-BUSINESS SUPPORT,Financial Services,LONDON BRGH OF LAMBETH,07-Jun-2019,41.00
D1317J-BUSINESS SUPPORT,Facilities-Advertising,EXPRESS NEWS,07-Jun-2019,10.00
D1317J-BUSINESS SUPPORT,Domestic Goods-Other,WWW.ARGOS.CO.UK,07-Jun-2019,569.89
D1317J-BUSINESS SUPPORT,Travel/Subsistence,OYSTER AUTO-TOP UP,07-Jun-2019,40.00
D1317J-BUSINESS SUPPORT,Education-Other,PAYPAL,07-Jun-2019,900.00
D1145J-LIBRARIES & ARCHIVES,Education-Library Books,AMZNMktplace,08-Jun-2019,10.00
D1148J-SCHOOL & EDUCATIONAL IMPROVEMENT SERVICE,Domestic Goods-Other,AMAZON.CO.UK,08-Jun-2019,192.97
D1220J-HOUSING OPTIONS - GF,Books/Publications/Resources,WHICH,08-Jun-2019,11.75
D1293J-EVENTS & FILMING,IT Services,Dropbox RBCVKVQXXJJL,08-Jun-2019,7.99
D1307J-PENSIONS SERVICES,Accommodation,PREMIER INN 44533710,08-Jun-2019,101.99
D1307J-PENSIONS SERVICES,Accommodation,PREMIER INN 44533710,08-Jun-2019,84.50
D1317J-BUSINESS SUPPORT,Travel/Subsistence,OYSTER AUTO-TOP UP,08-Jun-2019,60.00
D1317J-BUSINESS SUPPORT,Travel/Subsistence,OYSTER AUTO-TOP UP,08-Jun-2019,100.00
D1317J-BUSINESS SUPPORT,Travel/Subsistence,OYSTER AUTO-TOP UP,08-Jun-2019,20.00
D1317J-BUSINESS SUPPORT,Travel/Subsistence,OYSTER AUTO-TOP UP,08-Jun-2019,20.00
D1317J-BUSINESS SUPPORT,Travel/Subsistence,OYSTER AUTO-TOP UP,08-Jun-2019,20.00
D1317J-BUSINESS SUPPORT,Travel/Subsistence,OYSTER AUTO-TOP UP,08-Jun-2019,60.00
D1317J-BUSINESS SUPPORT,Travel/Subsistence,OYSTER AUTO-TOP UP,08-Jun-2019,20.00
D1117J-SUBSTANCE MISUSE,Facilities-Printing,Amazon.co.uk,09-Jun-2019,21.96
D1145J-LIBRARIES & ARCHIVES,Books/Publications/Resources,AMZNMktplace,09-Jun-2019,54.58
D1145J-LIBRARIES & ARCHIVES,Domestic Goods-Other,AMZNMktplace,09-Jun-2019,20.65
D1145J-LIBRARIES & ARCHIVES,Books/Publications/Resources,AMZNMktplace,09-Jun-2019,71.63
D1229J-SPECIALIST YOUTH,Travel/Subsistence,OYSTER AUTO-TOP UP,09-Jun-2019,20.00
D1294J-PARKS & LEISURE SERVICES,Domestic Goods-Other,AMZNMKTPLACE AMAZON.CO.UK,09-Jun-2019,19.59
D1317J-BUSINESS SUPPORT,Travel/Subsistence,OYSTER AUTO-TOP UP,09-Jun-2019,40.00
D1317J-BUSINESS SUPPORT,Travel/Subsistence,OYSTER AUTO-TOP UP,09-Jun-2019,40.00
D1317J-BUSINESS SUPPORT,Travel/Subsistence,OYSTER AUTO-TOP UP,09-Jun-2019,20.00
D1317J-BUSINESS SUPPORT,Travel/Subsistence,OYSTER AUTO-TOP UP,09-Jun-2019,40.00
D1317J-BUSINESS SUPPORT,Travel/Subsistence,OYSTER AUTO-TOP UP,09-Jun-2019,40.00
D1317J-BUSINESS SUPPORT,Travel/Subsistence,OYSTER AUTO-TOP UP,09-Jun-2019,40.00
D1104J-DAY SERVICES,Catering Food & Drink,ICELAND,10-Jun-2019,36.84
D1117J-SUBSTANCE MISUSE,Catering Food & Drink,TESCO STORES 5999,10-Jun-2019,87.54
D1145J-LIBRARIES & ARCHIVES,Education-Library Books,ABEBOOKS GWJZCJ,10-Jun-2019,19.86
D1145J-LIBRARIES & ARCHIVES,Domestic Goods-Other,LION PICTURE FRAMING S,10-Jun-2019,174.66
D1145J-LIBRARIES & ARCHIVES,Education-Library Books,AMZNMKTPLACE AMAZON.CO.UK,10-Jun-2019,5.55
D1145J-LIBRARIES & ARCHIVES,Education-Library Books,AMAZON.CO.UK,10-Jun-2019,8.42
D1229J-SPECIALIST YOUTH,Domestic Goods-Other,POUNDLAND LTD 1203,10-Jun-2019,9.00
D1229J-SPECIALIST YOUTH,Taxi Fares,ADDISON LEE EXTRA,10-Jun-2019,9.25
D1229J-SPECIALIST YOUTH,Travel/Subsistence,TFL AUTOSETTLEMENT,10-Jun-2019,40.00
D1229J-SPECIALIST YOUTH,Travel/Subsistence,AUTO TOP-UP ARREARS,10-Jun-2019,20.00
D1229J-SPECIALIST YOUTH,Domestic Goods-Other,ARGOS RETAIL GROUP,10-Jun-2019,78.98
D1229J-SPECIALIST YOUTH,Domestic Goods-Other,MORLEYS,10-Jun-2019,10.05
D1294J-PARKS & LEISURE SERVICES,Financial Services,DVSA,10-Jun-2019,257.00
D1294J-PARKS & LEISURE SERVICES,Travel/Subsistence,TFL ROAD CHG - STD WEB,10-Jun-2019,23.00
D1294J-PARKS & LEISURE SERVICES,Building-General,TOOLSTATION LTD,10-Jun-2019,84.94
D1294J-PARKS & LEISURE SERVICES,Building-Timber,SELCO TRADING CTR,10-Jun-2019,81.11
D1301J-EXECUTIVE SUPPORT,Conference Expenses,FUTURE CITIES FORUM,10-Jun-2019,300.00
D1317J-BUSINESS SUPPORT,Travel/Subsistence,OYSTER AUTO-TOP UP,10-Jun-2019,40.00
D1317J-BUSINESS SUPPORT,Catering Food & Drink,MARKS&SPENCER PLC,10-Jun-2019,33.50
D1317J-BUSINESS SUPPORT,Travel/Subsistence,OYSTER AUTO-TOP UP,10-Jun-2019,20.00
D1317J-BUSINESS SUPPORT,Travel/Subsistence,OYSTER ONLINE,10-Jun-2019,25.00
D1317J-BUSINESS SUPPORT,Facilities-Market Research,WAYFAIR #2965926564,10-Jun-2019,148.95
D1317J-BUSINESS SUPPORT,Travel/Subsistence,OYSTER AUTO-TOP UP,10-Jun-2019,20.00
D1317J-BUSINESS SUPPORT,Domestic Goods-Other,WWW.ARGOS.CO.UK,10-Jun-2019,557.95
D1317J-BUSINESS SUPPORT,Facilities-Market Research,WAYFAIR #2978529974,10-Jun-2019,104.95
D1317J-BUSINESS SUPPORT,Financial Services,GEN REGISTER OFFICE,10-Jun-2019,76.00
D1317J-BUSINESS SUPPORT,Domestic Goods-Other,WWW.JDWILLIAMS.CO.UK,10-Jun-2019,272.00
D1317J-BUSINESS SUPPORT,Domestic Goods-Other,WWW JCCAMPBELLELECTRIC,10-Jun-2019,299.99
D1100J-ADULTS WITH MENTAL HEALTH NEEDS,Legal Services-Other,HMCOURTS-SERVICE.G,11-Jun-2019,150.00
D1104J-DAY SERVICES,Financial Services,SANTANDER PLC (UK),11-Jun-2019,400.00
D1104J-DAY SERVICES,Catering Food & Drink,TESCO STORE 3205,11-Jun-2019,33.21
D1104J-DAY SERVICES,Catering Food & Drink,ICELAND,11-Jun-2019,43.29
D1117J-SUBSTANCE MISUSE,Domestic Goods-Other,WWW.ARGOS.CO.UK,11-Jun-2019,-215.95
D1145J-LIBRARIES & ARCHIVES,Education-Library Books,AMZNMKTPLACE AMAZON.CO.UK,11-Jun-2019,10.75
D1145J-LIBRARIES & ARCHIVES,Travel/Subsistence,RASPBERRY LOCAL,11-Jun-2019,21.20
D1145J-LIBRARIES & ARCHIVES,Education-Library Books,AMZNMktplace,11-Jun-2019,11.71
D1145J-LIBRARIES & ARCHIVES,Education-Library Books,ABEBOOKS.DE,11-Jun-2019,30.81
D1145J-LIBRARIES & ARCHIVES,Education-Library Books,AMAZON.CO.UK,11-Jun-2019,8.79
D1145J-LIBRARIES & ARCHIVES,Travel/Subsistence,BRIXTON 3,11-Jun-2019,120.00
D1145J-LIBRARIES & ARCHIVES,Education-Library Books,Amazon.co.uk,11-Jun-2019,7.22
D1174J-PUBLIC HEALTH - ADULTS,Domestic Goods-Other,PAYPAL,11-Jun-2019,138.50
D1174J-PUBLIC HEALTH - ADULTS,Haulage,MAN AND VAN TODAY,11-Jun-2019,135.00
D1229J-SPECIALIST YOUTH,Travel/Subsistence,OYSTER AUTO-TOP UP,11-Jun-2019,20.00
D1294J-PARKS & LEISURE SERVICES,Building-General,SCREWFIX DIRECT,11-Jun-2019,37.35
D1294J-PARKS & LEISURE SERVICES,Sports Equipment,BIGFOOT BASKETBALL LIMITE,11-Jun-2019,232.66
D1317J-BUSINESS SUPPORT,Facilities-Retail,www.groupon.co.uk,11-Jun-2019,250.00
D1317J-BUSINESS SUPPORT,Catering Food & Drink,LOW COST SUPERMARKET,11-Jun-2019,60.00
D1317J-BUSINESS SUPPORT,Travel/Subsistence,OYSTER AUTO-TOP UP,11-Jun-2019,40.00
D1841J-HOUSING MANAGEMENT SERVICES,Domestic Goods-Other,AMZNMktplace,11-Jun-2019,14.51
D1104J-DAY SERVICES,Consultancy-Other,CVLE / MPLC,12-Jun-2019,202.51
D1104J-DAY SERVICES,Healthcare Equipment,NRS HEALTHCARE,12-Jun-2019,17.09
D1104J-DAY SERVICES,Financial Services,CASH ADVANCE FEE,12-Jun-2019,11.80
D1145J-LIBRARIES & ARCHIVES,Education-Library Books,Amazon.co.uk,12-Jun-2019,8.68
D1145J-LIBRARIES & ARCHIVES,Education-Library Books,AMAZON.CO.UK,12-Jun-2019,8.79
D1145J-LIBRARIES & ARCHIVES,Education-Library Books,AMZN MKTP UK,12-Jun-2019,8.95
D1145J-LIBRARIES & ARCHIVES,Education-Library Books,AMZNMktplace,12-Jun-2019,4.40
D1145J-LIBRARIES & ARCHIVES,Travel/Subsistence,CASH ADVANCE FEE,12-Jun-2019,3.54
D1229J-SPECIALIST YOUTH,Travel/Subsistence,OYSTER AUTO-TOP UP,12-Jun-2019,20.00
D1247J-SUSTAINABILITY & ROAD SAFETY,Travel/Subsistence,ZIPCAR,12-Jun-2019,19.00
D1293J-EVENTS & FILMING,Furniture-Other,SQ *ECO FURNITURE HIRE LI,12-Jun-2019,901.88
D1293J-EVENTS & FILMING,IT Services,APPLE.COM/UK,12-Jun-2019,79.00
D1293J-EVENTS & FILMING,Consultancy-Business,BLS*MONDAY.COM,12-Jun-2019,148.80
D1293J-EVENTS & FILMING,Environmental Services-Waste,PORTABLE TOILET HIRE (,12-Jun-2019,414.00
D1294J-PARKS & LEISURE SERVICES,Sports Equipment,BIGFOOT BASKETBALL LIMITE,12-Jun-2019,232.68
D1294J-PARKS & LEISURE SERVICES,Building-General,SCREWFIX DIRECT,12-Jun-2019,101.77
D1294J-PARKS & LEISURE SERVICES,Telecommunications,giffgaff,12-Jun-2019,6.00
D1294J-PARKS & LEISURE SERVICES,Telecommunications,GIFFGAFF,12-Jun-2019,12.00
D1294J-PARKS & LEISURE SERVICES,Utilities,THAMES WATER,12-Jun-2019,204.00
D1302J-FACILITIES MANAGEMENT,Telecommunications,BT PAY BY PHONE,12-Jun-2019,107.12
D1317J-BUSINESS SUPPORT,Catering Food & Drink,TESCO STORE 2143,12-Jun-2019,11.57
D1317J-BUSINESS SUPPORT,Travel/Subsistence,OYSTER AUTO-TOP UP,12-Jun-2019,40.00
D1317J-BUSINESS SUPPORT,Travel/Subsistence,OYSTER AUTO-TOP UP,12-Jun-2019,80.00
D1317J-BUSINESS SUPPORT,Facilities-Advertising,EXPRESS NEWS,12-Jun-2019,30.00
D1317J-BUSINESS SUPPORT,Travel/Subsistence,OYSTER AUTO-TOP UP,12-Jun-2019,20.00
D1317J-BUSINESS SUPPORT,Organised Activities,SDS SEMINARS LIMITED,12-Jun-2019,330.00
D1317J-BUSINESS SUPPORT,Travel/Subsistence,OYSTER ONLINE,12-Jun-2019,60.00
D1317J-BUSINESS SUPPORT,Catering Food & Drink,JAMAICA SPICE BAKERY L,12-Jun-2019,16.00
D1317J-BUSINESS SUPPORT,Education-Other,PAYPAL,12-Jun-2019,-180.00
D1317J-BUSINESS SUPPORT,Travel/Subsistence,OYSTER AUTO-TOP UP,12-Jun-2019,20.00
D1317J-BUSINESS SUPPORT,Travel/Subsistence,OYSTER ONLINE,12-Jun-2019,30.00
D1317J-BUSINESS SUPPORT,Travel/Subsistence,OYSTER AUTO-TOP UP,12-Jun-2019,40.00
D1321J-DEMOCRATIC SERVICES,Catering Food & Drink,TESCO STORE 2143,12-Jun-2019,9.00
D1325J-LEGAL SERVICES,Travel/Subsistence,LUL TICKET MACHINE,12-Jun-2019,50.00
D1345J-FINANCIAL PLANNING AND MANAGEMENT,Travel/Subsistence,LUL TICKET MACHINE,12-Jun-2019,50.00
D1345J-FINANCIAL PLANNING AND MANAGEMENT,Domestic Goods-Other,CURRYS ONLINE,12-Jun-2019,848.98
D1345J-FINANCIAL PLANNING AND MANAGEMENT,Catering Food & Drink,ASDA GEORGE COM LEEDS,12-Jun-2019,57.00
D1345J-FINANCIAL PLANNING AND MANAGEMENT,Domestic Goods-Other,WWW.ARGOS.CO.UK,12-Jun-2019,199.93
D1365J-PERFORMANCE,Books/Publications/Resources,HIGHSTREETVOUCHERS,12-Jun-2019,154.50
D1841J-HOUSING MANAGEMENT SERVICES,Domestic Goods-Other,AMZNMKTPLACE AMAZON.CO.UK,12-Jun-2019,135.99
D1117J-SUBSTANCE MISUSE,IT Software,SP * SUBSTANCE CREATE,13-Jun-2019,30.00
D1145J-LIBRARIES & ARCHIVES,Education-Other,AMZNMktplace,13-Jun-2019,10.95
D1145J-LIBRARIES & ARCHIVES,Education-Library Books,AMAZON.CO.UK,13-Jun-2019,9.99
D1145J-LIBRARIES & ARCHIVES,Education-Library Books,AMZNMktplace,13-Jun-2019,11.15
D1145J-LIBRARIES & ARCHIVES,Education-Other,AMZNMktplace,13-Jun-2019,12.34
D1145J-LIBRARIES & ARCHIVES,Travel/Subsistence,OYSTER AUTO-TOP UP,13-Jun-2019,40.00
D1148J-SCHOOL & EDUCATIONAL IMPROVEMENT SERVICE,Facilities-Printing,P4U DESIGN AND PRINT,13-Jun-2019,184.80
D1229J-SPECIALIST YOUTH,Travel/Subsistence,OYSTER AUTO-TOP UP,13-Jun-2019,40.00
D1229J-SPECIALIST YOUTH,Taxi Fares,WWW.ADDISONLEE.COM,13-Jun-2019,37.70
D1292J-BEREAVEMENT SERVICES,Cemetery & Crematorium,AMZNMktplace,13-Jun-2019,33.72
D1293J-EVENTS & FILMING,Financial Services,LBL NOT PRESENT,13-Jun-2019,37.00
D1317J-BUSINESS SUPPORT,Taxi Fares,SW4 TO SW4,13-Jun-2019,15.00
D1317J-BUSINESS SUPPORT,Taxi Fares,SW16 SW19CO2,13-Jun-2019,235.00
D1317J-BUSINESS SUPPORT,Travel/Subsistence,OYSTER AUTO-TOP UP,13-Jun-2019,20.00
D1317J-BUSINESS SUPPORT,Travel/Subsistence,OYSTER AUTO-TOP UP,13-Jun-2019,20.00
D1317J-BUSINESS SUPPORT,Travel/Subsistence,OYSTER AUTO-TOP UP,13-Jun-2019,20.00
D1317J-BUSINESS SUPPORT,Taxi Fares,SW9 TO CR9 CALLOUT,13-Jun-2019,20.00
D1317J-BUSINESS SUPPORT,Accommodation,B.com 3380528-G2PIO Haven,13-Jun-2019,178.00
D1317J-BUSINESS SUPPORT,Travel/Subsistence,OYSTER AUTO-TOP UP,13-Jun-2019,40.00
D1317J-BUSINESS SUPPORT,Travel/Subsistence,OYSTER ONLINE,13-Jun-2019,35.00
D1317J-BUSINESS SUPPORT,Building-Floors,TOOTING CARPETS,13-Jun-2019,560.00
D1317J-BUSINESS SUPPORT,Domestic Goods-Other,WWW.ARGOS.CO.UK,13-Jun-2019,104.95
D1317J-BUSINESS SUPPORT,Domestic Goods-Other,WWW.ARGOS.CO.UK,13-Jun-2019,539.97
D1317J-BUSINESS SUPPORT,Taxi Fares,SE19 TO BR1 RETURN,13-Jun-2019,80.00
D1317J-BUSINESS SUPPORT,Domestic Goods-Other,WWW.ARGOS.CO.UK,13-Jun-2019,102.95
D1317J-BUSINESS SUPPORT,Travel/Subsistence,OYSTER AUTO-TOP UP,13-Jun-2019,60.00
D1317J-BUSINESS SUPPORT,Travel/Subsistence,OYSTER AUTO-TOP UP,13-Jun-2019,20.00
D1317J-BUSINESS SUPPORT,Mail Services-Postage,POST OFFICE SELF SERVI,13-Jun-2019,6.45
D1317J-BUSINESS SUPPORT,Taxi Fares,SE6 TO SW2 RETURN,13-Jun-2019,80.00
D1317J-BUSINESS SUPPORT,Travel/Subsistence,TRAINLINE,13-Jun-2019,69.31
D1321J-DEMOCRATIC SERVICES,Catering Food & Drink,TESCO STORE 2143,13-Jun-2019,9.00
D1324J-INTERNAL AUDIT,Travel/Subsistence,OYSTER AUTO-TOP UP,13-Jun-2019,40.00
D1345J-FINANCIAL PLANNING AND MANAGEMENT,Domestic Goods-Other,WWW.ARGOS.CO.UK,13-Jun-2019,949.95
D1365J-PERFORMANCE,Catering Food & Drink,TESCO STORES 5999,13-Jun-2019,-69.00
D1847J-RESIDENT ENGAGEMENT,Travel/Subsistence,OYSTER AUTO-TOP UP,13-Jun-2019,20.00
D1104J-DAY SERVICES,Catering Food & Drink,WWW.ICELAND.CO.UK,14-Jun-2019,190.28
D1117J-SUBSTANCE MISUSE,Domestic Goods-Other,WWW.ARGOS.CO.UK,14-Jun-2019,244.95
D1145J-LIBRARIES & ARCHIVES,Travel/Subsistence,OYSTER AUTO-TOP UP,14-Jun-2019,40.00
D1145J-LIBRARIES & ARCHIVES,Books/Publications/Resources,METRO BANK CLAPHAM HIGH,14-Jun-2019,180.00
D1229J-SPECIALIST YOUTH,Travel/Subsistence,OYSTER AUTO-TOP UP,14-Jun-2019,40.00
D1294J-PARKS & LEISURE SERVICES,Building-Timber,SCREWFIX BRIXTON,14-Jun-2019,129.98
D1294J-PARKS & LEISURE SERVICES,Cycles Purchase,HALFORDS 0716,14-Jun-2019,140.00
D1294J-PARKS & LEISURE SERVICES,Building-General,MACKAYS HARDWARE,14-Jun-2019,72.00
D1294J-PARKS & LEISURE SERVICES,Building-General,TOOLSTATION LTD,14-Jun-2019,179.98
D1317J-BUSINESS SUPPORT,Travel/Subsistence,OYSTER AUTO-TOP UP,14-Jun-2019,40.00
D1317J-BUSINESS SUPPORT,Travel/Subsistence,OYSTER AUTO-TOP UP,14-Jun-2019,40.00
D1317J-BUSINESS SUPPORT,Financial Services,HM PASSPORT OFFICE,14-Jun-2019,80.50
D1317J-BUSINESS SUPPORT,Furniture-Domestic Furniture,WWW.IKEA.COM,14-Jun-2019,502.50
D1317J-BUSINESS SUPPORT,Domestic Goods-Other,WWW.ARGOS.CO.UK,14-Jun-2019,646.93
D1317J-BUSINESS SUPPORT,Travel/Subsistence,OYSTER AUTO-TOP UP,14-Jun-2019,60.00
D1317J-BUSINESS SUPPORT,Furniture-Domestic Furniture,WWW.IKEA.COM,14-Jun-2019,94.95
D1317J-BUSINESS SUPPORT,Domestic Goods-Other,WWW.ARGOS.CO.UK,14-Jun-2019,196.94
D1317J-BUSINESS SUPPORT,Travel/Subsistence,OYSTER ONLINE,14-Jun-2019,30.00
D1317J-BUSINESS SUPPORT,Travel/Subsistence,OYSTER AUTO-TOP UP,14-Jun-2019,40.00
D1317J-BUSINESS SUPPORT,Accommodation,CITI ROOMS LUTON MK LTD,14-Jun-2019,"2,100.00"
D1325J-LEGAL SERVICES,Legal Services-Other,HMCTS,14-Jun-2019,100.00
D1351J-LEARNING & DEVELOPMENT,Catering Food & Drink,DOMINOS PIZZA UK & IRELAN,14-Jun-2019,102.79
D1841J-HOUSING MANAGEMENT SERVICES,Travel/Subsistence,TFL ROAD CHG - STD WEB,14-Jun-2019,14.00
D1841J-HOUSING MANAGEMENT SERVICES,Catering Food & Drink,STREATHAM FOOD AND WINE L,14-Jun-2019,55.50
D1229J-SPECIALIST YOUTH,Travel/Subsistence,OYSTER AUTO-TOP UP,15-Jun-2019,40.00
D1317J-BUSINESS SUPPORT,Travel/Subsistence,OYSTER AUTO-TOP UP,15-Jun-2019,20.00
D1317J-BUSINESS SUPPORT,Travel/Subsistence,OYSTER AUTO-TOP UP,15-Jun-2019,20.00
D1317J-BUSINESS SUPPORT,Travel/Subsistence,OYSTER AUTO-TOP UP,15-Jun-2019,120.00
D1317J-BUSINESS SUPPORT,Travel/Subsistence,OYSTER AUTO-TOP UP,15-Jun-2019,60.00
D1317J-BUSINESS SUPPORT,Travel/Subsistence,OYSTER AUTO-TOP UP,15-Jun-2019,20.00
D1317J-BUSINESS SUPPORT,Travel/Subsistence,OYSTER AUTO-TOP UP,15-Jun-2019,20.00
D1317J-BUSINESS SUPPORT,Travel/Subsistence,OYSTER AUTO-TOP UP,15-Jun-2019,20.00
D1317J-BUSINESS SUPPORT,Travel/Subsistence,OYSTER AUTO-TOP UP,15-Jun-2019,20.00
D1317J-BUSINESS SUPPORT,Travel/Subsistence,OYSTER AUTO-TOP UP,15-Jun-2019,60.00
D1317J-BUSINESS SUPPORT,Consultancy-Business,AWEBER COMMUNICATIONS,15-Jun-2019,8.18
D1324J-INTERNAL AUDIT,Travel/Subsistence,OYSTER AUTO-TOP UP,15-Jun-2019,80.00
D1174J-PUBLIC HEALTH - ADULTS,Public Transport,HEATHROW EXPRESS,16-Jun-2019,32.56
D1229J-SPECIALIST YOUTH,Travel/Subsistence,OYSTER AUTO-TOP UP,16-Jun-2019,20.00
D1303J-FINANCIAL TRANSACTION SERVICES,Travel/Subsistence,OYSTER AUTO-TOP UP,16-Jun-2019,20.00
D1304J-HOUSING BENEFIT,Travel/Subsistence,OYSTER AUTO-TOP UP,16-Jun-2019,20.00
D1317J-BUSINESS SUPPORT,Travel/Subsistence,OYSTER AUTO-TOP UP,16-Jun-2019,100.00
D1317J-BUSINESS SUPPORT,Travel/Subsistence,OYSTER AUTO-TOP UP,16-Jun-2019,20.00
D1317J-BUSINESS SUPPORT,Domestic Goods-Other,AMZNMKTPLACE AMAZON.CO.UK,16-Jun-2019,23.48
D1317J-BUSINESS SUPPORT,Travel/Subsistence,OYSTER AUTO-TOP UP,16-Jun-2019,40.00
D1317J-BUSINESS SUPPORT,Travel/Subsistence,OYSTER AUTO-TOP UP,16-Jun-2019,40.00
D1317J-BUSINESS SUPPORT,Travel/Subsistence,OYSTER AUTO-TOP UP,16-Jun-2019,20.00
D1317J-BUSINESS SUPPORT,Travel/Subsistence,OYSTER AUTO-TOP UP,16-Jun-2019,40.00
D1104J-DAY SERVICES,Catering Food & Drink,ICELAND,17-Jun-2019,41.84
D1115J-SENIOR MANAGEMENT - ADULT SOCIAL CARE,Accommodation,B.com 2391426-HHB5H Babba,17-Jun-2019,42.77
D1117J-SUBSTANCE MISUSE,Catering Food & Drink,TESCO STORES 5999,17-Jun-2019,55.10
D1117J-SUBSTANCE MISUSE,IT Software,SP * SUBSTANCE CREATE,17-Jun-2019,15.00
D1145J-LIBRARIES & ARCHIVES,Education-Library Books,Amazon.co.uk,17-Jun-2019,20.97
D1145J-LIBRARIES & ARCHIVES,Books/Publications/Resources,CASH ADVANCE FEE,17-Jun-2019,5.31
D1174J-PUBLIC HEALTH - ADULTS,Public Transport,CAT Ticket,17-Jun-2019,19.41
D1294J-PARKS & LEISURE SERVICES,Vehicle Parts,STOCKWELL MOTOR ACCES,17-Jun-2019,180.77
D1317J-BUSINESS SUPPORT,Taxi Fares,SW2 TO SE27,17-Jun-2019,20.00
D1317J-BUSINESS SUPPORT,Catering Food & Drink,TESCO STORE 2143,17-Jun-2019,6.75
D1317J-BUSINESS SUPPORT,Travel/Subsistence,TFL AUTOSETTLEMENT,17-Jun-2019,40.00
D1317J-BUSINESS SUPPORT,Travel/Subsistence,OYSTER ONLINE,17-Jun-2019,20.00
D1317J-BUSINESS SUPPORT,Travel/Subsistence,OYSTER AUTO-TOP UP,17-Jun-2019,20.00
D1317J-BUSINESS SUPPORT,Facilities-Advertising,FACEBK U7GURLECE2,17-Jun-2019,222.76
D1317J-BUSINESS SUPPORT,Taxi Fares,CIVIC TO SE27,17-Jun-2019,20.00
D1317J-BUSINESS SUPPORT,Travel/Subsistence,AUTO TOP-UP ARREARS,17-Jun-2019,20.00
D1317J-BUSINESS SUPPORT,Professional & Advisory Services,PAYPAL,17-Jun-2019,250.00
D1317J-BUSINESS SUPPORT,Taxi Fares,SW12 TO CATFORD,17-Jun-2019,40.00
D1317J-BUSINESS SUPPORT,Facilities-Advertising,EXPRESS NEWS,17-Jun-2019,30.00
D1365J-PERFORMANCE,Facilities-Design & Photography,CANVA* PRO MONTHLY,17-Jun-2019,10.63
D1100J-ADULTS WITH MENTAL HEALTH NEEDS,Legal Services-Other,HMCOURTS-SERVICE.G,18-Jun-2019,150.00
D1104J-DAY SERVICES,Catering Food & Drink,TESCO STORES 5999,18-Jun-2019,78.63
D1115J-SENIOR MANAGEMENT - ADULT SOCIAL CARE,Horticultural-Seeds & Plants,INTERFLORA BRITISH UNI,18-Jun-2019,53.00
D1122J-CHILDREN LOOKED AFTER,Taxi Fares,UB2 TO SW4,18-Jun-2019,80.00
D1145J-LIBRARIES & ARCHIVES,Catering Food & Drink,RASPBERRY LOCAL,18-Jun-2019,21.20
D1145J-LIBRARIES & ARCHIVES,Mail Services-Postage,POST OFFICE COUNTER,18-Jun-2019,11.66
D1294J-PARKS & LEISURE SERVICES,Travel/Subsistence,TFL ROAD CHG-PENALTY WEB,18-Jun-2019,80.00
D1317J-BUSINESS SUPPORT,Travel/Subsistence,OYSTER ONLINE,18-Jun-2019,30.00
D1317J-BUSINESS SUPPORT,Horticultural-Other,WWW.PRESTIGEFLOWERS.CO.U,18-Jun-2019,41.29
D1317J-BUSINESS SUPPORT,Domestic Goods-Other,WWW.ARGOS.CO.UK,18-Jun-2019,53.94
D1317J-BUSINESS SUPPORT,Accommodation,WWW.EDGCUMBE-HOTEL.CO.,18-Jun-2019,47.50
D1317J-BUSINESS SUPPORT,Financial Services,GEN REGISTER OFFICE,18-Jun-2019,42.00
D1317J-BUSINESS SUPPORT,Taxi Fares,CIVICSE27SW2SW2,18-Jun-2019,60.00
D1317J-BUSINESS SUPPORT,Telecommunications,EE LIMITED,18-Jun-2019,41.35
D1317J-BUSINESS SUPPORT,Taxi Fares,ST THOMAS SE19,18-Jun-2019,40.00
D1321J-DEMOCRATIC SERVICES,IT Software-Customised,SurveyMonkey,18-Jun-2019,35.00
D1841J-HOUSING MANAGEMENT SERVICES,Building-General,THE TRADE HUB,18-Jun-2019,63.94
D1145J-LIBRARIES & ARCHIVES,Domestic Goods-Other,AMZNMKTPLACE AMAZON.CO.UK,19-Jun-2019,62.09
D1229J-SPECIALIST YOUTH,Domestic Goods-Commercial,AMZNMktplace,19-Jun-2019,43.49
D1293J-EVENTS & FILMING,Building-Tools,WWW.YAHIRE.COM,19-Jun-2019,-313.10
D1294J-PARKS & LEISURE SERVICES,Building-Timber,JEWSON EAST DULWICH,19-Jun-2019,174.96
D1294J-PARKS & LEISURE SERVICES,Building-Timber,SELCO TRADING CTR,19-Jun-2019,249.99
D1294J-PARKS & LEISURE SERVICES,Domestic Goods-Other,Le Premier Shoe Care,19-Jun-2019,59.00
D1294J-PARKS & LEISURE SERVICES,Building-Timber,JEWSON EAST DULWICH,19-Jun-2019,9.30
D1317J-BUSINESS SUPPORT,Accommodation,HIGHSTREETVOUCHERS,19-Jun-2019,"1,000.00"
D1317J-BUSINESS SUPPORT,Domestic Goods-Other,AMZNMKTPLACE AMAZON.CO.UK,19-Jun-2019,54.88
D1317J-BUSINESS SUPPORT,Domestic Goods-Other,WWW.ARGOS.CO.UK,19-Jun-2019,103.94
D1317J-BUSINESS SUPPORT,Travel/Subsistence,OYSTER AUTO-TOP UP,19-Jun-2019,20.00
D1317J-BUSINESS SUPPORT,Travel/Subsistence,OYSTER AUTO-TOP UP,19-Jun-2019,120.00
D1317J-BUSINESS SUPPORT,Travel/Subsistence,OYSTER ONLINE,19-Jun-2019,20.00
D1317J-BUSINESS SUPPORT,Travel/Subsistence,OYSTER AUTO-TOP UP,19-Jun-2019,20.00
D1317J-BUSINESS SUPPORT,Travel/Subsistence,TFL AUTOSETTLEMENT,19-Jun-2019,40.00
D1317J-BUSINESS SUPPORT,Travel/Subsistence,AUTO TOP-UP ARREARS,19-Jun-2019,20.00
D1317J-BUSINESS SUPPORT,Financial Services,HM PASSPORT OFFICE,19-Jun-2019,117.00
D1317J-BUSINESS SUPPORT,Domestic Goods-Other,CURRYS ONLINE,19-Jun-2019,334.99
D1317J-BUSINESS SUPPORT,Domestic Goods-Other,WWW.ARGOS.CO.UK,19-Jun-2019,615.91
D1317J-BUSINESS SUPPORT,Mail Services-Postage,THE POST OFFICE,19-Jun-2019,123.00
D1317J-BUSINESS SUPPORT,Financial Services,GEN REGISTER OFFICE,19-Jun-2019,56.00
D1317J-BUSINESS SUPPORT,Domestic Goods-Other,WWW.ARGOS.CO.UK,19-Jun-2019,"1,073.95"
D1317J-BUSINESS SUPPORT,Travel/Subsistence,OYSTER AUTO-TOP UP,19-Jun-2019,40.00
D1317J-BUSINESS SUPPORT,Travel/Subsistence,OYSTER ONLINE,19-Jun-2019,-30.00
D1317J-BUSINESS SUPPORT,Catering Food & Drink,TESCO STORE 2143,19-Jun-2019,8.45
D1841J-HOUSING MANAGEMENT SERVICES,Building-Timber,SCREWFIX BRIXTON,19-Jun-2019,8.99
D1100J-ADULTS WITH MENTAL HEALTH NEEDS,Legal Services-Other,HMCOURTS-SERVICE.G,20-Jun-2019,150.00
D1100J-ADULTS WITH MENTAL HEALTH NEEDS,Travel/Subsistence,SE BRIXTON TO,20-Jun-2019,27.50
D1104J-DAY SERVICES,Catering Food & Drink,WWW.ICELAND.CO.UK,20-Jun-2019,412.71
D1107J-INTEGRATED DISABILITY - OT,Domestic Goods-Other,COMPLETE CARE SHOP,20-Jun-2019,69.90
D1117J-SUBSTANCE MISUSE,Domestic Goods-Other,AMZNMktplace,20-Jun-2019,88.58
D1145J-LIBRARIES & ARCHIVES,Domestic Goods-Other,AMZNMKTPLACE AMAZON.CO.UK,20-Jun-2019,68.61
D1145J-LIBRARIES & ARCHIVES,Facilities-Printing,Amazon.co.uk,20-Jun-2019,16.52
D1226J-PLANNING,Travel/Subsistence,LUL TICKET MACHINE,20-Jun-2019,60.00
D1229J-SPECIALIST YOUTH,Catering Food & Drink,BRIXTONHILL EXPRESS,20-Jun-2019,20.00
D1293J-EVENTS & FILMING,Facilities-Design & Photography,BRITISH PATHE LIMITED,20-Jun-2019,89.10
D1294J-PARKS & LEISURE SERVICES,Building-General,SCREWFIX DIRECT,20-Jun-2019,60.48
D1317J-BUSINESS SUPPORT,Furniture-Domestic Furniture,DREAMS LTD,20-Jun-2019,349.00
D1317J-BUSINESS SUPPORT,Travel/Subsistence,OYSTER ONLINE,20-Jun-2019,30.00
D1317J-BUSINESS SUPPORT,Travel/Subsistence,OYSTER AUTO-TOP UP,20-Jun-2019,60.00
D1317J-BUSINESS SUPPORT,Domestic Goods-Other,WWW.JOHNLEWIS.COM,20-Jun-2019,80.00
D1317J-BUSINESS SUPPORT,Domestic Goods-Other,WWW.ARGOS.CO.UK,20-Jun-2019,297.87
D1317J-BUSINESS SUPPORT,Travel/Subsistence,OYSTER AUTO-TOP UP,20-Jun-2019,40.00
D1317J-BUSINESS SUPPORT,Travel/Subsistence,OYSTER AUTO-TOP UP,20-Jun-2019,80.00
D1317J-BUSINESS SUPPORT,Travel/Subsistence,OYSTER AUTO-TOP UP,20-Jun-2019,20.00
D1317J-BUSINESS SUPPORT,Travel/Subsistence,OYSTER AUTO-TOP UP,20-Jun-2019,20.00
D1317J-BUSINESS SUPPORT,Travel/Subsistence,OYSTER ONLINE,20-Jun-2019,30.00
D1317J-BUSINESS SUPPORT,Domestic Goods-Other,WWW.ARGOS.CO.UK,20-Jun-2019,87.94
D1317J-BUSINESS SUPPORT,Domestic Goods-Other,WWW.ARGOS.CO.UK,20-Jun-2019,"1,130.91"
D1317J-BUSINESS SUPPORT,Domestic Goods-Other,CURRYS ONLINE,20-Jun-2019,184.00
D1317J-BUSINESS SUPPORT,Travel/Subsistence,OYSTER AUTO-TOP UP,20-Jun-2019,20.00
D1317J-BUSINESS SUPPORT,Catering Food & Drink,TESCO STORE 2143,20-Jun-2019,100.00
D1317J-BUSINESS SUPPORT,Domestic Goods-Other,AMZNMKTPLACE AMAZON.CO.UK,20-Jun-2019,23.56
D1317J-BUSINESS SUPPORT,Taxi Fares,SE27TOCIVIC 2DAYS,20-Jun-2019,80.00
D1317J-BUSINESS SUPPORT,Travel/Subsistence,OYSTER AUTO-TOP UP,20-Jun-2019,20.00
D1317J-BUSINESS SUPPORT,Taxi Fares,SE19 TO FAMILY COURT,20-Jun-2019,60.00
D1324J-INTERNAL AUDIT,Travel/Subsistence,TFL ROAD CHG - STD WEB,20-Jun-2019,14.00
D1324J-INTERNAL AUDIT,Travel/Subsistence,OYSTER AUTO-TOP UP,20-Jun-2019,40.00
D1351J-LEARNING & DEVELOPMENT,Domestic Goods-Other,AMZNMKTPLACE AMAZON.CO.UK,20-Jun-2019,54.25
D1351J-LEARNING & DEVELOPMENT,Domestic Goods-Other,AMZNMKTPLACE AMAZON.CO.UK,20-Jun-2019,13.08
D1365J-PERFORMANCE,IT Software,ADOBE  CREATIVE CLOUD,20-Jun-2019,141.60
D1145J-LIBRARIES & ARCHIVES,Domestic Goods-Other,AMZNMktplace,21-Jun-2019,4.99
D1145J-LIBRARIES & ARCHIVES,Domestic Goods-Other,AMZNMKTPLACE AMAZON.CO.UK,21-Jun-2019,2.48
D1174J-PUBLIC HEALTH - ADULTS,Conference Expenses,LAMBETH INTERNET PAYM,21-Jun-2019,100.00
D1229J-SPECIALIST YOUTH,Travel/Subsistence,BRIXTONHILL EXPRESS,21-Jun-2019,50.00
D1229J-SPECIALIST YOUTH,Conference Expenses,EB *SEEN AND HEARD-RES,21-Jun-2019,80.00
D1293J-EVENTS & FILMING,Domestic Goods-Other,FROSTS,21-Jun-2019,123.60
D1293J-EVENTS & FILMING,Taxi Fares,WWW.ADDISONLEE.COM,21-Jun-2019,96.10
D1294J-PARKS & LEISURE SERVICES,Building-Timber,SELCO BUILDERS WAR,21-Jun-2019,123.17
D1294J-PARKS & LEISURE SERVICES,Building-Paint,S LONDON DECORTORS,21-Jun-2019,73.56
D1303J-FINANCIAL TRANSACTION SERVICES,Domestic Goods-Other,AMZNMktplace,21-Jun-2019,56.80
D1317J-BUSINESS SUPPORT,Furniture-Domestic Furniture,DFS Trading Ltd,21-Jun-2019,50.00
D1317J-BUSINESS SUPPORT,Travel/Subsistence,STAGECOACH SERVICE,21-Jun-2019,20.48
D1317J-BUSINESS SUPPORT,Travel/Subsistence,OYSTER AUTO-TOP UP,21-Jun-2019,40.00
D1317J-BUSINESS SUPPORT,Travel/Subsistence,OYSTER AUTO-TOP UP,21-Jun-2019,80.00
D1317J-BUSINESS SUPPORT,Taxi Fares,CIVICTOCR0TOEASTCROYDO,21-Jun-2019,60.00
D1317J-BUSINESS SUPPORT,Furniture-Domestic Furniture,WAYFAIR #2978682794,21-Jun-2019,272.94
D1317J-BUSINESS SUPPORT,Travel/Subsistence,AUTO TOP-UP ARREARS,21-Jun-2019,20.00
D1317J-BUSINESS SUPPORT,Travel/Subsistence,OYSTER AUTO-TOP UP,21-Jun-2019,60.00
D1317J-BUSINESS SUPPORT,Domestic Goods-Other,ARGOS DIRECT,21-Jun-2019,60.00
D1317J-BUSINESS SUPPORT,Travel/Subsistence,OYSTER AUTO-TOP UP,21-Jun-2019,60.00
D1317J-BUSINESS SUPPORT,Travel/Subsistence,OYSTER AUTO-TOP UP,21-Jun-2019,20.00
D1317J-BUSINESS SUPPORT,Travel/Subsistence,OYSTER AUTO-TOP UP,21-Jun-2019,20.00
D1317J-BUSINESS SUPPORT,Furniture-Domestic Furniture,DFS Trading Limited,21-Jun-2019,368.00
D1317J-BUSINESS SUPPORT,Arts & Leisure Services,WWW.TENPIN.CO.UK,21-Jun-2019,26.10
D1317J-BUSINESS SUPPORT,Travel/Subsistence,OYSTER AUTO-TOP UP,21-Jun-2019,60.00
D1317J-BUSINESS SUPPORT,Accommodation,Hotel on Booking.com Mour,21-Jun-2019,297.00
D1317J-BUSINESS SUPPORT,Taxi Fares,WAITINGCIVICSE27,21-Jun-2019,20.00
D1317J-BUSINESS SUPPORT,Travel/Subsistence,OYSTER ONLINE,21-Jun-2019,30.00
D1317J-BUSINESS SUPPORT,Accommodation,EASYJET,21-Jun-2019,453.32
D1317J-BUSINESS SUPPORT,Travel/Subsistence,OYSTER AUTO-TOP UP,21-Jun-2019,40.00
D1317J-BUSINESS SUPPORT,Travel/Subsistence,OYSTER AUTO-TOP UP,21-Jun-2019,40.00
D1325J-LEGAL SERVICES,Travel/Subsistence,LUL TICKET MACHINE,21-Jun-2019,50.00
D1345J-FINANCIAL PLANNING AND MANAGEMENT,Domestic Goods-Other,WWW.ARGOS.CO.UK,21-Jun-2019,963.54
D1351J-LEARNING & DEVELOPMENT,Domestic Goods-Other,AMZNMKTPLACE AMAZON.CO.UK,21-Jun-2019,35.84
D1841J-HOUSING MANAGEMENT SERVICES,Building-General,THE TRADE HUB,21-Jun-2019,9.98
D1841J-HOUSING MANAGEMENT SERVICES,Facilities-Market Research,Amazon Prime,21-Jun-2019,7.99
D1117J-SUBSTANCE MISUSE,Domestic Goods-Other,AMZNMktplace,22-Jun-2019,129.99
D1145J-LIBRARIES & ARCHIVES,Education-Library Books,Amazon.co.uk,22-Jun-2019,11.78
D1145J-LIBRARIES & ARCHIVES,Facilities-Printing,Amazon.co.uk,22-Jun-2019,13.75
D1229J-SPECIALIST YOUTH,Travel/Subsistence,OYSTER AUTO-TOP UP,22-Jun-2019,20.00
D1229J-SPECIALIST YOUTH,Travel/Subsistence,OYSTER AUTO-TOP UP,22-Jun-2019,20.00
D1293J-EVENTS & FILMING,Catering Food & Drink,TESCO STORE 2143,22-Jun-2019,6.29
D1293J-EVENTS & FILMING,Cleaning-Laundry Service,S.I.S.T DRY CLEANERS L,22-Jun-2019,50.00
D1303J-FINANCIAL TRANSACTION SERVICES,Domestic Goods-Other,AMZNMktplace,22-Jun-2019,62.96
D1317J-BUSINESS SUPPORT,Travel/Subsistence,OYSTER AUTO-TOP UP,22-Jun-2019,20.00
D1317J-BUSINESS SUPPORT,Travel/Subsistence,OYSTER AUTO-TOP UP,22-Jun-2019,80.00
D1317J-BUSINESS SUPPORT,Travel/Subsistence,OYSTER AUTO-TOP UP,22-Jun-2019,80.00
D1317J-BUSINESS SUPPORT,Travel/Subsistence,OYSTER AUTO-TOP UP,22-Jun-2019,40.00
D1317J-BUSINESS SUPPORT,Travel/Subsistence,OYSTER AUTO-TOP UP,22-Jun-2019,20.00
D1317J-BUSINESS SUPPORT,Travel/Subsistence,OYSTER AUTO-TOP UP,22-Jun-2019,40.00
D1317J-BUSINESS SUPPORT,Travel/Subsistence,OYSTER AUTO-TOP UP,22-Jun-2019,20.00
D1145J-LIBRARIES & ARCHIVES,Facilities-Printing,Amazon.co.uk,23-Jun-2019,24.90
D1145J-LIBRARIES & ARCHIVES,Domestic Goods-Other,AMZNMKTPLACE AMAZON.CO.UK,23-Jun-2019,-2.75
D1145J-LIBRARIES & ARCHIVES,Domestic Goods-Other,AMAZON.CO.UK,23-Jun-2019,8.25
D1317J-BUSINESS SUPPORT,Travel/Subsistence,OYSTER AUTO-TOP UP,23-Jun-2019,40.00
D1317J-BUSINESS SUPPORT,Travel/Subsistence,OYSTER AUTO-TOP UP,23-Jun-2019,20.00
D1317J-BUSINESS SUPPORT,Travel/Subsistence,OYSTER AUTO-TOP UP,23-Jun-2019,20.00
D1317J-BUSINESS SUPPORT,Travel/Subsistence,OYSTER AUTO-TOP UP,23-Jun-2019,60.00
D1317J-BUSINESS SUPPORT,Travel/Subsistence,OYSTER AUTO-TOP UP,23-Jun-2019,20.00
D1317J-BUSINESS SUPPORT,Travel/Subsistence,OYSTER AUTO-TOP UP,23-Jun-2019,40.00
D1862J-SHELTERED HOUSING,Domestic Goods-Other,AMZNMktplace,23-Jun-2019,16.98
D1100J-ADULTS WITH MENTAL HEALTH NEEDS,Travel/Subsistence,SE BRIXTON TO,24-Jun-2019,67.80
D1104J-DAY SERVICES,Catering Food & Drink,TESCO STORE 3300,24-Jun-2019,45.50
D1117J-SUBSTANCE MISUSE,Catering Food & Drink,TESCO STORES 5999,24-Jun-2019,73.84
D1145J-LIBRARIES & ARCHIVES,Domestic Goods-Other,AMZNMktplace,24-Jun-2019,4.00
D1145J-LIBRARIES & ARCHIVES,Domestic Goods-Other,AMZNMktplace,24-Jun-2019,21.62
D1145J-LIBRARIES & ARCHIVES,Building-Others,FORTRESS MASTER LOCKSMITH,24-Jun-2019,21.95
D1145J-LIBRARIES & ARCHIVES,Facilities-Printing,Amazon.co.uk,24-Jun-2019,27.57
D1293J-EVENTS & FILMING,Taxi Fares,ADDISON LEE EXTRA,24-Jun-2019,2.58
D1303J-FINANCIAL TRANSACTION SERVICES,Consultancy-Business,FORTRESS MASTER LOCKSMITH,24-Jun-2019,14.25
D1317J-BUSINESS SUPPORT,Domestic Goods-Other,CURRYS ONLINE,24-Jun-2019,204.00
D1317J-BUSINESS SUPPORT,Travel/Subsistence,OYSTER AUTO-TOP UP,24-Jun-2019,20.00
D1317J-BUSINESS SUPPORT,Travel/Subsistence,OYSTER AUTO-TOP UP,24-Jun-2019,40.00
D1317J-BUSINESS SUPPORT,Healthcare Services,EDMUNDSBURY TRA,24-Jun-2019,-127.50
D1317J-BUSINESS SUPPORT,Accommodation,JURYS INN MILTON KEYNES,24-Jun-2019,196.00
D1317J-BUSINESS SUPPORT,Domestic Goods-Other,AMZNMktplace,24-Jun-2019,119.99
D1317J-BUSINESS SUPPORT,Travel/Subsistence,TRAINLINE,24-Jun-2019,25.65
D1317J-BUSINESS SUPPORT,Travel/Subsistence,OYSTER AUTO-TOP UP,24-Jun-2019,20.00
D1317J-BUSINESS SUPPORT,Furniture-Domestic Furniture,Ten Dance Media,24-Jun-2019,177.97
D1324J-INTERNAL AUDIT,Financial Services,LONDON BRGH OF LAMBETH,24-Jun-2019,11.00
D1345J-FINANCIAL PLANNING AND MANAGEMENT,Financial Services,LAND REGISTRY,24-Jun-2019,3.00
D1100J-ADULTS WITH MENTAL HEALTH NEEDS,Legal Services-Other,HMCOURTS-SERVICE.G,25-Jun-2019,150.00
D1104J-DAY SERVICES,Catering Food & Drink,ICELAND,25-Jun-2019,91.45
D1104J-DAY SERVICES,Catering Food & Drink,M N NORWOOD HALAL BUTCHER,25-Jun-2019,108.37
D1145J-LIBRARIES & ARCHIVES,Facilities-Printing,Amazon.co.uk,25-Jun-2019,15.72
D1145J-LIBRARIES & ARCHIVES,Education-Library Books,AMAZON.CO.UK,25-Jun-2019,9.99
D1174J-PUBLIC HEALTH - ADULTS,Conference Expenses,PUBLIC HEALTH ENGLAND,25-Jun-2019,440.00
D1247J-SUSTAINABILITY & ROAD SAFETY,Catering Food & Drink,TESCO STORE 2143,25-Jun-2019,6.45
D1294J-PARKS & LEISURE SERVICES,Building-General,SCREWFIX DIRECT,25-Jun-2019,22.48
D1301J-EXECUTIVE SUPPORT,Travel/Subsistence,Trainline.com,25-Jun-2019,127.63
D1317J-BUSINESS SUPPORT,Mail Services-Postage,POST OFFICE SELF SERVI,25-Jun-2019,6.60
D1317J-BUSINESS SUPPORT,Education-Library Books,AMZN Mktp UK,25-Jun-2019,21.90
D1317J-BUSINESS SUPPORT,Travel/Subsistence,OYSTER ONLINE,25-Jun-2019,30.00
D1317J-BUSINESS SUPPORT,Travel/Subsistence,TRAINLINE,25-Jun-2019,-97.50
D1317J-BUSINESS SUPPORT,Furniture-Domestic Furniture,WWW.MILLETS.CO.UK,25-Jun-2019,43.99
D1317J-BUSINESS SUPPORT,Domestic Goods-Other,HIGH STREET TV (GROUP),25-Jun-2019,64.72
D1317J-BUSINESS SUPPORT,Financial Services,GEN REGISTER OFFICE,25-Jun-2019,28.00
D1317J-BUSINESS SUPPORT,Travel/Subsistence,OYSTER AUTO-TOP UP,25-Jun-2019,20.00
D1317J-BUSINESS SUPPORT,Financial Services,LONDON BRGH OF LAMBETH,25-Jun-2019,11.00
D1317J-BUSINESS SUPPORT,Domestic Goods-Other,AMZNMktplace,25-Jun-2019,941.96
D1324J-INTERNAL AUDIT,Consultancy-Business,FAST KEY SERVICES LIMI,25-Jun-2019,15.28
D1343J-DIRECTOR OF FINANCE,Vehicle Hire,SUMUP*MARSTON (HOLDINGS),25-Jun-2019,"1,069.00"
D1343J-DIRECTOR OF FINANCE,Vehicle Hire,SUMUP*MARSTON (HOLDINGS),25-Jun-2019,513.00
D1345J-FINANCIAL PLANNING AND MANAGEMENT,Facilities-Advertising,EXPRESS NEWS,25-Jun-2019,50.00
D1345J-FINANCIAL PLANNING AND MANAGEMENT,Travel/Subsistence,LONDON OVERGROUND SST,25-Jun-2019,50.00
D1345J-FINANCIAL PLANNING AND MANAGEMENT,Financial Services,LAND REGISTRY,25-Jun-2019,3.00
D1345J-FINANCIAL PLANNING AND MANAGEMENT,Mail Services-Postage,POST OFFICE SELF SERVI,25-Jun-2019,6.94
D1145J-LIBRARIES & ARCHIVES,Facilities-Printing,Amazon.co.uk,26-Jun-2019,113.99
D1145J-LIBRARIES & ARCHIVES,Facilities-Printing,VISTAPRINT,26-Jun-2019,17.56
D1145J-LIBRARIES & ARCHIVES,Education-Other,VALUE PRODUCTS LTD,26-Jun-2019,23.22
D1145J-LIBRARIES & ARCHIVES,Education-Library Books,AMZNMKTPLACE AMAZON.CO.UK,26-Jun-2019,18.83
D1174J-PUBLIC HEALTH - ADULTS,Conference Expenses,PUBLIC HEALTH ENGLAND,26-Jun-2019,350.00
D1229J-SPECIALIST YOUTH,Travel/Subsistence,OYSTER AUTO-TOP UP,26-Jun-2019,20.00
D1292J-BEREAVEMENT SERVICES,Building-Tools,YAHIRE LTD,26-Jun-2019,177.85
D1292J-BEREAVEMENT SERVICES,Building-Tools,YAHIRE LTD,26-Jun-2019,200.00
D1294J-PARKS & LEISURE SERVICES,Domestic Goods-Other,THE SECRET GARDEN,26-Jun-2019,131.47
D1294J-PARKS & LEISURE SERVICES,Building-Timber,SELCO BUILDERS WAR,26-Jun-2019,108.14
D1294J-PARKS & LEISURE SERVICES,Building-General,SCREWFIX DIRECT,26-Jun-2019,38.06
D1294J-PARKS & LEISURE SERVICES,Horticultural-Other,CROXTED RD GDN CTR,26-Jun-2019,133.00
D1301J-EXECUTIVE SUPPORT,Travel/Subsistence,Trainline.com,26-Jun-2019,190.99
D1317J-BUSINESS SUPPORT,Furniture-Domestic Furniture,01273647938 HSTV VIP,26-Jun-2019,0.98
D1317J-BUSINESS SUPPORT,Mail Services-Postage,POST OFFICE SELF SERVI,26-Jun-2019,1.90
D1317J-BUSINESS SUPPORT,Banquet & Catering,CAMEO EVENTS HIRE,26-Jun-2019,170.83
D1317J-BUSINESS SUPPORT,Domestic Goods-Other,AMZNMktplace,26-Jun-2019,229.99
D1317J-BUSINESS SUPPORT,Travel/Subsistence,TFL OYST PHOTOCARD,26-Jun-2019,10.00
D1317J-BUSINESS SUPPORT,Taxi Fares,SW2 TO SE12,26-Jun-2019,40.00
D1317J-BUSINESS SUPPORT,Travel/Subsistence,OYSTER AUTO-TOP UP,26-Jun-2019,60.00
D1317J-BUSINESS SUPPORT,Financial Services,LEGALSERVICES.GOV.,26-Jun-2019,35.07
D1317J-BUSINESS SUPPORT,Catering Food & Drink,TESCO STORE 2143,26-Jun-2019,8.90
D1317J-BUSINESS SUPPORT,Travel/Subsistence,OYSTER AUTO-TOP UP,26-Jun-2019,20.00
D1317J-BUSINESS SUPPORT,Taxi Fares,SW2 TO SE12 RETURN,26-Jun-2019,80.00
D1317J-BUSINESS SUPPORT,Works-Construction,PAYPAL,26-Jun-2019,225.00
D1317J-BUSINESS SUPPORT,Travel/Subsistence,OYSTER AUTO-TOP UP,26-Jun-2019,20.00
D1317J-BUSINESS SUPPORT,Financial Services,LONDON BRGH OF LAMBETH,26-Jun-2019,41.00
D1317J-BUSINESS SUPPORT,Domestic Goods-Other,WWW.ARGOS.CO.UK,26-Jun-2019,299.37
D1317J-BUSINESS SUPPORT,Travel/Subsistence,OYSTER AUTO-TOP UP,26-Jun-2019,20.00
D1317J-BUSINESS SUPPORT,Travel/Subsistence,OYSTER AUTO-TOP UP,26-Jun-2019,20.00
D1317J-BUSINESS SUPPORT,Travel/Subsistence,OYSTER AUTO-TOP UP,26-Jun-2019,80.00
D1321J-DEMOCRATIC SERVICES,Catering Food & Drink,TESCO STORE 2143,26-Jun-2019,11.75
D1345J-FINANCIAL PLANNING AND MANAGEMENT,Financial Services,LAND REGISTRY,26-Jun-2019,6.00
D1345J-FINANCIAL PLANNING AND MANAGEMENT,Domestic Goods-Other,WWW.ARGOS.CO.UK,26-Jun-2019,-12.95
D1145J-LIBRARIES & ARCHIVES,Education-Library Books,AMZNMktplace,27-Jun-2019,6.74
D1145J-LIBRARIES & ARCHIVES,Domestic Goods-Other,AMZNMktplace,27-Jun-2019,19.73
D1145J-LIBRARIES & ARCHIVES,Facilities-Advertising,LONDIS,27-Jun-2019,77.50
D1145J-LIBRARIES & ARCHIVES,Education-Arts/Crafts,BAKER ROSS LTD,27-Jun-2019,51.22
D1229J-SPECIALIST YOUTH,Travel/Subsistence,OYSTER ONLINE,27-Jun-2019,20.00
D1294J-PARKS & LEISURE SERVICES,Building-Timber,WWW.SELCOBW.COM,27-Jun-2019,62.40
D1317J-BUSINESS SUPPORT,Travel/Subsistence,OYSTER AUTO-TOP UP,27-Jun-2019,20.00
D1317J-BUSINESS SUPPORT,Travel/Subsistence,OYSTER AUTO-TOP UP,27-Jun-2019,40.00
D1317J-BUSINESS SUPPORT,Travel/Subsistence,OYSTER AUTO-TOP UP,27-Jun-2019,40.00
D1317J-BUSINESS SUPPORT,Catering Food & Drink,TESCO STORE 2143,27-Jun-2019,150.00
D1317J-BUSINESS SUPPORT,Travel/Subsistence,OYSTER AUTO-TOP UP,27-Jun-2019,40.00
D1317J-BUSINESS SUPPORT,Travel/Subsistence,OYSTER AUTO-TOP UP,27-Jun-2019,80.00
D1317J-BUSINESS SUPPORT,Domestic Goods-Other,WWW.ARGOS.CO.UK,27-Jun-2019,228.94
D1317J-BUSINESS SUPPORT,Travel/Subsistence,OYSTER AUTO-TOP UP,27-Jun-2019,20.00
D1317J-BUSINESS SUPPORT,Domestic Goods-Other,ARGOS RETAIL GROUP,27-Jun-2019,20.00
D1317J-BUSINESS SUPPORT,Facilities-Market Research,Amazon Prime,27-Jun-2019,7.99
D1317J-BUSINESS SUPPORT,Travel/Subsistence,OYSTER AUTO-TOP UP,27-Jun-2019,20.00
D1317J-BUSINESS SUPPORT,Travel/Subsistence,OYSTER AUTO-TOP UP,27-Jun-2019,20.00
D1321J-DEMOCRATIC SERVICES,Travel/Subsistence,HOTELS.COM158630761754,27-Jun-2019,-190.08
D1325J-LEGAL SERVICES,Stationery,AMZNMktplace,27-Jun-2019,31.99
D1325J-LEGAL SERVICES,Stationery,CURRYS SUPERSTORE,27-Jun-2019,49.98
D1345J-FINANCIAL PLANNING AND MANAGEMENT,Financial Services,LAND REGISTRY,27-Jun-2019,3.00
D1345J-FINANCIAL PLANNING AND MANAGEMENT,Travel/Subsistence,OYSTER AUTO-TOP UP,27-Jun-2019,20.00
D1345J-FINANCIAL PLANNING AND MANAGEMENT,Domestic Goods-Other,WWW.ARGOS.CO.UK,27-Jun-2019,-798.95
D1841J-HOUSING MANAGEMENT SERVICES,Building-General,THE TRADE HUB,27-Jun-2019,17.44
D1841J-HOUSING MANAGEMENT SERVICES,Travel/Subsistence,LUL TICKET MACHINE,27-Jun-2019,50.00
D1104J-DAY SERVICES,Domestic Goods-Other,CURRYS SUPERSTORE,28-Jun-2019,149.95
D1174J-PUBLIC HEALTH - ADULTS,Healthcare Services,PUBLIC HEALTH ENGLAND,28-Jun-2019,350.00
D1229J-SPECIALIST YOUTH,Travel/Subsistence,OYSTER ONLINE,28-Jun-2019,20.00
D1229J-SPECIALIST YOUTH,Domestic Goods-Other,POUNDLAND LTD 1203,28-Jun-2019,12.00
D1229J-SPECIALIST YOUTH,Travel/Subsistence,OYSTER AUTO-TOP UP,28-Jun-2019,40.00
D1294J-PARKS & LEISURE SERVICES,Domestic Goods-Other,AMZNMktplace,28-Jun-2019,84.95
D1317J-BUSINESS SUPPORT,Letting Agents,CESARE & CO,28-Jun-2019,"2,046.00"
D1317J-BUSINESS SUPPORT,Accommodation,CITY GROUP APARTMENTS,28-Jun-2019,825.00
D1317J-BUSINESS SUPPORT,Travel/Subsistence,AUTO TOP-UP ARREARS,28-Jun-2019,20.00
D1317J-BUSINESS SUPPORT,Domestic Goods-Other,AMZNMKTPLACE AMAZON.CO.UK,28-Jun-2019,145.98
D1317J-BUSINESS SUPPORT,Travel/Subsistence,TFL AUTOSETTLEMENT,28-Jun-2019,20.00
D1317J-BUSINESS SUPPORT,Travel/Subsistence,OYSTER AUTO-TOP UP,28-Jun-2019,20.00
D1317J-BUSINESS SUPPORT,Travel/Subsistence,OYSTER AUTO-TOP UP,28-Jun-2019,40.00
D1317J-BUSINESS SUPPORT,Catering Food & Drink,MARKS&SPENCER PLC,28-Jun-2019,645.35
D1317J-BUSINESS SUPPORT,Domestic Goods-Other,AMAZON.CO.UK,28-Jun-2019,29.98
D1317J-BUSINESS SUPPORT,Travel/Subsistence,OYSTER AUTO-TOP UP,28-Jun-2019,100.00
D1317J-BUSINESS SUPPORT,Travel/Subsistence,OYSTER AUTO-TOP UP,28-Jun-2019,60.00
D1317J-BUSINESS SUPPORT,Travel/Subsistence,OYSTER AUTO-TOP UP,28-Jun-2019,20.00
D1317J-BUSINESS SUPPORT,Catering Food & Drink,MARKS&SPENCER PLC,28-Jun-2019,64.65
D1345J-FINANCIAL PLANNING AND MANAGEMENT,Financial Services,LAND REGISTRY,28-Jun-2019,6.00
D1229J-SPECIALIST YOUTH,Travel/Subsistence,OYSTER AUTO-TOP UP,29-Jun-2019,20.00
D1317J-BUSINESS SUPPORT,Travel/Subsistence,OYSTER AUTO-TOP UP,29-Jun-2019,40.00
D1317J-BUSINESS SUPPORT,Travel/Subsistence,OYSTER AUTO-TOP UP,29-Jun-2019,40.00
D1317J-BUSINESS SUPPORT,Travel/Subsistence,OYSTER AUTO-TOP UP,29-Jun-2019,20.00
D1317J-BUSINESS SUPPORT,Travel/Subsistence,OYSTER AUTO-TOP UP,29-Jun-2019,20.00
D1365J-PERFORMANCE,IT Services,BUZZSUMO.COM PRO,29-Jun-2019,96.62
D1145J-LIBRARIES & ARCHIVES,Facilities-Printing,Amazon.co.uk,30-Jun-2019,2.00
D1145J-LIBRARIES & ARCHIVES,Domestic Goods-Other,AMAZON.CO.UK,30-Jun-2019,8.25
D1145J-LIBRARIES & ARCHIVES,Travel/Subsistence,OYSTER AUTO-TOP UP,30-Jun-2019,20.00
D1148J-SCHOOL & EDUCATIONAL IMPROVEMENT SERVICE,Domestic Goods-Other,AMZNMktplace,30-Jun-2019,84.98
D1317J-BUSINESS SUPPORT,Travel/Subsistence,OYSTER AUTO-TOP UP,30-Jun-2019,20.00
D1317J-BUSINESS SUPPORT,Travel/Subsistence,OYSTER AUTO-TOP UP,30-Jun-2019,40.00
D1317J-BUSINESS SUPPORT,Travel/Subsistence,OYSTER AUTO-TOP UP,30-Jun-2019,20.00
D1317J-BUSINESS SUPPORT,Travel/Subsistence,OYSTER AUTO-TOP UP,30-Jun-2019,20.00
D1317J-BUSINESS SUPPORT,Travel/Subsistence,OYSTER AUTO-TOP UP,30-Jun-2019,80.00
D1317J-BUSINESS SUPPORT,Travel/Subsistence,OYSTER AUTO-TOP UP,30-Jun-2019,20.00
D1317J-BUSINESS SUPPORT,Travel/Subsistence,OYSTER AUTO-TOP UP,30-Jun-2019,40.00
